Body Name,Purpose of Expenditure ,Directorate ,Dr/Cr,Gross Amount,Beneficiary,Transaction Date
Nottinghamshire County Council,Provisions,"Children, Families & Cultural Services",Debit,463.10,owen taylor  sons,02/07/2015
Nottinghamshire County Council,Cleaning & Domestic Equipment,"Children, Families & Cultural Services",Debit,59.00,johnlewisaddedcare,02/07/2015
Nottinghamshire County Council,Office / General Equipment,"Children, Families & Cultural Services",Debit,5.56,amazon uk marketplace,01/07/2015
Nottinghamshire County Council,Catering Consumables,"Adult Social Care, Health & Public Protection ",Debit,12.00,asda superstore,02/07/2015
Nottinghamshire County Council,Provisions,"Children, Families & Cultural Services",Debit,53.33,tesco stores 3378,02/07/2015
Nottinghamshire County Council,Activities & Support,"Children, Families & Cultural Services",Debit,10.42,tesco stores 2995,01/07/2015
Nottinghamshire County Council,Activities & Support,"Children, Families & Cultural Services",Debit,4.29,amazon svcs europesar,01/07/2015
Nottinghamshire County Council,Materials - External,Environment & Resources,Debit,115.96,br3417 gibbsdandy,02/07/2015
Nottinghamshire County Council,Minor Works,"Children, Families & Cultural Services",Debit,4.58,tesco stores 2702,02/07/2015
Nottinghamshire County Council,Office / General Equipment,Environment & Resources,Debit,28.64,tubes fittings,01/07/2015
Nottinghamshire County Council,Office / General Equipment,Environment & Resources,Debit,14.98,tubes fittings,01/07/2015
Nottinghamshire County Council,Provisions,"Children, Families & Cultural Services",Debit,3.20,wm morrison 067,02/07/2015
Nottinghamshire County Council,Office / General Equipment,Place ,Debit,56.50,arco ltd,01/07/2015
Nottinghamshire County Council,Office / General Equipment,"Children, Families & Cultural Services",Debit,3.97,amazon svcs europesar,01/07/2015
Nottinghamshire County Council,Other Fee's & Services,Environment & Resources,Debit,70.00,www.moneyclaim.gov,02/07/2015
Nottinghamshire County Council,Other Fee's & Services,Environment & Resources,Debit,70.00,www.moneyclaim.gov,01/07/2015
Nottinghamshire County Council,Legal Fees,"Children, Families & Cultural Services",Debit,455.00,clayton mott lawton,01/07/2015
Nottinghamshire County Council,Staff Training,"Children, Families & Cultural Services",Debit,222.00,www.baaf.org.uk,01/07/2015
Nottinghamshire County Council,Other Fee's & Services,"Adult Social Care, Health & Public Protection ",Debit,11.00,worcestershire cc,01/07/2015
Nottinghamshire County Council,Other Fee's & Services,"Adult Social Care, Health & Public Protection ",Debit,0.00,worcestershire cc,01/07/2015
Nottinghamshire County Council,Legal Fees,"Policy, Planning & Corporate Services",Debit,455.00,county court,02/07/2015
Nottinghamshire County Council,Legal Fees,"Policy, Planning & Corporate Services",Debit,455.00,county court,02/07/2015
Nottinghamshire County Council,Legal Fees,"Policy, Planning & Corporate Services",Debit,170.00,county court,01/07/2015
Nottinghamshire County Council,Minor Works,"Children, Families & Cultural Services",Debit,119.40,paypal  ,01/07/2015
Nottinghamshire County Council,Minor Works,"Children, Families & Cultural Services",Debit,57.07,amazon uk marketplace,01/07/2015
Nottinghamshire County Council,Activities & Support,"Children, Families & Cultural Services",Debit,2.18,co-op group 011261,02/07/2015
Nottinghamshire County Council,Activities & Support,"Children, Families & Cultural Services",Debit,12.00,that game shop,01/07/2015
Nottinghamshire County Council,Activities & Support,"Children, Families & Cultural Services",Debit,7.00,tesco stores,02/07/2015
Nottinghamshire County Council,Activities & Support,"Children, Families & Cultural Services",Debit,12.10,wm morrisons,02/07/2015
Nottinghamshire County Council,Activities & Support,"Children, Families & Cultural Services",Debit,16.14,wm morrisons,02/07/2015
Nottinghamshire County Council,Activities & Support,"Children, Families & Cultural Services",Debit,11.25,sainsburys spmkts,02/07/2015
Nottinghamshire County Council,Office / General Equipment,"Adult Social Care, Health & Public Protection ",Debit,6.74,fast key services,02/07/2015
Nottinghamshire County Council,Activities & Support,"Children, Families & Cultural Services",Debit,11.46,tesco stores 2995,02/07/2015
Nottinghamshire County Council,Activities & Support,"Children, Families & Cultural Services",Debit,5.10,misterton foodstre,02/07/2015
Nottinghamshire County Council,Teaching Equipment,"Children, Families & Cultural Services",Debit,145.11,dri nuance,01/07/2015
Nottinghamshire County Council,Materials - External,Environment & Resources,Debit,67.26,amk automotive limited,01/07/2015
Nottinghamshire County Council,MOT Tests,Environment & Resources,Debit,"3,000.00",dvsa,01/07/2015
Nottinghamshire County Council,Office / General Equipment,Environment & Resources,Debit,13.23,amazon svcs europesar,01/07/2015
Nottinghamshire County Council,Office / General Equipment,Environment & Resources,Debit,35.68,amazon uk marketplace,01/07/2015
Nottinghamshire County Council,Activities & Support,"Children, Families & Cultural Services",Debit,8.70,tesco stores 5437,02/07/2015
Nottinghamshire County Council,Hardware Maintenance,Environment & Resources,Debit,12.49,argos retail group,01/07/2015
Nottinghamshire County Council,Building Maintenance,Environment & Resources,Debit,40.50,willbond plumbing centre,02/07/2015
Nottinghamshire County Council,Building Maintenance,Environment & Resources,Debit,24.82,willbond plumbing centre,01/07/2015
Nottinghamshire County Council,Activities & Support,"Children, Families & Cultural Services",Debit,10.45,sainsburys s/mkts,01/07/2015
Nottinghamshire County Council,Stationery,"Adult Social Care, Health & Public Protection ",Debit,25.30,asda storess4342,02/07/2015
Nottinghamshire County Council,Personal Needs,"Adult Social Care, Health & Public Protection ",Debit,0.00,asda storess4342,02/07/2015
Nottinghamshire County Council,Office / General Equipment,"Policy, Planning & Corporate Services",Debit,32.99,amazon uk retail,01/07/2015
Nottinghamshire County Council,Materials - External,Environment & Resources,Debit,2.88,howden joinery arnold,01/07/2015
Nottinghamshire County Council,Materials - External,Environment & Resources,Debit,187.06,jwl architectural iron,01/07/2015
Nottinghamshire County Council,Other Fee's & Services,"Children, Families & Cultural Services",Debit,27.98,screwfix,02/07/2015
Nottinghamshire County Council,Activities & Support,"Children, Families & Cultural Services",Debit,22.12,heron foods ltd,02/07/2015
Nottinghamshire County Council,Activities & Support,"Children, Families & Cultural Services",Debit,1.93,bm retail ltd,02/07/2015
Nottinghamshire County Council,Activities & Support,"Children, Families & Cultural Services",Debit,4.01,aldi,01/07/2015
Nottinghamshire County Council,Materials - External,Place ,Debit,10.79,jewson,01/07/2015
Nottinghamshire County Council,Personal Needs,"Children, Families & Cultural Services",Debit,1.29,sainsburys s/mkts,01/07/2015
Nottinghamshire County Council,Personal Needs,"Children, Families & Cultural Services",Debit,4.20,broadmarsh car park up,01/07/2015
Nottinghamshire County Council,Other Fee's & Services,Resources ,Debit,10.00,www.gov.uk,01/07/2015
Nottinghamshire County Council,Stock,"Children, Families & Cultural Services",Debit,4.29,amazon svcs europesar,02/07/2015
Nottinghamshire County Council,Office / General Equipment,"Children, Families & Cultural Services",Debit,50.78,amazon uk marketplace,02/07/2015
Nottinghamshire County Council,Stock,"Children, Families & Cultural Services",Debit,12.77,amazon uk marketplace,02/07/2015
Nottinghamshire County Council,Teaching Equipment,"Children, Families & Cultural Services",Debit,239.97,dri nuance,01/07/2015
Nottinghamshire County Council,Minor Works,"Children, Families & Cultural Services",Debit,33.39,amazon uk marketplace,02/07/2015
Nottinghamshire County Council,Teaching Equipment,"Children, Families & Cultural Services",Debit,239.97,dri nuance,01/07/2015
Nottinghamshire County Council,Teaching Equipment,"Children, Families & Cultural Services",Debit,16.74,scientific  chem,02/07/2015
Nottinghamshire County Council,Stock,"Children, Families & Cultural Services",Debit,59.29,amazon uk marketplace,01/07/2015
Nottinghamshire County Council,Stock,"Children, Families & Cultural Services",Debit,50.69,amazon uk marketplace,01/07/2015
Nottinghamshire County Council,Office / General Equipment,"Children, Families & Cultural Services",Debit,46.62,amazon svcs europesar,01/07/2015
Nottinghamshire County Council,Teaching Equipment,"Children, Families & Cultural Services",Debit,95.97,amazon uk marketplace,01/07/2015
Nottinghamshire County Council,Teaching Equipment,"Children, Families & Cultural Services",Debit,"1,200.00",texthelp lt,01/07/2015
Nottinghamshire County Council,Stock,"Children, Families & Cultural Services",Debit,56.18,amazon uk marketplace,01/07/2015
Nottinghamshire County Council,Teaching Equipment,"Children, Families & Cultural Services",Debit,195.01,thinkbuzan,01/07/2015
Nottinghamshire County Council,Aftercare - Other Grants,"Children, Families & Cultural Services",Debit,147.53,argos retail group,01/07/2015
Nottinghamshire County Council,Aftercare - Other Grants,"Children, Families & Cultural Services",Debit,63.99,argos retail group,01/07/2015
Nottinghamshire County Council,Aftercare - Other Grants,"Children, Families & Cultural Services",Debit,23.94,argos retail group,01/07/2015
Nottinghamshire County Council,Activities & Support,"Children, Families & Cultural Services",Debit,81.02,booker limited nottingha,01/07/2015
Nottinghamshire County Council,Provisions,"Children, Families & Cultural Services",Debit,24.61,tesco stores 2964,01/07/2015
Nottinghamshire County Council,Provisions,"Children, Families & Cultural Services",Debit,35.51,makro self service notti,01/07/2015
Nottinghamshire County Council,Office / General Equipment,"Children, Families & Cultural Services",Debit,9.95,virgintrainsec wi-fi,01/07/2015
Nottinghamshire County Council,Other Public Transport,"Children, Families & Cultural Services",Debit,11.50,ncp limited,01/07/2015
Nottinghamshire County Council,Other Public Transport,"Children, Families & Cultural Services",Debit,59.90,virgintrainsec nng stn,01/07/2015
Nottinghamshire County Council,Office / General Equipment,"Children, Families & Cultural Services",Debit,16.00,nottingham city co,02/07/2015
Nottinghamshire County Council,Office / General Equipment,"Children, Families & Cultural Services",Debit,182.98,toys r us,01/07/2015
Nottinghamshire County Council,Materials - External,Environment & Resources,Debit,23.98,eyre  elliston ltd,01/07/2015
Nottinghamshire County Council,Office / General Equipment,"Children, Families & Cultural Services",Debit,12.45,timpson ltd,02/07/2015
Nottinghamshire County Council,Office / General Equipment,"Children, Families & Cultural Services",Debit,40.00,fat boys,01/07/2015
Nottinghamshire County Council,Materials - External,Environment & Resources,Debit,222.72,edmundson electrical,02/07/2015
Nottinghamshire County Council,Clothing/Shoes/Uniforms,"Children, Families & Cultural Services",Debit,15.90,primark,01/07/2015
Nottinghamshire County Council,Clothing/Shoes/Uniforms,"Children, Families & Cultural Services",Debit,2.99,select - mansfield 2,01/07/2015
Nottinghamshire County Council,Clothing/Shoes/Uniforms,"Children, Families & Cultural Services",Debit,17.50,new look 2015,01/07/2015
Nottinghamshire County Council,Other Fee's & Services,"Policy, Planning & Corporate Services",Debit,35.00,www.ico.gov.uk,01/07/2015
Nottinghamshire County Council,Other Fee's & Services,"Policy, Planning & Corporate Services",Debit,35.00,www.ico.gov.uk,01/07/2015
Nottinghamshire County Council,Other Fee's & Services,"Policy, Planning & Corporate Services",Debit,35.00,www.ico.gov.uk,01/07/2015
Nottinghamshire County Council,Other Fee's & Services,"Policy, Planning & Corporate Services",Debit,35.00,www.ico.gov.uk,01/07/2015
Nottinghamshire County Council,Other Fee's & Services,"Policy, Planning & Corporate Services",Debit,35.00,www.ico.gov.uk,01/07/2015
Nottinghamshire County Council,Other Fee's & Services,"Policy, Planning & Corporate Services",Debit,35.00,www.ico.gov.uk,01/07/2015
Nottinghamshire County Council,Other Fee's & Services,"Policy, Planning & Corporate Services",Debit,35.00,www.ico.gov.uk,01/07/2015
Nottinghamshire County Council,Other Fee's & Services,"Policy, Planning & Corporate Services",Debit,35.00,www.ico.gov.uk,01/07/2015
Nottinghamshire County Council,Other Fee's & Services,"Policy, Planning & Corporate Services",Debit,35.00,www.ico.gov.uk,01/07/2015
Nottinghamshire County Council,Other Fee's & Services,"Policy, Planning & Corporate Services",Debit,35.00,www.ico.gov.uk,01/07/2015
Nottinghamshire County Council,Other Fee's & Services,"Policy, Planning & Corporate Services",Debit,35.00,www.ico.gov.uk,01/07/2015
Nottinghamshire County Council,Other Fee's & Services,"Policy, Planning & Corporate Services",Debit,35.00,www.ico.gov.uk,01/07/2015
Nottinghamshire County Council,Other Fee's & Services,"Policy, Planning & Corporate Services",Debit,35.00,www.ico.gov.uk,01/07/2015
Nottinghamshire County Council,Other Fee's & Services,"Policy, Planning & Corporate Services",Debit,35.00,www.ico.gov.uk,01/07/2015
Nottinghamshire County Council,Other Fee's & Services,"Policy, Planning & Corporate Services",Debit,35.00,www.ico.gov.uk,01/07/2015
Nottinghamshire County Council,Other Fee's & Services,"Policy, Planning & Corporate Services",Debit,35.00,www.ico.gov.uk,01/07/2015
Nottinghamshire County Council,Other Fee's & Services,"Policy, Planning & Corporate Services",Debit,35.00,www.ico.gov.uk,01/07/2015
Nottinghamshire County Council,Other Fee's & Services,"Policy, Planning & Corporate Services",Debit,35.00,www.ico.gov.uk,01/07/2015
Nottinghamshire County Council,Other Fee's & Services,"Policy, Planning & Corporate Services",Debit,35.00,www.ico.gov.uk,01/07/2015
Nottinghamshire County Council,Cleaning & Domestic Equipment,"Adult Social Care, Health & Public Protection ",Debit,49.99,argos retail group,02/07/2015
Nottinghamshire County Council,Activities & Support,"Children, Families & Cultural Services",Debit,80.00,primark,01/07/2015
Nottinghamshire County Council,Activities & Support,"Children, Families & Cultural Services",Debit,13.52,wm morrisons plc,02/07/2015
Nottinghamshire County Council,Activities & Support,"Children, Families & Cultural Services",Debit,13.31,wilko retail limit,01/07/2015
Nottinghamshire County Council,Personal Needs,"Children, Families & Cultural Services",Debit,5.00,www.postoffice.co.uk,01/07/2015
Nottinghamshire County Council,Activities & Support,"Children, Families & Cultural Services",Debit,10.35,tesco stores 5437,01/07/2015
Nottinghamshire County Council,Stationery,"Children, Families & Cultural Services",Debit,58.88,amazon uk marketplace,02/07/2015
Nottinghamshire County Council,Provisions,"Adult Social Care, Health & Public Protection ",Debit,32.17,asda storess4342,02/07/2015
Nottinghamshire County Council,Provisions,"Adult Social Care, Health & Public Protection ",Debit,181.62,asda home shopping,02/07/2015
Nottinghamshire County Council,Fixtures & Fittings,"Children, Families & Cultural Services",Debit,28.00,tesco stores 5437,02/07/2015
Nottinghamshire County Council,Provisions,Place ,Debit,58.84,barrons of,02/07/2015
Nottinghamshire County Council,Books - General,"Children, Families & Cultural Services",Debit,11.57,amazon svcs europesar,02/07/2015
Nottinghamshire County Council,Personal Needs,"Children, Families & Cultural Services",Debit,85.00,www.nottinghamcity.gov,01/07/2015
Nottinghamshire County Council,Materials - External,Environment & Resources,Debit,2.00,city electrical fa,02/07/2015
Nottinghamshire County Council,Materials - External,Environment & Resources,Debit,0.30,city electrical fa,02/07/2015
Nottinghamshire County Council,Materials - External,Environment & Resources,Debit,5.26,city electrical fa,02/07/2015
Nottinghamshire County Council,Materials - External,Environment & Resources,Debit,0.24,city electrical fa,02/07/2015
Nottinghamshire County Council,Materials - External,Environment & Resources,Debit,0.55,city electrical fa,02/07/2015
Nottinghamshire County Council,Materials - External,Environment & Resources,Debit,3.64,city electrical fa,02/07/2015
Nottinghamshire County Council,Materials - External,Environment & Resources,Debit,0.53,city electrical fa,01/07/2015
Nottinghamshire County Council,Materials - External,Environment & Resources,Debit,20.93,city electrical fa,01/07/2015
Nottinghamshire County Council,Materials - External,Environment & Resources,Debit,88.39,city electrical fa,02/07/2015
Nottinghamshire County Council,Activities & Support,"Children, Families & Cultural Services",Debit,6.87,heron foods ltd,02/07/2015
Nottinghamshire County Council,Activities & Support,"Children, Families & Cultural Services",Debit,21.29,co-op group 010811,01/07/2015
Nottinghamshire County Council,Furniture,"Children, Families & Cultural Services",Debit,3.75,suite sleep,02/07/2015
Nottinghamshire County Council,Stationery,"Children, Families & Cultural Services",Debit,7.87,amazon uk retail,02/07/2015
Nottinghamshire County Council,Stationery,"Children, Families & Cultural Services",Debit,15.75,amazon uk retail,02/07/2015
Nottinghamshire County Council,Furniture,"Children, Families & Cultural Services",Debit,250.00,suite sleep,02/07/2015
Nottinghamshire County Council,Other Fee's & Services,"Children, Families & Cultural Services",Debit,23.40,gro hm passport office,01/07/2015
Nottinghamshire County Council,Other Fee's & Services,"Children, Families & Cultural Services",Debit,10.00,lincolnshire cc card p,01/07/2015
Nottinghamshire County Council,Activities & Support,"Children, Families & Cultural Services",Debit,13.50,mill tea shop,02/07/2015
Nottinghamshire County Council,Activities & Support,"Children, Families & Cultural Services",Debit,77.76,asda store ston in as,01/07/2015
Nottinghamshire County Council,Materials - External,Environment & Resources,Debit,11.95,turnbull  co ltd,01/07/2015
Nottinghamshire County Council,Provisions,Environment & Resources,Debit,21.75,asda superstore 04030,01/07/2015
Nottinghamshire County Council,Personal Needs,"Children, Families & Cultural Services",Debit,5.99,www.netflix.com,01/07/2015
Nottinghamshire County Council,Activities & Support,"Children, Families & Cultural Services",Debit,10.11,wm morrison 067,02/07/2015
Nottinghamshire County Council,Activities & Support,"Children, Families & Cultural Services",Debit,12.57,wm morrison 067,01/07/2015
Nottinghamshire County Council,Office / General Equipment,Environment & Resources,Debit,14.00,wilko retail limit,02/07/2015
Nottinghamshire County Council,Provisions,"Adult Social Care, Health & Public Protection ",Debit,20.38,w m morrison plc,01/07/2015
Nottinghamshire County Council,Activities & Support,"Children, Families & Cultural Services",Debit,3.40,aldi,02/07/2015
Nottinghamshire County Council,Clothing/Shoes/Uniforms,"Children, Families & Cultural Services",Debit,89.90,joules ltd,01/07/2015
Nottinghamshire County Council,Clothing/Shoes/Uniforms,"Children, Families & Cultural Services",Debit,189.96,sportsdirect.com,02/07/2015
Nottinghamshire County Council,First Aid Equipment Purchases,"Children, Families & Cultural Services",Debit,139.00,scrivens opticians 084,02/07/2015
Nottinghamshire County Council,Office / General Equipment,"Adult Social Care, Health & Public Protection ",Debit,105.05,moorcroft seafoods ltd,01/07/2015
Nottinghamshire County Council,Office / General Equipment,"Adult Social Care, Health & Public Protection ",Debit,5.29,amazon svcs europesar,01/07/2015
Nottinghamshire County Council,Office / General Equipment,"Adult Social Care, Health & Public Protection ",Debit,19.09,w m morrison,02/07/2015
Nottinghamshire County Council,Office / General Equipment,"Adult Social Care, Health & Public Protection ",Debit,103.94,argos ltd,02/07/2015
Nottinghamshire County Council,Provisions,"Adult Social Care, Health & Public Protection ",Debit,5.02,k  k dhariwal ltd,01/07/2015
Nottinghamshire County Council,Activities & Support,"Children, Families & Cultural Services",Debit,12.85,tesco stores 5379,01/07/2015
Nottinghamshire County Council,Activities & Support,"Children, Families & Cultural Services",Debit,11.87,argos ltd,01/07/2015
Nottinghamshire County Council,Personal Needs,"Children, Families & Cultural Services",Debit,5.00,www.postoffice.co.uk,01/07/2015
Nottinghamshire County Council,Activities & Support,"Children, Families & Cultural Services",Debit,1.94,w m morrison plc,02/07/2015
Nottinghamshire County Council,Subscriptions,Environment & Resources,Debit,810.00,enviroment agency,01/07/2015
Nottinghamshire County Council,Personal Needs,"Children, Families & Cultural Services",Debit,22.37,amazon svcs europesar,01/07/2015
Nottinghamshire County Council,Activities & Support,"Children, Families & Cultural Services",Debit,3.00,tesco stores 5437,01/07/2015
Nottinghamshire County Council,Clients - H & S Equipt,"Children, Families & Cultural Services",Debit,8.90,asda store ston in as,01/07/2015
Nottinghamshire County Council,Clients - H & S Equipt,"Children, Families & Cultural Services",Debit,2.89,asda store ston in as,01/07/2015
Nottinghamshire County Council,Provisions,"Adult Social Care, Health & Public Protection ",Debit,15.16,amazon uk marketplace,01/07/2015
Nottinghamshire County Council,Premises Service Charges,Environment & Resources,Debit,"1,000.00",riverside park,02/07/2015
Nottinghamshire County Council,Sports Equipment,"Children, Families & Cultural Services",Debit,75.29,www.quicksarchery.co.uk,02/07/2015
Nottinghamshire County Council,Sports Equipment,"Children, Families & Cultural Services",Debit,32.19,hitch n hike,01/07/2015
Nottinghamshire County Council,Advertising & Marketing,"Policy, Planning & Corporate Services",Debit,26.35,fontdeck,01/07/2015
Nottinghamshire County Council,Advertising & Marketing,"Policy, Planning & Corporate Services",Debit,1.80,linkedin,01/07/2015
Nottinghamshire County Council,Advertising & Marketing,"Policy, Planning & Corporate Services",Debit,25.55,hotjar,01/07/2015
Nottinghamshire County Council,Materials - External,Environment & Resources,Debit,98.14,plumb center wu,02/07/2015
Nottinghamshire County Council,Materials - External,Environment & Resources,Debit,3.56,plumb center wu,01/07/2015
Nottinghamshire County Council,Materials - External,Environment & Resources,Debit,1.48,plumb center wu,01/07/2015
Nottinghamshire County Council,Materials - External,Environment & Resources,Debit,9.67,plumb center wu,01/07/2015
Nottinghamshire County Council,Materials - External,Environment & Resources,Debit,18.17,plumb center wu,01/07/2015
Nottinghamshire County Council,Activities & Support,"Children, Families & Cultural Services",Debit,54.90,amazon uk marketplace,02/07/2015
Nottinghamshire County Council,Activities & Support,"Children, Families & Cultural Services",Debit,4.94,amazon uk marketplace,02/07/2015
Nottinghamshire County Council,Activities & Support,"Children, Families & Cultural Services",Debit,8.90,amazon uk marketplace,02/07/2015
Nottinghamshire County Council,Activities & Support,"Children, Families & Cultural Services",Debit,4.77,aldi,02/07/2015
Nottinghamshire County Council,Activities & Support,"Children, Families & Cultural Services",Debit,11.98,asda  stores 4201,01/07/2015
Nottinghamshire County Council,Activities & Support,"Children, Families & Cultural Services",Debit,70.10,golden wok,02/07/2015
Nottinghamshire County Council,Car Parking Charges,Corporate,Debit,77.27,giannis brio,01/07/2015
Nottinghamshire County Council,Hospitality,"Adult Social Care, Health & Public Protection ",Debit,15.00,paypal  ,02/07/2015
Nottinghamshire County Council,Activities & Support,"Children, Families & Cultural Services",Debit,7.18,ableworld newark,30/07/2015
Nottinghamshire County Council,Activities & Support,"Children, Families & Cultural Services",Debit,28.45,argos ltd,29/07/2015
Nottinghamshire County Council,Activities & Support,"Children, Families & Cultural Services",Debit,22.99,wilko retail limit,29/07/2015
Nottinghamshire County Council,Activities & Support,"Children, Families & Cultural Services",Debit,25.50,westholme,23/07/2015
Nottinghamshire County Council,Activities & Support,"Children, Families & Cultural Services",Debit,37.98,matalan,21/07/2015
Nottinghamshire County Council,Activities & Support,"Children, Families & Cultural Services",Debit,11.28,poundstretcher 136,21/07/2015
Nottinghamshire County Council,Activities & Support,"Children, Families & Cultural Services",Debit,37.47,the range,21/07/2015
Nottinghamshire County Council,Personal Needs,"Children, Families & Cultural Services",Debit,34.30,photobox limited,30/07/2015
Nottinghamshire County Council,Clothing/Shoes/Uniforms,"Children, Families & Cultural Services",Debit,13.59,amazon svcs europesar,30/07/2015
Nottinghamshire County Council,Aids & Appliances,"Children, Families & Cultural Services",Debit,39.99,amazon uk marketplace,29/07/2015
Nottinghamshire County Council,Stationery,"Children, Families & Cultural Services",Debit,2.76,amazon uk marketplace,29/07/2015
Nottinghamshire County Council,Clothing/Shoes/Uniforms,"Children, Families & Cultural Services",Debit,14.84,amazon uk marketplace,29/07/2015
Nottinghamshire County Council,Clothing/Shoes/Uniforms,"Children, Families & Cultural Services",Debit,309.40,bedstar limited,28/07/2015
Nottinghamshire County Council,Aids & Appliances,"Children, Families & Cultural Services",Credit,-44.99,amazon uk marketplace,27/07/2015
Nottinghamshire County Council,Stationery,"Children, Families & Cultural Services",Debit,33.75,amazon uk marketplace,27/07/2015
Nottinghamshire County Council,Personal Needs,"Children, Families & Cultural Services",Debit,16.11,amazon svcs europesar,25/07/2015
Nottinghamshire County Council,Office / General Equipment,"Children, Families & Cultural Services",Debit,145.50,tvlicensing.co.uk,22/07/2015
Nottinghamshire County Council,Personal Needs,"Children, Families & Cultural Services",Debit,80.90,amazon uk retail,23/07/2015
Nottinghamshire County Council,Personal Needs,"Children, Families & Cultural Services",Debit,126.95,encore tickets,22/07/2015
Nottinghamshire County Council,Personal Needs,"Children, Families & Cultural Services",Debit,35.45,trainline.com,22/07/2015
Nottinghamshire County Council,Personal Needs,"Children, Families & Cultural Services",Debit,3.30,amazon uk marketplace,21/07/2015
Nottinghamshire County Council,Clothing/Shoes/Uniforms,"Children, Families & Cultural Services",Debit,47.99,next directory,21/07/2015
Nottinghamshire County Council,Personal Needs,"Children, Families & Cultural Services",Debit,50.53,www.twycrosszoo.org,17/07/2015
Nottinghamshire County Council,Aids & Appliances,"Children, Families & Cultural Services",Debit,57.27,amazon uk retail,19/07/2015
Nottinghamshire County Council,Aids & Appliances,"Children, Families & Cultural Services",Debit,24.00,amazon uk retail,17/07/2015
Nottinghamshire County Council,Personal Needs,"Children, Families & Cultural Services",Debit,9.98,amazon uk marketplace,17/07/2015
Nottinghamshire County Council,Personal Needs,"Children, Families & Cultural Services",Debit,49.73,amazon uk marketplace,18/07/2015
Nottinghamshire County Council,Personal Needs,"Children, Families & Cultural Services",Debit,8.00,amazon uk retail,19/07/2015
Nottinghamshire County Council,Personal Needs,"Children, Families & Cultural Services",Debit,6.99,amazon uk retail,18/07/2015
Nottinghamshire County Council,Stationery,"Children, Families & Cultural Services",Debit,12.95,amazon svcs europesar,16/07/2015
Nottinghamshire County Council,Office / General Equipment,"Children, Families & Cultural Services",Debit,17.98,amazon uk marketplace,16/07/2015
Nottinghamshire County Council,Personal Needs,"Children, Families & Cultural Services",Debit,20.00,www.theworks.co.uk,15/07/2015
Nottinghamshire County Council,Clothing/Shoes/Uniforms,"Children, Families & Cultural Services",Debit,11.99,amazon uk marketplace,15/07/2015
Nottinghamshire County Council,Clothing/Shoes/Uniforms,"Children, Families & Cultural Services",Debit,103.92,dunelm telephone order,15/07/2015
Nottinghamshire County Council,Personal Needs,"Children, Families & Cultural Services",Debit,3.87,amazon uk marketplace,14/07/2015
Nottinghamshire County Council,Personal Needs,"Children, Families & Cultural Services",Debit,2.24,amazon svcs europesar,13/07/2015
Nottinghamshire County Council,Personal Needs,"Children, Families & Cultural Services",Debit,4.17,amazon uk marketplace,13/07/2015
Nottinghamshire County Council,Personal Needs,"Children, Families & Cultural Services",Debit,9.98,amazon uk marketplace,13/07/2015
Nottinghamshire County Council,Personal Needs,"Children, Families & Cultural Services",Debit,7.77,amazon uk marketplace,10/07/2015
Nottinghamshire County Council,Personal Needs,"Children, Families & Cultural Services",Debit,25.00,amazon uk retail,10/07/2015
Nottinghamshire County Council,Personal Needs,"Children, Families & Cultural Services",Debit,5.58,amazon svcs europesar,12/07/2015
Nottinghamshire County Council,Personal Needs,"Children, Families & Cultural Services",Debit,7.60,amazon uk marketplace,12/07/2015
Nottinghamshire County Council,Personal Needs,"Children, Families & Cultural Services",Debit,9.48,amazon uk marketplace,11/07/2015
Nottinghamshire County Council,Personal Needs,"Children, Families & Cultural Services",Debit,8.59,amazon uk marketplace,11/07/2015
Nottinghamshire County Council,Furniture,"Children, Families & Cultural Services",Debit,13.28,amazon uk marketplace,11/07/2015
Nottinghamshire County Council,Personal Needs,"Children, Families & Cultural Services",Debit,45.00,www.johnlewis.com,09/07/2015
Nottinghamshire County Council,Personal Needs,"Children, Families & Cultural Services",Debit,72.00,wp-the virtual col,09/07/2015
Nottinghamshire County Council,Aids & Appliances,"Children, Families & Cultural Services",Debit,11.36,amazon svcs europesar,09/07/2015
Nottinghamshire County Council,Personal Needs,"Children, Families & Cultural Services",Debit,9.89,amazon uk marketplace,06/07/2015
Nottinghamshire County Council,Personal Needs,"Children, Families & Cultural Services",Debit,11.98,amazon uk marketplace,06/07/2015
Nottinghamshire County Council,Catering Consumables,"Adult Social Care, Health & Public Protection ",Debit,10.47,osbornes newark,01/08/2015
Nottinghamshire County Council,Catering Consumables,"Adult Social Care, Health & Public Protection ",Debit,26.40,asda superstore,31/07/2015
Nottinghamshire County Council,Catering Consumables,"Adult Social Care, Health & Public Protection ",Debit,5.00,asda superstore,28/07/2015
Nottinghamshire County Council,Catering Consumables,"Adult Social Care, Health & Public Protection ",Debit,9.92,asda superstore,23/07/2015
Nottinghamshire County Council,Catering Consumables,"Adult Social Care, Health & Public Protection ",Debit,7.50,asda superstore,21/07/2015
Nottinghamshire County Council,Catering Consumables,"Adult Social Care, Health & Public Protection ",Debit,10.32,[Redacted],10/07/2015
Nottinghamshire County Council,Catering Consumables,"Adult Social Care, Health & Public Protection ",Debit,19.55,[Redacted],07/07/2015
Nottinghamshire County Council,Cleaning & Domestic Equipment,"Children, Families & Cultural Services",Debit,31.97,buyspares,29/07/2015
Nottinghamshire County Council,Provisions,"Children, Families & Cultural Services",Debit,7.87,tesco store 2571,28/07/2015
Nottinghamshire County Council,Provisions,"Children, Families & Cultural Services",Debit,16.35,tesco store 2571,19/07/2015
Nottinghamshire County Council,Provisions,"Adult Social Care, Health & Public Protection ",Debit,162.49,asda home shopping,03/08/2015
Nottinghamshire County Council,Provisions,"Adult Social Care, Health & Public Protection ",Credit,-1.00,asda home shopping,27/07/2015
Nottinghamshire County Council,Provisions,"Adult Social Care, Health & Public Protection ",Debit,191.75,asda home shopping,27/07/2015
Nottinghamshire County Council,Provisions,"Adult Social Care, Health & Public Protection ",Debit,165.48,asda home shopping,20/07/2015
Nottinghamshire County Council,Provisions,"Adult Social Care, Health & Public Protection ",Credit,-6.64,asda home shopping,20/07/2015
Nottinghamshire County Council,Cleaning Materials,"Adult Social Care, Health & Public Protection ",Debit,46.14,caterclean supplies,16/07/2015
Nottinghamshire County Council,Provisions,"Adult Social Care, Health & Public Protection ",Debit,187.12,asda home shopping,13/07/2015
Nottinghamshire County Council,Provisions,"Adult Social Care, Health & Public Protection ",Debit,147.13,asda home shopping,06/07/2015
Nottinghamshire County Council,Activities & Support,"Adult Social Care, Health & Public Protection ",Debit,49.99,amazon uk marketplace,03/07/2015
Nottinghamshire County Council,Activities & Support,"Children, Families & Cultural Services",Debit,1.39,tesco stores 5329,31/07/2015
Nottinghamshire County Council,Activities & Support,"Children, Families & Cultural Services",Debit,5.00,xercise 4 less nottingha,30/07/2015
Nottinghamshire County Council,Activities & Support,"Children, Families & Cultural Services",Debit,6.00,phullar studio,22/07/2015
Nottinghamshire County Council,Activities & Support,"Children, Families & Cultural Services",Debit,3.98,subway,22/07/2015
Nottinghamshire County Council,Activities & Support,"Children, Families & Cultural Services",Debit,5.00,xercise 4 less nottingha,21/07/2015
Nottinghamshire County Council,Activities & Support,"Children, Families & Cultural Services",Debit,3.00,subway,21/07/2015
Nottinghamshire County Council,Activities & Support,"Children, Families & Cultural Services",Debit,5.50,wollaton hall shop,15/07/2015
Nottinghamshire County Council,Activities & Support,"Children, Families & Cultural Services",Debit,2.49,tesco stores 5329,13/07/2015
Nottinghamshire County Council,Activities & Support,"Children, Families & Cultural Services",Debit,3.70,broadmarsh car park up,08/07/2015
Nottinghamshire County Council,Activities & Support,"Children, Families & Cultural Services",Debit,6.00,tesco stores 2995,29/07/2015
Nottinghamshire County Council,Activities & Support,"Children, Families & Cultural Services",Debit,4.58,tesco stores 2995,27/07/2015
Nottinghamshire County Council,Office / General Equipment,"Children, Families & Cultural Services",Debit,7.00,wilko retail limit,07/07/2015
Nottinghamshire County Council,Materials - External,Environment & Resources,Debit,34.88,high park industries l,15/07/2015
Nottinghamshire County Council,Activities & Support,"Children, Families & Cultural Services",Debit,7.54,bm retail,22/07/2015
Nottinghamshire County Council,Activities & Support,"Children, Families & Cultural Services",Debit,30.00,hospital direct (m,09/07/2015
Nottinghamshire County Council,Activities & Support,"Children, Families & Cultural Services",Debit,9.75,aldi,30/07/2015
Nottinghamshire County Council,Activities & Support,"Children, Families & Cultural Services",Debit,11.99,the range,29/07/2015
Nottinghamshire County Council,Activities & Support,"Children, Families & Cultural Services",Debit,23.45,the range,29/07/2015
Nottinghamshire County Council,Activities & Support,"Children, Families & Cultural Services",Debit,82.92,paypal  ,29/07/2015
Nottinghamshire County Council,Activities & Support,"Children, Families & Cultural Services",Debit,3.58,aldi,28/07/2015
Nottinghamshire County Council,Activities & Support,"Children, Families & Cultural Services",Debit,3.52,aldi,24/07/2015
Nottinghamshire County Council,Activities & Support,"Children, Families & Cultural Services",Debit,25.00,sundown pets garden lt,06/07/2015
Nottinghamshire County Council,Materials - External,Environment & Resources,Debit,12.00,howden joinery mansfie,31/07/2015
Nottinghamshire County Council,Materials - External,Environment & Resources,Debit,6.00,howden joinery mansfie,31/07/2015
Nottinghamshire County Council,Materials - External,Environment & Resources,Debit,4.44,howden joinery mansfie,31/07/2015
Nottinghamshire County Council,Materials - External,Environment & Resources,Debit,4.13,howden joinery mansfie,31/07/2015
Nottinghamshire County Council,Materials - External,Environment & Resources,Debit,79.87,jewson mansfield,07/07/2015
Nottinghamshire County Council,Materials - External,Environment & Resources,Debit,5.93,jewson mansfield,07/07/2015
Nottinghamshire County Council,Materials - External,Environment & Resources,Debit,11.04,jewson mansfield,07/07/2015
Nottinghamshire County Council,Materials - External,Environment & Resources,Debit,45.91,jewson mansfield,07/07/2015
Nottinghamshire County Council,Materials - External,Environment & Resources,Debit,9.59,howden joinery arnold,08/07/2015
Nottinghamshire County Council,Materials - External,Environment & Resources,Debit,13.20,howden joinery arnold,08/07/2015
Nottinghamshire County Council,Materials - External,Environment & Resources,Debit,41.40,howden joinery arnold,08/07/2015
Nottinghamshire County Council,Materials - External,Environment & Resources,Debit,4.87,howden joinery arnold,08/07/2015
Nottinghamshire County Council,Materials - External,Environment & Resources,Debit,62.40,howden joinery arnold,08/07/2015
Nottinghamshire County Council,Materials - External,Environment & Resources,Debit,18.64,howden joinery arnold,08/07/2015
Nottinghamshire County Council,Materials - External,Environment & Resources,Debit,20.55,handi centre bingham,03/08/2015
Nottinghamshire County Council,Materials - External,Environment & Resources,Debit,106.12,br3417 gibbsdandy,20/07/2015
Nottinghamshire County Council,Materials - External,Environment & Resources,Debit,41.85,gibbs  dandy,16/07/2015
Nottinghamshire County Council,Materials - External,Environment & Resources,Debit,26.87,handi centre bingham,15/07/2015
Nottinghamshire County Council,Materials - External,Environment & Resources,Debit,118.80,robert m sansom plant lt,14/07/2015
Nottinghamshire County Council,Other Fee's & Services,Environment & Resources,Debit,157.79,http://www.rtitb.co.uk/,23/07/2015
Nottinghamshire County Council,Other Fee's & Services,Environment & Resources,Credit,-55.00,dsa,22/07/2015
Nottinghamshire County Council,Other Fee's & Services,Environment & Resources,Debit,24.00,dsa theory test,21/07/2015
Nottinghamshire County Council,Other Fee's & Services,Environment & Resources,Debit,55.00,dsa,20/07/2015
Nottinghamshire County Council,Other Fee's & Services,Environment & Resources,Debit,28.00,dsa theory test,15/07/2015
Nottinghamshire County Council,Other Fee's & Services,Environment & Resources,Debit,24.00,dsa theory test,07/07/2015
Nottinghamshire County Council,Other Fee's & Services,Environment & Resources,Debit,78.90,http://www.rtitb.co.uk/,07/07/2015
Nottinghamshire County Council,Office / General Equipment,"Children, Families & Cultural Services",Debit,45.92,www.overclockers.co.uk,03/08/2015
Nottinghamshire County Council,Office / General Equipment,"Children, Families & Cultural Services",Debit,171.24,www.thomann.de,29/07/2015
Nottinghamshire County Council,Office / General Equipment,"Children, Families & Cultural Services",Debit,128.75,www.gear4music.com,21/07/2015
Nottinghamshire County Council,Furniture,"Children, Families & Cultural Services",Debit,954.00,scs 100138,27/07/2015
Nottinghamshire County Council,Clients - H & S Equipt,"Children, Families & Cultural Services",Debit,20.00,dvla driver online,14/07/2015
Nottinghamshire County Council,Minor Works,"Children, Families & Cultural Services",Debit,4.51,tp bulwell,10/07/2015
Nottinghamshire County Council,Minor Works,"Children, Families & Cultural Services",Debit,5.93,tp bulwell,10/07/2015
Nottinghamshire County Council,Minor Works,"Children, Families & Cultural Services",Debit,7.01,tp bulwell,10/07/2015
Nottinghamshire County Council,Minor Works,"Children, Families & Cultural Services",Debit,13.08,frank key (notts) ltd,01/08/2015
Nottinghamshire County Council,Minor Works,"Children, Families & Cultural Services",Debit,5.76,tesco pfs 4083,02/08/2015
Nottinghamshire County Council,Minor Works,"Children, Families & Cultural Services",Debit,24.00,robert m sansom plant lt,01/08/2015
Nottinghamshire County Council,Minor Works,"Children, Families & Cultural Services",Debit,18.86,wickes bulwell,31/07/2015
Nottinghamshire County Council,Minor Works,"Children, Families & Cultural Services",Debit,2.93,tesco stores 2702,30/07/2015
Nottinghamshire County Council,Minor Works,"Children, Families & Cultural Services",Debit,5.75,tesco pfs 4083,29/07/2015
Nottinghamshire County Council,Minor Works,"Children, Families & Cultural Services",Debit,4.82,tesco stores 2702,26/07/2015
Nottinghamshire County Council,Minor Works,"Children, Families & Cultural Services",Debit,4.92,tesco stores 2702,23/07/2015
Nottinghamshire County Council,Minor Works,"Children, Families & Cultural Services",Debit,2.54,sainsburys s/mkt,21/07/2015
Nottinghamshire County Council,Minor Works,"Children, Families & Cultural Services",Debit,37.00,frank key (notts) ltd,21/07/2015
Nottinghamshire County Council,Minor Works,"Children, Families & Cultural Services",Debit,5.75,tesco pfs 4083,16/07/2015
Nottinghamshire County Council,Minor Works,"Children, Families & Cultural Services",Debit,3.42,tesco stores 2702,16/07/2015
Nottinghamshire County Council,Minor Works,"Children, Families & Cultural Services",Debit,179.58,f martin ltd,15/07/2015
Nottinghamshire County Council,Minor Works,"Children, Families & Cultural Services",Debit,3.98,tesco stores 2702,13/07/2015
Nottinghamshire County Council,Minor Works,"Children, Families & Cultural Services",Debit,11.41,w m morrisons,08/07/2015
Nottinghamshire County Council,Minor Works,"Children, Families & Cultural Services",Debit,2.79,sainsburys s/mkt,07/07/2015
Nottinghamshire County Council,Minor Works,"Children, Families & Cultural Services",Debit,27.55,f martin ltd,07/07/2015
Nottinghamshire County Council,Minor Works,"Children, Families & Cultural Services",Debit,58.49,f martin ltd,06/07/2015
Nottinghamshire County Council,Minor Works,"Children, Families & Cultural Services",Debit,34.99,wickes bulwell,03/07/2015
Nottinghamshire County Council,Personal Needs,"Children, Families & Cultural Services",Debit,5.99,moorfields photographic,30/07/2015
Nottinghamshire County Council,Personal Needs,"Children, Families & Cultural Services",Debit,10.75,out to lunch,30/07/2015
Nottinghamshire County Council,Personal Needs,"Children, Families & Cultural Services",Debit,398.25,severn trent water,29/07/2015
Nottinghamshire County Council,Aftercare - Equipment,"Children, Families & Cultural Services",Debit,44.77,wilko retail limit,29/07/2015
Nottinghamshire County Council,Aftercare - Equipment,"Children, Families & Cultural Services",Debit,35.00,wilko retail limit,29/07/2015
Nottinghamshire County Council,Aftercare - Equipment,"Children, Families & Cultural Services",Debit,14.35,wilko retail limit,28/07/2015
Nottinghamshire County Council,Personal Needs,"Children, Families & Cultural Services",Debit,8.89,subway,28/07/2015
Nottinghamshire County Council,Personal Needs,"Children, Families & Cultural Services",Debit,399.48,argos ltd,28/07/2015
Nottinghamshire County Council,Personal Needs,"Children, Families & Cultural Services",Debit,3.50,the new art exchange l,28/07/2015
Nottinghamshire County Council,Aftercare - Equipment,"Children, Families & Cultural Services",Debit,44.70,sainsburys s/mkts,23/07/2015
Nottinghamshire County Council,Personal Needs,"Children, Families & Cultural Services",Debit,6.20,starbucks,22/07/2015
Nottinghamshire County Council,Aftercare - Equipment,"Children, Families & Cultural Services",Debit,135.10,asda superstore,14/07/2015
Nottinghamshire County Council,Personal Needs,"Children, Families & Cultural Services",Debit,64.40,qmc cashiers general o,10/07/2015
Nottinghamshire County Council,Activities & Support,"Children, Families & Cultural Services",Debit,18.13,asda store ston in as,03/08/2015
Nottinghamshire County Council,Activities & Support,"Children, Families & Cultural Services",Debit,27.50,sainsburys s/mkts,02/08/2015
Nottinghamshire County Council,Activities & Support,"Children, Families & Cultural Services",Debit,12.05,tesco stores (5378),27/07/2015
Nottinghamshire County Council,Activities & Support,"Children, Families & Cultural Services",Debit,15.29,amazon svcs europesar,21/07/2015
Nottinghamshire County Council,Activities & Support,"Children, Families & Cultural Services",Debit,22.61,amazon uk retail,16/07/2015
Nottinghamshire County Council,Activities & Support,"Children, Families & Cultural Services",Credit,-8.66,amazon uk marketplace,16/07/2015
Nottinghamshire County Council,Activities & Support,"Children, Families & Cultural Services",Credit,-12.49,amazon uk retail,16/07/2015
Nottinghamshire County Council,Activities & Support,"Children, Families & Cultural Services",Credit,-8.99,amazon svcs europesar,16/07/2015
Nottinghamshire County Council,Activities & Support,"Children, Families & Cultural Services",Debit,6.99,amazon svcs europesar,15/07/2015
Nottinghamshire County Council,Activities & Support,"Children, Families & Cultural Services",Debit,3.90,amazon uk retail,14/07/2015
Nottinghamshire County Council,Activities & Support,"Children, Families & Cultural Services",Credit,-14.19,amazon uk marketplace,13/07/2015
Nottinghamshire County Council,Activities & Support,"Children, Families & Cultural Services",Debit,57.87,argos ltd,13/07/2015
Nottinghamshire County Council,Activities & Support,"Children, Families & Cultural Services",Debit,12.99,amazon uk marketplace,13/07/2015
Nottinghamshire County Council,Activities & Support,"Children, Families & Cultural Services",Debit,12.98,amazon uk marketplace,13/07/2015
Nottinghamshire County Council,Activities & Support,"Children, Families & Cultural Services",Debit,60.98,argos ltd,10/07/2015
Nottinghamshire County Council,Activities & Support,"Children, Families & Cultural Services",Debit,6.49,amazon svcs europesar,10/07/2015
Nottinghamshire County Council,Activities & Support,"Children, Families & Cultural Services",Debit,8.99,amazon svcs europesar,10/07/2015
Nottinghamshire County Council,Activities & Support,"Children, Families & Cultural Services",Debit,8.66,amazon uk marketplace,10/07/2015
Nottinghamshire County Council,Activities & Support,"Children, Families & Cultural Services",Debit,12.49,amazon uk retail,10/07/2015
Nottinghamshire County Council,Activities & Support,"Children, Families & Cultural Services",Debit,12.00,poundworld retail,10/07/2015
Nottinghamshire County Council,Activities & Support,"Children, Families & Cultural Services",Debit,14.19,amazon uk marketplace,10/07/2015
Nottinghamshire County Council,Activities & Support,"Children, Families & Cultural Services",Debit,43.06,asda store ston in as,10/07/2015
Nottinghamshire County Council,Activities & Support,"Children, Families & Cultural Services",Debit,23.92,amazon uk marketplace,10/07/2015
Nottinghamshire County Council,Activities & Support,"Children, Families & Cultural Services",Debit,10.00,book people voucher,09/07/2015
Nottinghamshire County Council,Activities & Support,"Children, Families & Cultural Services",Debit,20.65,asda  stores 4201,03/08/2015
Nottinghamshire County Council,Activities & Support,"Children, Families & Cultural Services",Debit,2.20,waitrose 227,22/07/2015
Nottinghamshire County Council,Activities & Support,"Children, Families & Cultural Services",Debit,1.95,waitrose 227,22/07/2015
Nottinghamshire County Council,Activities & Support,"Children, Families & Cultural Services",Debit,2.15,waitrose 227,22/07/2015
Nottinghamshire County Council,Activities & Support,"Children, Families & Cultural Services",Debit,3.45,tesco stores 2995,21/07/2015
Nottinghamshire County Council,Activities & Support,"Children, Families & Cultural Services",Debit,3.30,tesco stores 2995,20/07/2015
Nottinghamshire County Council,Activities & Support,"Children, Families & Cultural Services",Debit,3.45,tesco stores 2995,13/07/2015
Nottinghamshire County Council,Activities & Support,"Children, Families & Cultural Services",Debit,10.00,tesco stores 2995,10/07/2015
Nottinghamshire County Council,Activities & Support,"Children, Families & Cultural Services",Debit,29.08,aldi,10/07/2015
Nottinghamshire County Council,Activities & Support,"Children, Families & Cultural Services",Debit,9.50,farmfoods- worksop,10/07/2015
Nottinghamshire County Council,Activities & Support,"Children, Families & Cultural Services",Debit,1.95,waitrose 227,08/07/2015
Nottinghamshire County Council,Activities & Support,"Children, Families & Cultural Services",Debit,2.20,waitrose 227,08/07/2015
Nottinghamshire County Council,Activities & Support,"Children, Families & Cultural Services",Debit,28.84,asda superstore,03/07/2015
Nottinghamshire County Council,Activities & Support,"Children, Families & Cultural Services",Debit,16.68,co-op group 065071,29/07/2015
Nottinghamshire County Council,Activities & Support,"Children, Families & Cultural Services",Debit,2.19,co-op group 065071,29/07/2015
Nottinghamshire County Council,Activities & Support,"Children, Families & Cultural Services",Debit,11.89,co-op group 065071,16/07/2015
Nottinghamshire County Council,Activities & Support,"Children, Families & Cultural Services",Debit,17.69,co-op group 065071,09/07/2015
Nottinghamshire County Council,Activities & Support,"Children, Families & Cultural Services",Debit,68.54,asda superstore 04030,07/07/2015
Nottinghamshire County Council,Materials - External,Environment & Resources,Debit,9.31,buildbase sutton,27/07/2015
Nottinghamshire County Council,Materials - External,Environment & Resources,Debit,82.32,www.uk.rs-online.c,15/07/2015
Nottinghamshire County Council,Activities & Support,"Children, Families & Cultural Services",Debit,325.50,www.teachershop.scholast,22/07/2015
Nottinghamshire County Council,Activities & Support,"Children, Families & Cultural Services",Debit,217.00,www.teachershop.scholast,22/07/2015
Nottinghamshire County Council,Activities & Support,"Children, Families & Cultural Services",Debit,244.25,dakota hotel,15/07/2015
Nottinghamshire County Council,Activities & Support,"Children, Families & Cultural Services",Debit,41.72,amazon uk retail,10/07/2015
Nottinghamshire County Council,Activities & Support,"Children, Families & Cultural Services",Debit,76.60,amazon uk marketplace,10/07/2015
Nottinghamshire County Council,Activities & Support,"Children, Families & Cultural Services",Debit,2.78,post office counter,03/08/2015
Nottinghamshire County Council,Provisions,"Children, Families & Cultural Services",Debit,75.85,sainsburys smkt,03/08/2015
Nottinghamshire County Council,Provisions,"Children, Families & Cultural Services",Debit,19.18,asda superstore,02/08/2015
Nottinghamshire County Council,Provisions,"Children, Families & Cultural Services",Debit,10.70,asda superstore,29/07/2015
Nottinghamshire County Council,Provisions,"Children, Families & Cultural Services",Debit,11.78,asda superstore,27/07/2015
Nottinghamshire County Council,Provisions,"Children, Families & Cultural Services",Debit,51.20,sainsburys smkt,27/07/2015
Nottinghamshire County Council,Provisions,"Children, Families & Cultural Services",Debit,50.30,sainsburys smkt,20/07/2015
Nottinghamshire County Council,Provisions,"Children, Families & Cultural Services",Debit,19.56,asda superstore,17/07/2015
Nottinghamshire County Council,Provisions,"Children, Families & Cultural Services",Debit,9.00,sainsburys smkt,15/07/2015
Nottinghamshire County Council,Provisions,"Children, Families & Cultural Services",Debit,66.06,sainsburys smkt,13/07/2015
Nottinghamshire County Council,Materials - External,Environment & Resources,Debit,41.86,john a stephens,27/07/2015
Nottinghamshire County Council,Materials - External,Environment & Resources,Debit,149.24,amazon uk retail,31/07/2015
Nottinghamshire County Council,Materials - External,Environment & Resources,Debit,144.32,amazon uk retail,30/07/2015
Nottinghamshire County Council,Materials - External,Environment & Resources,Debit,149.24,amazon uk retail,30/07/2015
Nottinghamshire County Council,Transport Asset Management Plan,Environment & Resources,Debit,31.81,amazon uk marketplace,20/07/2015
Nottinghamshire County Council,Transport Asset Management Plan,Environment & Resources,Debit,95.25,amazon uk retail,16/07/2015
Nottinghamshire County Council,Traffic Management,Environment & Resources,Debit,136.80,welco,14/07/2015
Nottinghamshire County Council,Materials - External,Environment & Resources,Debit,544.56,machine mart ltd,09/07/2015
Nottinghamshire County Council,Materials - External,Environment & Resources,Debit,70.80,avongard ltd,06/07/2015
Nottinghamshire County Council,Provisions,"Adult Social Care, Health & Public Protection ",Debit,2.80,tesco store 3439,28/07/2015
Nottinghamshire County Council,Provisions,"Adult Social Care, Health & Public Protection ",Debit,10.00,tesco store 3439,22/07/2015
Nottinghamshire County Council,Provisions,"Adult Social Care, Health & Public Protection ",Debit,10.99,tesco stores-3439,21/07/2015
Nottinghamshire County Council,Provisions,"Adult Social Care, Health & Public Protection ",Debit,36.91,tesco stores 5379,21/07/2015
Nottinghamshire County Council,Stationery,"Children, Families & Cultural Services",Debit,14.80,amazon uk marketplace,24/07/2015
Nottinghamshire County Council,Other Fee's & Services,"Children, Families & Cultural Services",Debit,261.70,gibbs  dandy,22/07/2015
Nottinghamshire County Council,Other Fee's & Services,"Children, Families & Cultural Services",Debit,248.42,safefoam,21/07/2015
Nottinghamshire County Council,Other Fee's & Services,"Children, Families & Cultural Services",Debit,16.96,wickes,21/07/2015
Nottinghamshire County Council,Hospitality,"Children, Families & Cultural Services",Debit,1.00,tesco pfs 2183,15/07/2015
Nottinghamshire County Council,Hospitality,"Children, Families & Cultural Services",Debit,2.78,aldi,14/07/2015
Nottinghamshire County Council,Other Fee's & Services,"Children, Families & Cultural Services",Debit,315.00,ikea,12/07/2015
Nottinghamshire County Council,Other Fee's & Services,"Children, Families & Cultural Services",Debit,45.00,ikea sacat,13/07/2015
Nottinghamshire County Council,Office / General Equipment,Place ,Debit,74.40,tesco stores 3297,22/07/2015
Nottinghamshire County Council,Subsistence Allowance,"Children, Families & Cultural Services",Debit,6.00,tesco stores 5417,30/07/2015
Nottinghamshire County Council,Specialist Equipment,"Children, Families & Cultural Services",Debit,362.18,amazon uk marketplace,10/07/2015
Nottinghamshire County Council,Personal Needs,"Children, Families & Cultural Services",Debit,33.20,amazon uk retail,09/07/2015
Nottinghamshire County Council,Clothing/Shoes/Uniforms,"Children, Families & Cultural Services",Debit,50.66,amz funzeeuk,06/07/2015
Nottinghamshire County Council,Provisions,"Children, Families & Cultural Services",Debit,327.24,owen taylor  sons,03/07/2015
Nottinghamshire County Council,Clothing/Shoes/Uniforms,"Children, Families & Cultural Services",Debit,133.70,amz funzeeuk,03/07/2015
Nottinghamshire County Council,Materials - External,Environment & Resources,Debit,54.00,plumb center tw,20/07/2015
Nottinghamshire County Council,Materials - External,Environment & Resources,Debit,84.38,plumb center tw,20/07/2015
Nottinghamshire County Council,Materials - External,Environment & Resources,Debit,278.40,plumb center tw,20/07/2015
Nottinghamshire County Council,Materials - External,Environment & Resources,Debit,255.05,plumb center tw,20/07/2015
Nottinghamshire County Council,Materials - External,Environment & Resources,Debit,77.76,bss group plc pts,14/07/2015
Nottinghamshire County Council,Materials - External,Environment & Resources,Debit,21.31,bss group plc pts,14/07/2015
Nottinghamshire County Council,Materials - External,Environment & Resources,Debit,10.58,bss group plc pts,14/07/2015
Nottinghamshire County Council,Materials - External,Environment & Resources,Debit,9.50,bss group plc pts,14/07/2015
Nottinghamshire County Council,Materials - External,Environment & Resources,Debit,3.92,bss group plc pts,14/07/2015
Nottinghamshire County Council,Materials - External,Environment & Resources,Debit,36.05,bss group plc,14/07/2015
Nottinghamshire County Council,Materials - External,Environment & Resources,Debit,11.87,bss group plc,14/07/2015
Nottinghamshire County Council,Materials - External,Environment & Resources,Debit,28.65,bss group plc,14/07/2015
Nottinghamshire County Council,Materials - External,Environment & Resources,Debit,5.94,bss group plc,14/07/2015
Nottinghamshire County Council,Materials - External,Environment & Resources,Debit,14.88,bss group plc,14/07/2015
Nottinghamshire County Council,Materials - External,Environment & Resources,Debit,3.82,bss group plc,14/07/2015
Nottinghamshire County Council,Materials - External,Environment & Resources,Debit,6.01,bss group plc,14/07/2015
Nottinghamshire County Council,Materials - External,Environment & Resources,Debit,23.53,bss group plc,14/07/2015
Nottinghamshire County Council,Materials - External,Environment & Resources,Debit,9.07,bss group plc,14/07/2015
Nottinghamshire County Council,Materials - External,Environment & Resources,Debit,5.98,bss group plc,14/07/2015
Nottinghamshire County Council,Materials - External,Environment & Resources,Debit,36.84,bss group plc,14/07/2015
Nottinghamshire County Council,Materials - External,Environment & Resources,Debit,255.18,tubes fittings,10/07/2015
Nottinghamshire County Council,Materials - External,Environment & Resources,Debit,47.04,tubes fittings,07/07/2015
Nottinghamshire County Council,Materials - External,Environment & Resources,Debit,293.71,tubes fittings,06/07/2015
Nottinghamshire County Council,Materials - External,Environment & Resources,Debit,293.71,tubes fittings,06/07/2015
Nottinghamshire County Council,Materials - External,Environment & Resources,Debit,272.02,tubes fittings,03/07/2015
Nottinghamshire County Council,Materials - External,Environment & Resources,Debit,488.78,tubes fittings,03/07/2015
Nottinghamshire County Council,Provisions,"Children, Families & Cultural Services",Debit,48.30,aldi,03/08/2015
Nottinghamshire County Council,Provisions,"Children, Families & Cultural Services",Debit,5.79,aldi,03/08/2015
Nottinghamshire County Council,Provisions,"Children, Families & Cultural Services",Debit,45.16,aldi,20/07/2015
Nottinghamshire County Council,Cleaning Materials,"Children, Families & Cultural Services",Debit,6.50,sainsburys s/mkts,20/07/2015
Nottinghamshire County Council,Office / General Equipment,"Children, Families & Cultural Services",Debit,16.00,fat boys,16/07/2015
Nottinghamshire County Council,Provisions,"Children, Families & Cultural Services",Debit,105.63,farmfoods limited,09/07/2015
Nottinghamshire County Council,Computer Equipment,Environment & Resources,Debit,64.98,amazon uk retail,03/08/2015
Nottinghamshire County Council,Computer Equipment,Environment & Resources,Debit,43.99,amazon uk marketplace,02/08/2015
Nottinghamshire County Council,Subsistence Allowance,Environment & Resources,Debit,238.95,lanhydrock hotel  golf,30/07/2015
Nottinghamshire County Council,Fuel - Diesel,Environment & Resources,Debit,30.00,morrisons petrol,31/07/2015
Nottinghamshire County Council,Fuel - Diesel,Environment & Resources,Debit,47.33,asda petrol,30/07/2015
Nottinghamshire County Council,Teaching Equipment,"Children, Families & Cultural Services",Debit,1.45,amazon uk marketplace,31/07/2015
Nottinghamshire County Council,Minor Works,"Children, Families & Cultural Services",Debit,54.99,avast nexway,30/07/2015
Nottinghamshire County Council,Teaching Equipment,"Children, Families & Cultural Services",Debit,24.00,amazon uk marketplace,30/07/2015
Nottinghamshire County Council,Teaching Equipment,"Children, Families & Cultural Services",Debit,20.98,amazon svcs europesar,30/07/2015
Nottinghamshire County Council,Teaching Equipment,"Children, Families & Cultural Services",Debit,86.34,findel ed ltd,30/07/2015
Nottinghamshire County Council,Clothing/Shoes/Uniforms,"Children, Families & Cultural Services",Credit,-6.99,amazon svcs europesar,29/07/2015
Nottinghamshire County Council,Pocket Money,"Children, Families & Cultural Services",Debit,23.68,amazon uk retail,29/07/2015
Nottinghamshire County Council,First Aid Equipment Purchases,"Children, Families & Cultural Services",Debit,175.68,www.safetyfirstaid.co.,29/07/2015
Nottinghamshire County Council,First Aid Equipment Purchases,"Children, Families & Cultural Services",Debit,39.98,amazon uk marketplace,28/07/2015
Nottinghamshire County Council,First Aid Equipment Purchases,"Children, Families & Cultural Services",Debit,40.00,scrivens opticians 084,28/07/2015
Nottinghamshire County Council,First Aid Equipment Purchases,"Children, Families & Cultural Services",Debit,18.80,[Redacted],28/07/2015
Nottinghamshire County Council,Stock,"Children, Families & Cultural Services",Debit,43.93,argos retail group,17/07/2015
Nottinghamshire County Council,Stock,"Children, Families & Cultural Services",Debit,32.67,amazon uk marketplace,17/07/2015
Nottinghamshire County Council,Office / General Equipment,"Children, Families & Cultural Services",Debit,54.00,post office counter,17/07/2015
Nottinghamshire County Council,Stock,"Children, Families & Cultural Services",Debit,3.62,amazon uk marketplace,17/07/2015
Nottinghamshire County Council,Stock,"Children, Families & Cultural Services",Debit,5.50,amazon uk marketplace,16/07/2015
Nottinghamshire County Council,Stock,"Children, Families & Cultural Services",Debit,28.99,amazon svcs europesar,16/07/2015
Nottinghamshire County Council,Stock,"Children, Families & Cultural Services",Debit,1.73,amazon svcs europesar,16/07/2015
Nottinghamshire County Council,Stock,"Children, Families & Cultural Services",Debit,15.96,amazon uk marketplace,16/07/2015
Nottinghamshire County Council,Teaching Equipment,"Children, Families & Cultural Services",Debit,8.99,argos retail group,16/07/2015
Nottinghamshire County Council,Office / General Equipment,"Children, Families & Cultural Services",Debit,9.98,argos retail group,16/07/2015
Nottinghamshire County Council,Office / General Equipment,"Children, Families & Cultural Services",Debit,23.91,argos retail group,16/07/2015
Nottinghamshire County Council,Other Public Transport,"Children, Families & Cultural Services",Debit,66.91,trainline.com,16/07/2015
Nottinghamshire County Council,Stock,"Children, Families & Cultural Services",Debit,21.40,amazon uk marketplace,16/07/2015
Nottinghamshire County Council,Stock,"Children, Families & Cultural Services",Debit,7.98,amazon uk marketplace,16/07/2015
Nottinghamshire County Council,Pocket Money,"Children, Families & Cultural Services",Debit,5.82,amazon uk marketplace,16/07/2015
Nottinghamshire County Council,Stock,"Children, Families & Cultural Services",Debit,6.68,amazon uk marketplace,16/07/2015
Nottinghamshire County Council,Stock,"Children, Families & Cultural Services",Debit,37.98,amazon uk marketplace,15/07/2015
Nottinghamshire County Council,Pocket Money,"Children, Families & Cultural Services",Debit,3.90,amazon svcs europesar,15/07/2015
Nottinghamshire County Council,Stock,"Children, Families & Cultural Services",Debit,3.00,amazon uk marketplace,15/07/2015
Nottinghamshire County Council,Stock,"Children, Families & Cultural Services",Debit,36.19,amazon uk marketplace,15/07/2015
Nottinghamshire County Council,Stock,"Children, Families & Cultural Services",Debit,13.61,amazon svcs europesar,15/07/2015
Nottinghamshire County Council,Stock,"Children, Families & Cultural Services",Debit,6.38,amazon uk marketplace,15/07/2015
Nottinghamshire County Council,Stock,"Children, Families & Cultural Services",Debit,16.00,amazon svcs europesar,15/07/2015
Nottinghamshire County Council,Personal Needs,"Children, Families & Cultural Services",Debit,34.76,tesco stores 5329,15/07/2015
Nottinghamshire County Council,Stock,"Children, Families & Cultural Services",Debit,35.39,tesco stores 5329,15/07/2015
Nottinghamshire County Council,Clothing/Shoes/Uniforms,"Children, Families & Cultural Services",Debit,18.33,tesco stores 5329,15/07/2015
Nottinghamshire County Council,Stock,"Children, Families & Cultural Services",Debit,18.98,amazon uk marketplace,15/07/2015
Nottinghamshire County Council,Stock,"Children, Families & Cultural Services",Debit,25.57,amazon uk marketplace,15/07/2015
Nottinghamshire County Council,Stock,"Children, Families & Cultural Services",Debit,6.99,amazon uk retail,15/07/2015
Nottinghamshire County Council,Stock,"Children, Families & Cultural Services",Debit,1.84,amazon uk marketplace,15/07/2015
Nottinghamshire County Council,Stock,"Children, Families & Cultural Services",Debit,20.00,amazon uk retail,15/07/2015
Nottinghamshire County Council,Stock,"Children, Families & Cultural Services",Debit,5.39,amazon uk marketplace,15/07/2015
Nottinghamshire County Council,Stock,"Children, Families & Cultural Services",Debit,37.43,amazon uk marketplace,15/07/2015
Nottinghamshire County Council,Stock,"Children, Families & Cultural Services",Debit,3.89,amazon svcs europesar,15/07/2015
Nottinghamshire County Council,Stock,"Children, Families & Cultural Services",Debit,8.99,amazon uk retail,15/07/2015
Nottinghamshire County Council,Stock,"Children, Families & Cultural Services",Debit,8.70,amazon svcs europesar,15/07/2015
Nottinghamshire County Council,Pocket Money,"Children, Families & Cultural Services",Debit,2.49,amazon uk marketplace,15/07/2015
Nottinghamshire County Council,Stock,"Children, Families & Cultural Services",Debit,2.95,amazon svcs europesar,15/07/2015
Nottinghamshire County Council,Stock,"Children, Families & Cultural Services",Debit,5.00,amazon uk retail,15/07/2015
Nottinghamshire County Council,Pocket Money,"Children, Families & Cultural Services",Debit,4.00,amazon svcs europesar,15/07/2015
Nottinghamshire County Council,Stock,"Children, Families & Cultural Services",Debit,8.98,amazon uk marketplace,15/07/2015
Nottinghamshire County Council,Pocket Money,"Children, Families & Cultural Services",Debit,3.73,amazon uk marketplace,15/07/2015
Nottinghamshire County Council,Pocket Money,"Children, Families & Cultural Services",Debit,3.49,amazon uk retail,15/07/2015
Nottinghamshire County Council,Personal Needs,"Children, Families & Cultural Services",Debit,17.52,bargain buys,14/07/2015
Nottinghamshire County Council,Office / General Equipment,"Children, Families & Cultural Services",Debit,27.00,tesco direct,10/07/2015
Nottinghamshire County Council,Office / General Equipment,"Children, Families & Cultural Services",Debit,65.00,tesco - tescopay,10/07/2015
Nottinghamshire County Council,Office / General Equipment,"Children, Families & Cultural Services",Debit,43.94,argos retail group,10/07/2015
Nottinghamshire County Council,Stock,"Children, Families & Cultural Services",Credit,-11.90,amazon svcs europesar,10/07/2015
Nottinghamshire County Council,Stock,"Children, Families & Cultural Services",Debit,13.48,amazon uk retail,09/07/2015
Nottinghamshire County Council,First Aid Equipment Purchases,"Children, Families & Cultural Services",Debit,8.49,amazon svcs europesar,09/07/2015
Nottinghamshire County Council,Stock,"Children, Families & Cultural Services",Debit,10.50,amazon uk retail,09/07/2015
Nottinghamshire County Council,Stock,"Children, Families & Cultural Services",Debit,3.66,amazon uk marketplace,09/07/2015
Nottinghamshire County Council,Pocket Money,"Children, Families & Cultural Services",Debit,23.99,paypal  ,09/07/2015
Nottinghamshire County Council,Stock,"Children, Families & Cultural Services",Debit,13.48,amazon uk retail,09/07/2015
Nottinghamshire County Council,Office / General Equipment,"Children, Families & Cultural Services",Debit,35.00,flower craft,09/07/2015
Nottinghamshire County Council,Other Public Transport,"Children, Families & Cultural Services",Debit,26.88,freds of ilkeston,09/07/2015
Nottinghamshire County Council,Pocket Money,"Children, Families & Cultural Services",Credit,-299.00,dv247 limited,09/07/2015
Nottinghamshire County Council,Stock,"Children, Families & Cultural Services",Debit,91.97,argos ltd,08/07/2015
Nottinghamshire County Council,Stock,"Children, Families & Cultural Services",Credit,-13.36,amazon uk marketplace,08/07/2015
Nottinghamshire County Council,Teaching Equipment,"Children, Families & Cultural Services",Credit,-70.00,dv247 limited,08/07/2015
Nottinghamshire County Council,Pocket Money,"Children, Families & Cultural Services",Debit,4.22,amazon uk marketplace,08/07/2015
Nottinghamshire County Council,Pocket Money,"Children, Families & Cultural Services",Debit,15.88,amazon uk marketplace,08/07/2015
Nottinghamshire County Council,Stock,"Children, Families & Cultural Services",Debit,5.94,99p stores ltd,07/07/2015
Nottinghamshire County Council,Stock,"Children, Families & Cultural Services",Debit,13.36,amazon uk marketplace,07/07/2015
Nottinghamshire County Council,Clothing/Shoes/Uniforms,"Children, Families & Cultural Services",Debit,28.00,amazon uk retail,07/07/2015
Nottinghamshire County Council,Stock,"Children, Families & Cultural Services",Debit,5.68,amazon uk marketplace,07/07/2015
Nottinghamshire County Council,Clothing/Shoes/Uniforms,"Children, Families & Cultural Services",Debit,9.94,amazon svcs europesar,07/07/2015
Nottinghamshire County Council,Stock,"Children, Families & Cultural Services",Debit,11.90,amazon svcs europesar,07/07/2015
Nottinghamshire County Council,Stock,"Children, Families & Cultural Services",Debit,57.53,tesco stores 2733,07/07/2015
Nottinghamshire County Council,Clothing/Shoes/Uniforms,"Children, Families & Cultural Services",Debit,9.99,amazon svcs europesar,06/07/2015
Nottinghamshire County Council,Clothing/Shoes/Uniforms,"Children, Families & Cultural Services",Debit,9.99,amazon svcs europesar,06/07/2015
Nottinghamshire County Council,Clothing/Shoes/Uniforms,"Children, Families & Cultural Services",Debit,44.98,amazon uk retail,06/07/2015
Nottinghamshire County Council,Activities & Support,"Children, Families & Cultural Services",Debit,28.00,tesco store 2964,21/07/2015
Nottinghamshire County Council,Other Fee's & Services,Environment & Resources,Debit,70.00,www.moneyclaim.gov,08/07/2015
Nottinghamshire County Council,Other Fee's & Services,Environment & Resources,Debit,70.00,www.moneyclaim.gov,06/07/2015
Nottinghamshire County Council,Other Fee's & Services,Environment & Resources,Debit,70.00,www.moneyclaim.gov,06/07/2015
Nottinghamshire County Council,Other Fee's & Services,Environment & Resources,Debit,25.00,www.moneyclaim.gov,06/07/2015
Nottinghamshire County Council,Other Fee's & Services,Environment & Resources,Debit,25.00,www.moneyclaim.gov,03/07/2015
Nottinghamshire County Council,Other Fee's & Services,Environment & Resources,Debit,105.00,www.moneyclaim.gov,03/07/2015
Nottinghamshire County Council,Other Fee's & Services,"Children, Families & Cultural Services",Debit,82.25,post office counter,28/07/2015
Nottinghamshire County Council,Other Fee's & Services,"Children, Families & Cultural Services",Debit,23.40,gro hm passport office,27/07/2015
Nottinghamshire County Council,Other Fee's & Services,"Children, Families & Cultural Services",Debit,0.50,ips durham contact ctr,20/07/2015
Nottinghamshire County Council,Other Fee's & Services,"Children, Families & Cultural Services",Debit,223.00,post office counter,14/07/2015
Nottinghamshire County Council,Activities & Support,"Adult Social Care, Health & Public Protection ",Debit,155.22,js online grocery,30/07/2015
Nottinghamshire County Council,Activities & Support,"Adult Social Care, Health & Public Protection ",Debit,154.20,js online grocery,25/07/2015
Nottinghamshire County Council,Activities & Support,"Adult Social Care, Health & Public Protection ",Debit,144.35,js online grocery,03/07/2015
Nottinghamshire County Council,Other Fee's & Services,"Adult Social Care, Health & Public Protection ",Debit,11.50,tfl cc/lez charge,31/07/2015
Nottinghamshire County Council,Other Fee's & Services,"Adult Social Care, Health & Public Protection ",Credit,-4.00,worcestershire cc,14/07/2015
Nottinghamshire County Council,Other Fee's & Services,"Adult Social Care, Health & Public Protection ",Debit,12.84,www.kidits.es,09/07/2015
Nottinghamshire County Council,Other Fee's & Services,"Adult Social Care, Health & Public Protection ",Debit,179.94,www.192.com,08/07/2015
Nottinghamshire County Council,Activities & Support,"Children, Families & Cultural Services",Debit,8.44,aldi,21/07/2015
Nottinghamshire County Council,Activities & Support,"Children, Families & Cultural Services",Debit,11.18,mcdonalds,14/07/2015
Nottinghamshire County Council,Activities & Support,"Children, Families & Cultural Services",Debit,7.10,aldi,07/07/2015
Nottinghamshire County Council,Cleaning Materials,"Adult Social Care, Health & Public Protection ",Debit,12.00,next 0013 newark north,22/07/2015
Nottinghamshire County Council,Cleaning Materials,"Adult Social Care, Health & Public Protection ",Debit,23.94,poundstretcher 636,20/07/2015
Nottinghamshire County Council,Cleaning Materials,"Adult Social Care, Health & Public Protection ",Debit,23.96,wilko retail limit,08/07/2015
Nottinghamshire County Council,Materials - External,Environment & Resources,Debit,49.85,tesco pfs 4061,16/07/2015
Nottinghamshire County Council,Materials - External,Environment & Resources,Debit,52.27,smiths timber merch ltd,07/07/2015
Nottinghamshire County Council,Legal Fees,"Policy, Planning & Corporate Services",Debit,280.00,county court,30/07/2015
Nottinghamshire County Council,Legal Fees,"Policy, Planning & Corporate Services",Debit,455.00,county court,17/07/2015
Nottinghamshire County Council,Legal Fees,"Policy, Planning & Corporate Services",Debit,455.00,county court,17/07/2015
Nottinghamshire County Council,Legal Fees,"Policy, Planning & Corporate Services",Debit,19.87,gotocitrix.com,15/07/2015
Nottinghamshire County Council,Legal Fees,"Policy, Planning & Corporate Services",Debit,170.00,county court,14/07/2015
Nottinghamshire County Council,Legal Fees,"Policy, Planning & Corporate Services",Debit,10.44,gotocitrix.com,11/07/2015
Nottinghamshire County Council,Legal Fees,"Policy, Planning & Corporate Services",Debit,12.13,gotocitrix.com,10/07/2015
Nottinghamshire County Council,Legal Fees,"Policy, Planning & Corporate Services",Debit,"2,055.00",county court,09/07/2015
Nottinghamshire County Council,Legal Fees,"Policy, Planning & Corporate Services",Debit,155.00,county court,09/07/2015
Nottinghamshire County Council,Legal Fees,"Policy, Planning & Corporate Services",Debit,155.00,county court,09/07/2015
Nottinghamshire County Council,Legal Fees,"Policy, Planning & Corporate Services",Debit,"2,055.00",county court,09/07/2015
Nottinghamshire County Council,Legal Fees,"Policy, Planning & Corporate Services",Debit,"2,055.00",county court,09/07/2015
Nottinghamshire County Council,Legal Fees,"Policy, Planning & Corporate Services",Debit,"2,055.00",county court,09/07/2015
Nottinghamshire County Council,Legal Fees,"Policy, Planning & Corporate Services",Debit,"2,055.00",county court,09/07/2015
Nottinghamshire County Council,Legal Fees,"Policy, Planning & Corporate Services",Debit,155.00,county court,09/07/2015
Nottinghamshire County Council,Legal Fees,"Policy, Planning & Corporate Services",Debit,50.00,county court,09/07/2015
Nottinghamshire County Council,Legal Fees,"Policy, Planning & Corporate Services",Debit,10.44,gotocitrix.com,09/07/2015
Nottinghamshire County Council,Legal Fees,"Policy, Planning & Corporate Services",Debit,"2,055.00",county court,09/07/2015
Nottinghamshire County Council,Legal Fees,"Policy, Planning & Corporate Services",Debit,50.00,county court,09/07/2015
Nottinghamshire County Council,Legal Fees,"Policy, Planning & Corporate Services",Debit,155.00,county court,09/07/2015
Nottinghamshire County Council,Legal Fees,"Policy, Planning & Corporate Services",Debit,280.00,county court,08/07/2015
Nottinghamshire County Council,Legal Fees,"Policy, Planning & Corporate Services",Debit,28.19,gotocitrix.com,08/07/2015
Nottinghamshire County Council,Legal Fees,"Policy, Planning & Corporate Services",Debit,455.00,county court,07/07/2015
Nottinghamshire County Council,Legal Fees,"Policy, Planning & Corporate Services",Debit,455.00,county court,03/07/2015
Nottinghamshire County Council,Legal Fees,"Policy, Planning & Corporate Services",Debit,455.00,county court,03/07/2015
Nottinghamshire County Council,Legal Fees,"Policy, Planning & Corporate Services",Debit,455.00,county court,03/07/2015
Nottinghamshire County Council,Legal Fees,"Policy, Planning & Corporate Services",Debit,455.00,county court,03/07/2015
Nottinghamshire County Council,Minor Works,"Children, Families & Cultural Services",Debit,7.93,amazon uk marketplace,10/07/2015
Nottinghamshire County Council,Provisions,"Children, Families & Cultural Services",Debit,3.40,bargain booze,31/07/2015
Nottinghamshire County Council,Provisions,"Children, Families & Cultural Services",Debit,61.54,aldi,27/07/2015
Nottinghamshire County Council,Provisions,"Children, Families & Cultural Services",Debit,36.48,aldi,24/07/2015
Nottinghamshire County Council,Cleaning Materials,"Children, Families & Cultural Services",Debit,30.25,asda superstore 04261,14/07/2015
Nottinghamshire County Council,Provisions,"Children, Families & Cultural Services",Debit,60.84,aldi,13/07/2015
Nottinghamshire County Council,Provisions,"Children, Families & Cultural Services",Debit,4.14,bargain booze,12/07/2015
Nottinghamshire County Council,Provisions,"Children, Families & Cultural Services",Debit,2.95,tesco stores 5379,11/07/2015
Nottinghamshire County Council,Office / General Equipment,"Children, Families & Cultural Services",Debit,4.09,argos ltd,11/07/2015
Nottinghamshire County Council,Personal Needs,"Children, Families & Cultural Services",Debit,17.30,sainsburys s/mkts,06/07/2015
Nottinghamshire County Council,Provisions,"Children, Families & Cultural Services",Debit,19.10,odeon,06/07/2015
Nottinghamshire County Council,Clothing/Shoes/Uniforms,"Children, Families & Cultural Services",Debit,5.49,new look 2015,06/07/2015
Nottinghamshire County Council,Activities & Support,"Children, Families & Cultural Services",Debit,0.59,co-op group 011261,23/07/2015
Nottinghamshire County Council,Activities & Support,"Children, Families & Cultural Services",Debit,6.00,b  m retail,23/07/2015
Nottinghamshire County Council,Activities & Support,"Children, Families & Cultural Services",Debit,32.95,b  m retail,21/07/2015
Nottinghamshire County Council,Activities & Support,"Children, Families & Cultural Services",Debit,1.99,co-op group 011261,21/07/2015
Nottinghamshire County Council,Activities & Support,"Children, Families & Cultural Services",Debit,2.50,asda superstore,20/07/2015
Nottinghamshire County Council,Activities & Support,"Children, Families & Cultural Services",Debit,40.00,asda superstore,15/07/2015
Nottinghamshire County Council,Activities & Support,"Children, Families & Cultural Services",Debit,21.24,b  m retail,15/07/2015
Nottinghamshire County Council,Activities & Support,"Children, Families & Cultural Services",Debit,5.95,aldi,15/07/2015
Nottinghamshire County Council,Activities & Support,"Children, Families & Cultural Services",Debit,3.42,co-op group 011261,15/07/2015
Nottinghamshire County Council,Activities & Support,"Children, Families & Cultural Services",Debit,6.00,asda superstore,15/07/2015
Nottinghamshire County Council,Activities & Support,"Children, Families & Cultural Services",Debit,12.78,b  m retail,14/07/2015
Nottinghamshire County Council,Activities & Support,"Children, Families & Cultural Services",Debit,2.07,co-op group 011261,09/07/2015
Nottinghamshire County Council,Activities & Support,"Children, Families & Cultural Services",Debit,10.99,mapperley footwear  spo,09/07/2015
Nottinghamshire County Council,Activities & Support,"Children, Families & Cultural Services",Credit,-6.31,co-op group 011261,07/07/2015
Nottinghamshire County Council,Activities & Support,"Children, Families & Cultural Services",Debit,3.20,w boyes  co ltd arnol,09/07/2015
Nottinghamshire County Council,Activities & Support,"Children, Families & Cultural Services",Debit,9.08,asda superstore,09/07/2015
Nottinghamshire County Council,Activities & Support,"Children, Families & Cultural Services",Debit,6.31,co-op group 011261,07/07/2015
Nottinghamshire County Council,Activities & Support,"Children, Families & Cultural Services",Debit,6.31,co-op group 011261,07/07/2015
Nottinghamshire County Council,Activities & Support,"Children, Families & Cultural Services",Debit,57.80,calverton leisure,07/07/2015
Nottinghamshire County Council,Activities & Support,"Children, Families & Cultural Services",Debit,27.28,b  m retail,07/07/2015
Nottinghamshire County Council,Activities & Support,"Children, Families & Cultural Services",Debit,169.00,travelodge website,24/07/2015
Nottinghamshire County Council,Activities & Support,"Children, Families & Cultural Services",Debit,88.00,travelodge website,22/07/2015
Nottinghamshire County Council,Activities & Support,"Children, Families & Cultural Services",Debit,48.00,travelodge website,21/07/2015
Nottinghamshire County Council,Activities & Support,"Children, Families & Cultural Services",Debit,42.00,travelodge website,20/07/2015
Nottinghamshire County Council,Other Fee's & Services,"Adult Social Care, Health & Public Protection ",Debit,265.20,parkway secure storage,24/07/2015
Nottinghamshire County Council,Office / General Equipment,"Adult Social Care, Health & Public Protection ",Debit,4.85,amazon svcs europesar,15/07/2015
Nottinghamshire County Council,Postages,"Adult Social Care, Health & Public Protection ",Debit,3.90,post office counter,15/07/2015
Nottinghamshire County Council,Catering Consumables,"Adult Social Care, Health & Public Protection ",Debit,46.78,kroy (europe) ltd,09/07/2015
Nottinghamshire County Council,Office / General Equipment,"Adult Social Care, Health & Public Protection ",Debit,130.80,selectamark,08/07/2015
Nottinghamshire County Council,Activities & Support,"Children, Families & Cultural Services",Debit,6.39,budgens keyworth,28/07/2015
Nottinghamshire County Council,Activities & Support,"Children, Families & Cultural Services",Debit,27.80,w m morrisons,21/07/2015
Nottinghamshire County Council,Activities & Support,"Children, Families & Cultural Services",Debit,29.46,w m morrisons,09/07/2015
Nottinghamshire County Council,Activities & Support,"Children, Families & Cultural Services",Debit,6.05,budgens keyworth,07/07/2015
Nottinghamshire County Council,Building Maintenance,Environment & Resources,Debit,95.76,dulux decorator centre,14/07/2015
Nottinghamshire County Council,Building Maintenance,Environment & Resources,Debit,22.12,john a stephens,28/07/2015
Nottinghamshire County Council,Building Maintenance,Environment & Resources,Debit,11.82,john a stephens,24/07/2015
Nottinghamshire County Council,Building Maintenance,Environment & Resources,Debit,42.56,alltools ltd,16/07/2015
Nottinghamshire County Council,Building Maintenance,Environment & Resources,Debit,17.10,jackson building ctrs lt,14/07/2015
Nottinghamshire County Council,Office / General Equipment,"Policy, Planning & Corporate Services",Debit,155.94,pasthorizon,08/07/2015
Nottinghamshire County Council,Activities & Support,"Children, Families & Cultural Services",Debit,22.26,tesco stores,24/07/2015
Nottinghamshire County Council,Activities & Support,"Children, Families & Cultural Services",Debit,8.35,tesco stores 5329,22/07/2015
Nottinghamshire County Council,Activities & Support,"Children, Families & Cultural Services",Debit,5.07,tesco stores 5329,17/07/2015
Nottinghamshire County Council,Activities & Support,"Children, Families & Cultural Services",Debit,4.61,tesco stores 3297,16/07/2015
Nottinghamshire County Council,Activities & Support,"Children, Families & Cultural Services",Debit,16.31,asda stores,10/07/2015
Nottinghamshire County Council,Activities & Support,"Children, Families & Cultural Services",Debit,2.56,tesco stores 2366,08/07/2015
Nottinghamshire County Council,Activities & Support,"Children, Families & Cultural Services",Debit,6.68,mcdonalds,30/07/2015
Nottinghamshire County Council,Activities & Support,"Children, Families & Cultural Services",Debit,8.76,mcdonalds,24/07/2015
Nottinghamshire County Council,Activities & Support,"Children, Families & Cultural Services",Debit,5.90,kings coffee shop,23/07/2015
Nottinghamshire County Council,Activities & Support,"Children, Families & Cultural Services",Debit,5.65,eve trades cic-woodtho,09/07/2015
Nottinghamshire County Council,Other Fee's & Services,Place,Debit,5.10,jewson  br140,15/07/2015
Nottinghamshire County Council,Other Fee's & Services,Place,Debit,9.00,jewson  br140,15/07/2015
Nottinghamshire County Council,Other Fee's & Services,Place,Debit,24.00,jewson  br140,15/07/2015
Nottinghamshire County Council,Other Fee's & Services,Place,Debit,23.95,new hollybeck nurs,13/07/2015
Nottinghamshire County Council,Other Fee's & Services,Place,Debit,79.96,s jeyes  son (midland,09/07/2015
Nottinghamshire County Council,Activities & Support,"Children, Families & Cultural Services",Debit,41.36,poundstretcher 349,03/08/2015
Nottinghamshire County Council,Activities & Support,"Children, Families & Cultural Services",Debit,8.29,wm morrisons,23/07/2015
Nottinghamshire County Council,Activities & Support,"Children, Families & Cultural Services",Credit,-10.50,hobbycraft,20/07/2015
Nottinghamshire County Council,Activities & Support,"Children, Families & Cultural Services",Debit,123.44,hobbycraft,20/07/2015
Nottinghamshire County Council,Activities & Support,"Children, Families & Cultural Services",Debit,9.95,the range nottinghamsh,19/07/2015
Nottinghamshire County Council,Activities & Support,"Children, Families & Cultural Services",Debit,4.00,wm morrisons,17/07/2015
Nottinghamshire County Council,Activities & Support,"Children, Families & Cultural Services",Debit,39.96,decathlon,17/07/2015
Nottinghamshire County Council,Activities & Support,"Children, Families & Cultural Services",Debit,177.50,ticketmaster uk,16/07/2015
Nottinghamshire County Council,Activities & Support,"Children, Families & Cultural Services",Debit,16.49,amazon svcs europesar,13/07/2015
Nottinghamshire County Council,Activities & Support,"Children, Families & Cultural Services",Debit,13.41,amazon svcs europesar,13/07/2015
Nottinghamshire County Council,Activities & Support,"Children, Families & Cultural Services",Debit,42.05,wm morrisons,13/07/2015
Nottinghamshire County Council,Activities & Support,"Children, Families & Cultural Services",Debit,10.89,wm morrisons,09/07/2015
Nottinghamshire County Council,Activities & Support,"Children, Families & Cultural Services",Debit,23.50,hallcroft coarse f,31/07/2015
Nottinghamshire County Council,Activities & Support,"Children, Families & Cultural Services",Debit,21.94,farmfoods- worksop,30/07/2015
Nottinghamshire County Council,Activities & Support,"Children, Families & Cultural Services",Debit,12.83,welcome break whs,28/07/2015
Nottinghamshire County Council,Personal Needs,"Children, Families & Cultural Services",Debit,13.00,disclosure  barring,03/07/2015
Nottinghamshire County Council,Software Purchases,Resources ,Debit,296.43,entrust inc.,30/07/2015
Nottinghamshire County Council,Software Purchases,Resources ,Debit,611.96,godaddy com europe,30/07/2015
Nottinghamshire County Council,Software Purchases,Resources ,Debit,92.39,dri xmind 6,28/07/2015
Nottinghamshire County Council,Software Purchases,Resources ,Debit,69.55,pure chat inc,23/07/2015
Nottinghamshire County Council,Software Purchases,Resources ,Debit,1.66,pure chat inc,22/07/2015
Nottinghamshire County Council,Software Purchases,Resources ,Debit,6.00,nominet uk,08/07/2015
Nottinghamshire County Council,Activities & Support,"Children, Families & Cultural Services",Debit,15.00,the holocaust centre,28/07/2015
Nottinghamshire County Council,Activities & Support,"Children, Families & Cultural Services",Debit,13.17,tesco stores 5437,28/07/2015
Nottinghamshire County Council,Activities & Support,"Children, Families & Cultural Services",Debit,12.69,tesco stores 5437,15/07/2015
Nottinghamshire County Council,Training Fees,"Adult Social Care, Health & Public Protection ",Debit,39.00,b  q,30/07/2015
Nottinghamshire County Council,Training Fees,"Adult Social Care, Health & Public Protection ",Debit,78.00,b  q,30/07/2015
Nottinghamshire County Council,Training Fees,"Adult Social Care, Health & Public Protection ",Debit,10.00,b  q,15/07/2015
Nottinghamshire County Council,Training Fees,"Adult Social Care, Health & Public Protection ",Debit,5.00,b  q,15/07/2015
Nottinghamshire County Council,Training Fees,"Adult Social Care, Health & Public Protection ",Debit,16.00,b  q,15/07/2015
Nottinghamshire County Council,Training Fees,"Adult Social Care, Health & Public Protection ",Debit,12.00,b  q,15/07/2015
Nottinghamshire County Council,Training Fees,"Adult Social Care, Health & Public Protection ",Debit,87.00,b  q,15/07/2015
Nottinghamshire County Council,Training Fees,"Adult Social Care, Health & Public Protection ",Debit,10.00,b  q,15/07/2015
Nottinghamshire County Council,Training Fees,"Adult Social Care, Health & Public Protection ",Debit,6.42,b  q,15/07/2015
Nottinghamshire County Council,Training Fees,"Adult Social Care, Health & Public Protection ",Debit,12.00,b  q,15/07/2015
Nottinghamshire County Council,Training Fees,"Adult Social Care, Health & Public Protection ",Debit,16.00,b  q,15/07/2015
Nottinghamshire County Council,Training Fees,"Adult Social Care, Health & Public Protection ",Debit,6.42,b  q,15/07/2015
Nottinghamshire County Council,Training Fees,"Adult Social Care, Health & Public Protection ",Debit,5.00,b  q,15/07/2015
Nottinghamshire County Council,Training Fees,"Adult Social Care, Health & Public Protection ",Debit,6.00,b  q,15/07/2015
Nottinghamshire County Council,Training Fees,"Adult Social Care, Health & Public Protection ",Debit,6.00,b  q,15/07/2015
Nottinghamshire County Council,Training Fees,"Adult Social Care, Health & Public Protection ",Debit,6.00,b  q,14/07/2015
Nottinghamshire County Council,Training Fees,"Adult Social Care, Health & Public Protection ",Debit,2.27,b  q,14/07/2015
Nottinghamshire County Council,Training Fees,"Adult Social Care, Health & Public Protection ",Debit,1.97,b  q,14/07/2015
Nottinghamshire County Council,Training Fees,"Adult Social Care, Health & Public Protection ",Debit,26.98,b  q,14/07/2015
Nottinghamshire County Council,Training Fees,"Adult Social Care, Health & Public Protection ",Debit,15.00,b  q,14/07/2015
Nottinghamshire County Council,Training Fees,"Adult Social Care, Health & Public Protection ",Debit,20.00,b  q,14/07/2015
Nottinghamshire County Council,Training Fees,"Adult Social Care, Health & Public Protection ",Debit,11.53,b  q,14/07/2015
Nottinghamshire County Council,Training Fees,"Adult Social Care, Health & Public Protection ",Debit,0.70,b  q,14/07/2015
Nottinghamshire County Council,Training Fees,"Adult Social Care, Health & Public Protection ",Debit,97.00,b  q,14/07/2015
Nottinghamshire County Council,Training Fees,"Adult Social Care, Health & Public Protection ",Debit,37.00,b  q,14/07/2015
Nottinghamshire County Council,Training Fees,"Adult Social Care, Health & Public Protection ",Debit,6.00,b  q,14/07/2015
Nottinghamshire County Council,Training Fees,"Adult Social Care, Health & Public Protection ",Debit,50.00,b  q,14/07/2015
Nottinghamshire County Council,Training Fees,"Adult Social Care, Health & Public Protection ",Debit,24.98,b  q,14/07/2015
Nottinghamshire County Council,Training Fees,"Adult Social Care, Health & Public Protection ",Debit,2.27,b  q,14/07/2015
Nottinghamshire County Council,Training Fees,"Adult Social Care, Health & Public Protection ",Debit,2.43,b  q,14/07/2015
Nottinghamshire County Council,Training Fees,"Adult Social Care, Health & Public Protection ",Debit,6.00,b  q,14/07/2015
Nottinghamshire County Council,Training Fees,"Adult Social Care, Health & Public Protection ",Debit,0.70,b  q,14/07/2015
Nottinghamshire County Council,Training Fees,"Adult Social Care, Health & Public Protection ",Debit,2.27,b  q,14/07/2015
Nottinghamshire County Council,Training Fees,"Adult Social Care, Health & Public Protection ",Debit,9.73,b  q,14/07/2015
Nottinghamshire County Council,Training Fees,"Adult Social Care, Health & Public Protection ",Debit,11.53,b  q,14/07/2015
Nottinghamshire County Council,Training Fees,"Adult Social Care, Health & Public Protection ",Debit,9.98,b  q,14/07/2015
Nottinghamshire County Council,Training Fees,"Adult Social Care, Health & Public Protection ",Debit,125.00,b  q,14/07/2015
Nottinghamshire County Council,Training Fees,"Adult Social Care, Health & Public Protection ",Debit,0.70,b  q,14/07/2015
Nottinghamshire County Council,Training Fees,"Adult Social Care, Health & Public Protection ",Debit,6.00,b  q,14/07/2015
Nottinghamshire County Council,Training Fees,"Adult Social Care, Health & Public Protection ",Debit,6.00,b  q,14/07/2015
Nottinghamshire County Council,Training Fees,"Adult Social Care, Health & Public Protection ",Debit,0.70,b  q,14/07/2015
Nottinghamshire County Council,Training Fees,"Adult Social Care, Health & Public Protection ",Debit,2.27,b  q,14/07/2015
Nottinghamshire County Council,Training Fees,"Adult Social Care, Health & Public Protection ",Debit,35.00,b  q,14/07/2015
Nottinghamshire County Council,Training Fees,"Adult Social Care, Health & Public Protection ",Debit,9.98,b  q,14/07/2015
Nottinghamshire County Council,Training Fees,"Adult Social Care, Health & Public Protection ",Debit,2.27,b  q,14/07/2015
Nottinghamshire County Council,Training Fees,"Adult Social Care, Health & Public Protection ",Debit,61.30,ikea,30/07/2015
Nottinghamshire County Council,Training Fees,"Adult Social Care, Health & Public Protection ",Debit,38.90,poundstretcher 136,30/07/2015
Nottinghamshire County Council,Training Fees,"Adult Social Care, Health & Public Protection ",Debit,"1,459.90",b  q,10/07/2015
Nottinghamshire County Council,Training Fees,"Adult Social Care, Health & Public Protection ",Debit,289.98,currys,16/07/2015
Nottinghamshire County Council,Training Fees,"Adult Social Care, Health & Public Protection ",Debit,258.90,payatrader,15/07/2015
Nottinghamshire County Council,Training Fees,"Adult Social Care, Health & Public Protection ",Debit,136.00,b  q,15/07/2015
Nottinghamshire County Council,Training Fees,"Adult Social Care, Health & Public Protection ",Debit,49.96,asda store ston in as,13/07/2015
Nottinghamshire County Council,Training Fees,"Adult Social Care, Health & Public Protection ",Debit,33.24,argos ltd,13/07/2015
Nottinghamshire County Council,Training Fees,"Adult Social Care, Health & Public Protection ",Debit,71.76,chiltern mills,13/07/2015
Nottinghamshire County Council,Training Fees,"Adult Social Care, Health & Public Protection ",Debit,405.95,tesco direct,10/07/2015
Nottinghamshire County Council,Training Fees,"Adult Social Care, Health & Public Protection ",Debit,42.50,wilko retail limit,05/07/2015
Nottinghamshire County Council,Aftercare - Equipment,"Children, Families & Cultural Services",Debit,208.94,argos retail group,23/07/2015
Nottinghamshire County Council,Clients - H & S Equipt,"Children, Families & Cultural Services",Debit,32.55,strada,20/07/2015
Nottinghamshire County Council,Aftercare - Equipment,"Children, Families & Cultural Services",Debit,71.90,wilko.com,15/07/2015
Nottinghamshire County Council,Aftercare - Equipment,"Children, Families & Cultural Services",Debit,220.00,furniture town,14/07/2015
Nottinghamshire County Council,Aftercare - Equipment,"Children, Families & Cultural Services",Debit,34.99,maplin-263,14/07/2015
Nottinghamshire County Council,Clients - H & S Equipt,"Children, Families & Cultural Services",Debit,30.00,tesco stores 5379,13/07/2015
Nottinghamshire County Council,Aftercare - Equipment,"Children, Families & Cultural Services",Debit,31.81,argos ltd,13/07/2015
Nottinghamshire County Council,Clients - H & S Equipt,"Children, Families & Cultural Services",Debit,6.85,outfit - eurest cafe,13/07/2015
Nottinghamshire County Council,Aftercare - Equipment,"Children, Families & Cultural Services",Debit,80.69,argos ltd,13/07/2015
Nottinghamshire County Council,Clients - H & S Equipt,"Children, Families & Cultural Services",Debit,4.05,currys superstore,07/07/2015
Nottinghamshire County Council,Clients - H & S Equipt,"Children, Families & Cultural Services",Debit,5.94,currys,06/07/2015
Nottinghamshire County Council,Clients - H & S Equipt,"Children, Families & Cultural Services",Debit,25.48,aldi,03/07/2015
Nottinghamshire County Council,Office / General Equipment,"Policy, Planning & Corporate Services",Debit,179.94,paypal  ,28/07/2015
Nottinghamshire County Council,Office / General Equipment,"Policy, Planning & Corporate Services",Debit,394.80,wp-haymarket publi,28/07/2015
Nottinghamshire County Council,Office / General Equipment,"Policy, Planning & Corporate Services",Debit,26.00,times newspapers ltd,22/07/2015
Nottinghamshire County Council,Office / General Equipment,"Policy, Planning & Corporate Services",Debit,12.50,paypal  ,22/07/2015
Nottinghamshire County Council,Office / General Equipment,"Policy, Planning & Corporate Services",Debit,17.30,amazon uk marketplace,22/07/2015
Nottinghamshire County Council,Office / General Equipment,"Policy, Planning & Corporate Services",Debit,21.85,eb tackling spatial i,22/07/2015
Nottinghamshire County Council,Office / General Equipment,"Policy, Planning & Corporate Services",Credit,-10.58,psin.uk,07/07/2015
Nottinghamshire County Council,Building Maintenance Servicing,Environment & Resources,Debit,59.99,screwfix direct,21/07/2015
Nottinghamshire County Council,Provisions,"Children, Families & Cultural Services",Debit,141.13,tesco stores 5437,03/08/2015
Nottinghamshire County Council,Provisions,"Children, Families & Cultural Services",Debit,46.56,tesco stores 5437,31/07/2015
Nottinghamshire County Council,Personal Needs,"Children, Families & Cultural Services",Debit,36.81,asda superstore 04261,27/07/2015
Nottinghamshire County Council,Cleaning & Domestic Equipment,"Children, Families & Cultural Services",Debit,61.46,wm morrison 023,25/07/2015
Nottinghamshire County Council,Personal Needs,"Children, Families & Cultural Services",Debit,11.43,new harrisons nursery lt,18/07/2015
Nottinghamshire County Council,Grounds Maintenance,"Children, Families & Cultural Services",Debit,23.44,new harrisons nursery lt,15/07/2015
Nottinghamshire County Council,Cleaning & Domestic Equipment,"Children, Families & Cultural Services",Debit,82.50,asda superstore 04261,14/07/2015
Nottinghamshire County Council,Personal Needs,"Children, Families & Cultural Services",Debit,11.98,kfc mansfield 2,14/07/2015
Nottinghamshire County Council,Provisions,"Children, Families & Cultural Services",Debit,196.14,tesco stores 5437,13/07/2015
Nottinghamshire County Council,Provisions,"Children, Families & Cultural Services",Debit,22.93,tesco stores 5437,08/07/2015
Nottinghamshire County Council,Clothing/Shoes/Uniforms,"Children, Families & Cultural Services",Debit,57.99,sportsdirect 292,08/07/2015
Nottinghamshire County Council,Provisions,"Children, Families & Cultural Services",Debit,11.87,aldi,08/07/2015
Nottinghamshire County Council,Personal Needs,"Children, Families & Cultural Services",Debit,40.00,sportsdirect 292,08/07/2015
Nottinghamshire County Council,Provisions,"Children, Families & Cultural Services",Debit,111.49,aldi,06/07/2015
Nottinghamshire County Council,Activities & Support,"Children, Families & Cultural Services",Debit,18.80,tesco stores 2995,22/07/2015
Nottinghamshire County Council,Activities & Support,"Children, Families & Cultural Services",Debit,10.35,misterton foodstre,20/07/2015
Nottinghamshire County Council,Activities & Support,"Children, Families & Cultural Services",Debit,11.06,misterton foodstre,16/07/2015
Nottinghamshire County Council,Activities & Support,"Children, Families & Cultural Services",Debit,7.62,tesco stores 2995,13/07/2015
Nottinghamshire County Council,Activities & Support,"Children, Families & Cultural Services",Debit,11.00,wilko retail limit,09/07/2015
Nottinghamshire County Council,Activities & Support,"Children, Families & Cultural Services",Debit,4.00,tesco stores 2995,08/07/2015
Nottinghamshire County Council,Activities & Support,"Children, Families & Cultural Services",Debit,6.76,misterton foodstre,06/07/2015
Nottinghamshire County Council,Cleaning Materials,"Adult Social Care, Health & Public Protection ",Debit,192.71,jangro (leicester) ltd,30/07/2015
Nottinghamshire County Council,Cleaning Materials,"Adult Social Care, Health & Public Protection ",Debit,239.41,jangro (leicester) ltd,27/07/2015
Nottinghamshire County Council,Cleaning Materials,"Adult Social Care, Health & Public Protection ",Debit,110.47,jangro (leicester) ltd,23/07/2015
Nottinghamshire County Council,Provisions,"Children, Families & Cultural Services",Debit,18.98,brewers fayre 41511565,15/07/2015
Nottinghamshire County Council,Personal Needs,"Children, Families & Cultural Services",Debit,20.00,giffgaff.com,17/07/2015
Nottinghamshire County Council,Clothing/Shoes/Uniforms,"Children, Families & Cultural Services",Debit,49.99,sportsdirect 437,03/07/2015
Nottinghamshire County Council,Activities & Support,"Children, Families & Cultural Services",Debit,24.39,tesco stores 5379,03/08/2015
Nottinghamshire County Council,Activities & Support,"Children, Families & Cultural Services",Debit,6.36,superdrug stores plc,01/08/2015
Nottinghamshire County Council,Activities & Support,"Children, Families & Cultural Services",Debit,10.00,wilko retail limit,01/08/2015
Nottinghamshire County Council,Activities & Support,"Children, Families & Cultural Services",Debit,27.19,tesco stores 5379,27/07/2015
Nottinghamshire County Council,Activities & Support,"Children, Families & Cultural Services",Debit,4.45,sainsburys s/mkts,27/07/2015
Nottinghamshire County Council,Activities & Support,"Children, Families & Cultural Services",Debit,17.50,tesco stores 5379,27/07/2015
Nottinghamshire County Council,Teaching Equipment,"Children, Families & Cultural Services",Debit,7.99,amazon svcs europesar,17/07/2015
Nottinghamshire County Council,Teaching Equipment,"Children, Families & Cultural Services",Debit,7.95,amazon uk marketplace,17/07/2015
Nottinghamshire County Council,Teaching Equipment,"Children, Families & Cultural Services",Debit,4.50,amazon uk marketplace,17/07/2015
Nottinghamshire County Council,Teaching Equipment,"Children, Families & Cultural Services",Debit,10.48,amazon uk marketplace,17/07/2015
Nottinghamshire County Council,Teaching Equipment,"Children, Families & Cultural Services",Debit,88.91,www.sensoryeducation.c,16/07/2015
Nottinghamshire County Council,Teaching Equipment,"Children, Families & Cultural Services",Debit,24.98,amazon uk marketplace,16/07/2015
Nottinghamshire County Council,Teaching Equipment,"Children, Families & Cultural Services",Debit,172.98,amazon uk retail,09/07/2015
Nottinghamshire County Council,MOT Tests,Environment & Resources,Debit,"4,000.00",dvsa,28/07/2015
Nottinghamshire County Council,MOT Tests,Environment & Resources,Debit,"4,000.00",dvsa,22/07/2015
Nottinghamshire County Council,MOT Tests,Environment & Resources,Debit,"3,000.00",dvsa,16/07/2015
Nottinghamshire County Council,Road Tax,Environment & Resources,Debit,132.50,www.dvla.gov.uk,15/07/2015
Nottinghamshire County Council,Road Tax,Environment & Resources,Debit,202.50,www.dvla.gov.uk,15/07/2015
Nottinghamshire County Council,Road Tax,Environment & Resources,Debit,227.50,www.dvla.gov.uk,15/07/2015
Nottinghamshire County Council,Road Tax,Environment & Resources,Debit,167.50,www.dvla.gov.uk,15/07/2015
Nottinghamshire County Council,Staff Training,Environment & Resources,Debit,569.30,community transport as,13/07/2015
Nottinghamshire County Council,MOT Tests,Environment & Resources,Debit,"3,000.00",dvsa,13/07/2015
Nottinghamshire County Council,Road Tax,Environment & Resources,Debit,84.99,www.maplin.co.uk,08/07/2015
Nottinghamshire County Council,MOT Tests,Environment & Resources,Debit,"4,000.00",dvsa,07/07/2015
Nottinghamshire County Council,Road Tax,Environment & Resources,Debit,22.50,www.dvla.gov.uk,06/07/2015
Nottinghamshire County Council,Road Tax,Environment & Resources,Debit,227.50,www.dvla.gov.uk,06/07/2015
Nottinghamshire County Council,Road Tax,Environment & Resources,Debit,652.50,www.dvla.gov.uk,06/07/2015
Nottinghamshire County Council,Road Tax,Environment & Resources,Debit,227.50,www.dvla.gov.uk,06/07/2015
Nottinghamshire County Council,Road Tax,Environment & Resources,Debit,167.50,www.dvla.gov.uk,06/07/2015
Nottinghamshire County Council,Road Tax,Environment & Resources,Debit,22.50,www.dvla.gov.uk,06/07/2015
Nottinghamshire County Council,Road Tax,Environment & Resources,Debit,227.50,www.dvla.gov.uk,06/07/2015
Nottinghamshire County Council,Road Tax,Environment & Resources,Debit,227.50,www.dvla.gov.uk,06/07/2015
Nottinghamshire County Council,Road Tax,Environment & Resources,Debit,167.50,www.dvla.gov.uk,06/07/2015
Nottinghamshire County Council,Road Tax,Environment & Resources,Debit,227.50,www.dvla.gov.uk,06/07/2015
Nottinghamshire County Council,Road Tax,Environment & Resources,Debit,227.50,www.dvla.gov.uk,06/07/2015
Nottinghamshire County Council,Activities & Support,"Children, Families & Cultural Services",Debit,19.36,aldi,31/07/2015
Nottinghamshire County Council,Activities & Support,"Children, Families & Cultural Services",Debit,19.29,csm sutton ltd t/a subwa,29/07/2015
Nottinghamshire County Council,Activities & Support,"Children, Families & Cultural Services",Debit,4.98,lidl uk,23/07/2015
Nottinghamshire County Council,Activities & Support,"Children, Families & Cultural Services",Debit,5.87,lidl uk,23/07/2015
Nottinghamshire County Council,Activities & Support,"Children, Families & Cultural Services",Debit,19.99,www.dominos.co.uk,20/07/2015
Nottinghamshire County Council,Activities & Support,"Children, Families & Cultural Services",Debit,21.97,www.dominos.co.uk,08/07/2015
Nottinghamshire County Council,Activities & Support,"Children, Families & Cultural Services",Debit,23.96,dominos pizza,06/07/2015
Nottinghamshire County Council,Office / General Equipment,Environment & Resources,Debit,31.20,amazon svcs europesar,15/07/2015
Nottinghamshire County Council,Provisions,Environment & Resources,Debit,145.50,tvlicensing.co.uk,31/07/2015
Nottinghamshire County Council,Provisions,Environment & Resources,Debit,960.00,www.adt.co.uk,06/07/2015
Nottinghamshire County Council,Activities & Support,"Children, Families & Cultural Services",Debit,8.99,wm morrisons plc,31/07/2015
Nottinghamshire County Council,Activities & Support,"Children, Families & Cultural Services",Debit,8.40,farmfoods- woodhou,31/07/2015
Nottinghamshire County Council,Activities & Support,"Children, Families & Cultural Services",Debit,14.00,tesco stores 5437,30/07/2015
Nottinghamshire County Council,Activities & Support,"Children, Families & Cultural Services",Debit,18.00,wp-the virtual col,30/07/2015
Nottinghamshire County Council,Activities & Support,"Children, Families & Cultural Services",Debit,24.89,wm morrison 023,28/07/2015
Nottinghamshire County Council,Activities & Support,"Children, Families & Cultural Services",Debit,14.27,wm morrison 023,28/07/2015
Nottinghamshire County Council,Activities & Support,"Children, Families & Cultural Services",Debit,7.00,tesco stores 5437,27/07/2015
Nottinghamshire County Council,Activities & Support,"Children, Families & Cultural Services",Debit,9.40,farmfoods- woodhou,24/07/2015
Nottinghamshire County Council,Activities & Support,"Children, Families & Cultural Services",Debit,13.50,tesco stores 5437,23/07/2015
Nottinghamshire County Council,Activities & Support,"Children, Families & Cultural Services",Debit,13.50,tesco stores 5437,21/07/2015
Nottinghamshire County Council,Activities & Support,"Children, Families & Cultural Services",Debit,8.50,tesco stores 5437,17/07/2015
Nottinghamshire County Council,Activities & Support,"Children, Families & Cultural Services",Debit,8.79,tesco stores 5437,16/07/2015
Nottinghamshire County Council,Activities & Support,"Children, Families & Cultural Services",Debit,14.12,tesco stores 5437,14/07/2015
Nottinghamshire County Council,Activities & Support,"Children, Families & Cultural Services",Debit,9.58,farmfoods- woodhou,10/07/2015
Nottinghamshire County Council,Activities & Support,"Children, Families & Cultural Services",Debit,10.00,tesco stores 5437,09/07/2015
Nottinghamshire County Council,Activities & Support,"Children, Families & Cultural Services",Debit,6.00,the works,07/07/2015
Nottinghamshire County Council,Activities & Support,"Children, Families & Cultural Services",Debit,3.67,savers health  beauty,07/07/2015
Nottinghamshire County Council,Activities & Support,"Children, Families & Cultural Services",Debit,15.39,tesco stores 5437,07/07/2015
Nottinghamshire County Council,Activities & Support,"Children, Families & Cultural Services",Debit,7.99,the works,06/07/2015
Nottinghamshire County Council,Hardware Maintenance,Environment & Resources,Debit,6.00,tesco stores 2995,01/08/2015
Nottinghamshire County Council,Hardware Maintenance,Environment & Resources,Debit,6.99,wilko beeston (2),23/07/2015
Nottinghamshire County Council,Hardware Maintenance,Environment & Resources,Debit,468.00,russell publishing ltd,08/07/2015
Nottinghamshire County Council,Building Maintenance,Environment & Resources,Debit,14.06,bss group plc,17/07/2015
Nottinghamshire County Council,Building Maintenance,Environment & Resources,Debit,5.74,bss group plc,17/07/2015
Nottinghamshire County Council,Building Maintenance,Environment & Resources,Debit,32.26,bss group plc,15/07/2015
Nottinghamshire County Council,Building Maintenance,Environment & Resources,Debit,9.61,bss group plc,14/07/2015
Nottinghamshire County Council,Building Maintenance,Environment & Resources,Debit,2.28,bss group plc,14/07/2015
Nottinghamshire County Council,Building Maintenance,Environment & Resources,Debit,2.76,bss group plc,14/07/2015
Nottinghamshire County Council,Building Maintenance,Environment & Resources,Debit,7.78,bss group plc,14/07/2015
Nottinghamshire County Council,Building Maintenance,Environment & Resources,Debit,6.24,bss group plc,14/07/2015
Nottinghamshire County Council,Building Maintenance,Environment & Resources,Debit,4.37,bss group plc,14/07/2015
Nottinghamshire County Council,Building Maintenance,Environment & Resources,Debit,5.32,bss group plc,14/07/2015
Nottinghamshire County Council,Building Maintenance,Environment & Resources,Debit,3.68,bss group plc,14/07/2015
Nottinghamshire County Council,Building Maintenance,Environment & Resources,Debit,1.61,bss group plc,14/07/2015
Nottinghamshire County Council,Building Maintenance,Environment & Resources,Debit,1.99,bss group plc,14/07/2015
Nottinghamshire County Council,Building Maintenance,Environment & Resources,Debit,12.76,protrade ltd,30/07/2015
Nottinghamshire County Council,Building Maintenance,Environment & Resources,Debit,28.97,willbond plumbing centre,22/07/2015
Nottinghamshire County Council,Building Maintenance,Environment & Resources,Debit,21.22,willbond plumbing centre,14/07/2015
Nottinghamshire County Council,Building Maintenance,Environment & Resources,Debit,29.76,protrade ltd,14/07/2015
Nottinghamshire County Council,Building Maintenance,Environment & Resources,Debit,22.98,willbond plumbing centre,14/07/2015
Nottinghamshire County Council,Building Maintenance,Environment & Resources,Debit,47.17,willbond plumbing centre,14/07/2015
Nottinghamshire County Council,Building Maintenance,Environment & Resources,Debit,14.63,protrade ltd,14/07/2015
Nottinghamshire County Council,Building Maintenance,Environment & Resources,Debit,20.79,willbond plumbing centre,14/07/2015
Nottinghamshire County Council,Provisions,"Adult Social Care, Health & Public Protection ",Debit,142.51,bcw office prod,17/07/2015
Nottinghamshire County Council,Provisions,"Adult Social Care, Health & Public Protection ",Debit,94.20,bcw office prod,14/07/2015
Nottinghamshire County Council,Materials - External,Environment & Resources,Debit,12.72,b  q,24/07/2015
Nottinghamshire County Council,Materials - External,Environment & Resources,Debit,113.53,arco ltd,24/07/2015
Nottinghamshire County Council,Materials - External,Environment & Resources,Debit,61.27,crown decorating centr,14/07/2015
Nottinghamshire County Council,Minor Works,"Children, Families & Cultural Services",Debit,139.45,hitch n hike,27/07/2015
Nottinghamshire County Council,Activities & Support,"Children, Families & Cultural Services",Debit,7.72,w m morrison plc,30/07/2015
Nottinghamshire County Council,Activities & Support,"Children, Families & Cultural Services",Debit,14.53,w m morrison plc,23/07/2015
Nottinghamshire County Council,Provisions,"Adult Social Care, Health & Public Protection ",Debit,8.18,tesco stores 5379,03/08/2015
Nottinghamshire County Council,Provisions,"Adult Social Care, Health & Public Protection ",Debit,18.50,tesco stores 5379,28/07/2015
Nottinghamshire County Council,Provisions,"Adult Social Care, Health & Public Protection ",Debit,8.00,tesco stores 5379,15/07/2015
Nottinghamshire County Council,Provisions,"Adult Social Care, Health & Public Protection ",Debit,10.40,tesco stores 5379,07/07/2015
Nottinghamshire County Council,Materials - External,Environment & Resources,Debit,2.68,edmundson electrical,24/07/2015
Nottinghamshire County Council,Materials - External,Environment & Resources,Debit,9.70,edmundson electrical,21/07/2015
Nottinghamshire County Council,Materials - External,Environment & Resources,Debit,217.62,edmundson electrical,10/07/2015
Nottinghamshire County Council,Materials - External,Environment & Resources,Debit,377.96,edmundson electrical,08/07/2015
Nottinghamshire County Council,Materials - External,Environment & Resources,Debit,85.79,erf electrical wh,29/07/2015
Nottinghamshire County Council,Materials - External,Environment & Resources,Debit,39.00,erf electrical wh,22/07/2015
Nottinghamshire County Council,Activities & Support,"Children, Families & Cultural Services",Debit,16.78,iceland,29/07/2015
Nottinghamshire County Council,Activities & Support,"Children, Families & Cultural Services",Debit,9.90,redhill leisure ce,28/07/2015
Nottinghamshire County Council,Activities & Support,"Children, Families & Cultural Services",Debit,9.50,farmfoods- carlton,22/07/2015
Nottinghamshire County Council,Activities & Support,"Children, Families & Cultural Services",Debit,13.50,sainsburys s/mkts,15/07/2015
Nottinghamshire County Council,Activities & Support,"Children, Families & Cultural Services",Debit,29.17,wm morrison 067,14/07/2015
Nottinghamshire County Council,Activities & Support,"Children, Families & Cultural Services",Debit,54.67,www.trophystore.co.uk,10/07/2015
Nottinghamshire County Council,Activities & Support,"Children, Families & Cultural Services",Debit,35.71,podium 4 sport,10/07/2015
Nottinghamshire County Council,Activities & Support,"Children, Families & Cultural Services",Debit,12.70,farmfoods- carlton,08/07/2015
Nottinghamshire County Council,Activities & Support,"Children, Families & Cultural Services",Debit,18.01,wm morrison 067,07/07/2015
Nottinghamshire County Council,Activities & Support,"Children, Families & Cultural Services",Debit,47.98,hobbycraft,06/07/2015
Nottinghamshire County Council,Catering Consumables,"Adult Social Care, Health & Public Protection ",Debit,3.63,amazon svcs europesar,27/07/2015
Nottinghamshire County Council,Catering Consumables,"Adult Social Care, Health & Public Protection ",Debit,65.59,amazon uk marketplace,24/07/2015
Nottinghamshire County Council,Catering Consumables,"Adult Social Care, Health & Public Protection ",Debit,35.30,amazon uk marketplace,24/07/2015
Nottinghamshire County Council,Catering Consumables,"Adult Social Care, Health & Public Protection ",Debit,25.92,amazon uk marketplace,24/07/2015
Nottinghamshire County Council,Catering Consumables,"Adult Social Care, Health & Public Protection ",Debit,67.75,amazon uk marketplace,24/07/2015
Nottinghamshire County Council,Catering Consumables,"Adult Social Care, Health & Public Protection ",Debit,39.99,amazon uk marketplace,25/07/2015
Nottinghamshire County Council,Catering Consumables,"Adult Social Care, Health & Public Protection ",Debit,97.65,amazon uk marketplace,24/07/2015
Nottinghamshire County Council,Catering Consumables,"Adult Social Care, Health & Public Protection ",Debit,59.25,amazon uk marketplace,24/07/2015
Nottinghamshire County Council,Catering Consumables,"Adult Social Care, Health & Public Protection ",Debit,104.97,amazon uk marketplace,24/07/2015
Nottinghamshire County Council,Catering Consumables,"Adult Social Care, Health & Public Protection ",Debit,19.99,amazon uk marketplace,24/07/2015
Nottinghamshire County Council,Catering Consumables,"Adult Social Care, Health & Public Protection ",Debit,29.80,amazon uk marketplace,24/07/2015
Nottinghamshire County Council,Catering Consumables,"Adult Social Care, Health & Public Protection ",Debit,21.67,amazon uk marketplace,24/07/2015
Nottinghamshire County Council,Catering Consumables,"Adult Social Care, Health & Public Protection ",Debit,409.13,amazon uk retail,24/07/2015
Nottinghamshire County Council,Catering Consumables,"Adult Social Care, Health & Public Protection ",Debit,19.99,amazon uk marketplace,24/07/2015
Nottinghamshire County Council,Catering Consumables,"Adult Social Care, Health & Public Protection ",Debit,119.33,amazon svcs europesar,24/07/2015
Nottinghamshire County Council,Catering Consumables,"Adult Social Care, Health & Public Protection ",Debit,22.56,amazon uk marketplace,24/07/2015
Nottinghamshire County Council,Catering Consumables,"Adult Social Care, Health & Public Protection ",Debit,19.99,amazon uk marketplace,24/07/2015
Nottinghamshire County Council,Catering Consumables,"Adult Social Care, Health & Public Protection ",Debit,18.86,amazon uk retail,24/07/2015
Nottinghamshire County Council,Catering Consumables,"Adult Social Care, Health & Public Protection ",Debit,106.00,amazon uk marketplace,24/07/2015
Nottinghamshire County Council,Catering Consumables,"Adult Social Care, Health & Public Protection ",Debit,409.13,amazon uk retail,24/07/2015
Nottinghamshire County Council,Catering Consumables,"Adult Social Care, Health & Public Protection ",Debit,71.26,amazon uk marketplace,24/07/2015
Nottinghamshire County Council,Catering Consumables,"Adult Social Care, Health & Public Protection ",Debit,45.97,amazon uk marketplace,24/07/2015
Nottinghamshire County Council,Catering Consumables,"Adult Social Care, Health & Public Protection ",Debit,309.80,amazon svcs europesar,09/07/2015
Nottinghamshire County Council,Catering Consumables,"Adult Social Care, Health & Public Protection ",Debit,239.00,amazon uk marketplace,09/07/2015
Nottinghamshire County Council,Catering Consumables,"Adult Social Care, Health & Public Protection ",Debit,19.90,amazon uk marketplace,08/07/2015
Nottinghamshire County Council,Catering Consumables,"Adult Social Care, Health & Public Protection ",Debit,47.96,amazon svcs europesar,08/07/2015
Nottinghamshire County Council,Office / General Equipment,"Adult Social Care, Health & Public Protection ",Debit,15.49,ink/tech/media ltd,23/07/2015
Nottinghamshire County Council,Postages,"Adult Social Care, Health & Public Protection ",Debit,28.08,post office counter,17/07/2015
Nottinghamshire County Council,Health & Safety,"Adult Social Care, Health & Public Protection ",Debit,24.99,boots 6597,16/07/2015
Nottinghamshire County Council,Stationery,"Adult Social Care, Health & Public Protection ",Debit,5.00,asda storess4342,09/07/2015
Nottinghamshire County Council,Materials - External,Environment & Resources,Debit,28.90,staples uk,21/07/2015
Nottinghamshire County Council,Office / General Equipment,"Children, Families & Cultural Services",Debit,14.53,b  m retail,31/07/2015
Nottinghamshire County Council,Office / General Equipment,"Children, Families & Cultural Services",Debit,200.00,pb uk ltd,30/07/2015
Nottinghamshire County Council,Office / General Equipment,"Children, Families & Cultural Services",Debit,75.05,argos ltd,25/07/2015
Nottinghamshire County Council,Office / General Equipment,"Children, Families & Cultural Services",Debit,209.00,currys online,20/07/2015
Nottinghamshire County Council,Office / General Equipment,"Children, Families & Cultural Services",Debit,50.00,sainsburys s/mkt,16/07/2015
Nottinghamshire County Council,Office / General Equipment,"Children, Families & Cultural Services",Debit,17.50,farmfoods- worksop,11/07/2015
Nottinghamshire County Council,Office / General Equipment,"Children, Families & Cultural Services",Debit,34.87,asda stores 4475,11/07/2015
Nottinghamshire County Council,Office / General Equipment,"Children, Families & Cultural Services",Debit,319.00,www.johnlewis.com,10/07/2015
Nottinghamshire County Council,Office / General Equipment,"Children, Families & Cultural Services",Debit,43.83,asda stores 4475,11/07/2015
Nottinghamshire County Council,Office / General Equipment,"Children, Families & Cultural Services",Debit,18.40,asda stores 4475,10/07/2015
Nottinghamshire County Council,Activities & Support,"Children, Families & Cultural Services",Debit,3.08,aldi,03/08/2015
Nottinghamshire County Council,Activities & Support,"Children, Families & Cultural Services",Debit,6.57,mcdonalds,28/07/2015
Nottinghamshire County Council,Activities & Support,"Children, Families & Cultural Services",Debit,0.99,mcdonalds,28/07/2015
Nottinghamshire County Council,Activities & Support,"Children, Families & Cultural Services",Debit,12.77,tesco stores 2702,24/07/2015
Nottinghamshire County Council,Activities & Support,"Children, Families & Cultural Services",Debit,7.14,jtf wholesale ltd,22/07/2015
Nottinghamshire County Council,Activities & Support,"Children, Families & Cultural Services",Debit,1.00,the range nottinghamsh,15/07/2015
Nottinghamshire County Council,Activities & Support,"Children, Families & Cultural Services",Debit,1.88,aldi,15/07/2015
Nottinghamshire County Council,Activities & Support,"Children, Families & Cultural Services",Debit,68.93,dominos pizza 27560,14/07/2015
Nottinghamshire County Council,Activities & Support,"Children, Families & Cultural Services",Debit,5.05,aldi,14/07/2015
Nottinghamshire County Council,Activities & Support,"Children, Families & Cultural Services",Debit,5.00,the range nottinghamsh,13/07/2015
Nottinghamshire County Council,Activities & Support,"Children, Families & Cultural Services",Debit,40.89,tesco stores 2702,11/07/2015
Nottinghamshire County Council,Personal Needs,"Children, Families & Cultural Services",Debit,14.99,argos ltd,24/07/2015
Nottinghamshire County Council,Personal Needs,"Children, Families & Cultural Services",Debit,16.47,the range,21/07/2015
Nottinghamshire County Council,Fixtures & Fittings,"Children, Families & Cultural Services",Debit,12.00,asda  stores 4201,09/07/2015
Nottinghamshire County Council,Office / General Equipment,"Policy, Planning & Corporate Services",Debit,18.78,amazon uk retail,10/07/2015
Nottinghamshire County Council,Materials - External,Environment & Resources,Debit,26.57,b  q,30/07/2015
Nottinghamshire County Council,Materials - External,Environment & Resources,Debit,26.57,b  q,30/07/2015
Nottinghamshire County Council,Materials - External,Environment & Resources,Debit,6.18,tp bulwell,16/07/2015
Nottinghamshire County Council,Materials - External,Environment & Resources,Debit,7.93,tp bulwell,16/07/2015
Nottinghamshire County Council,Materials - External,Environment & Resources,Debit,9.17,tp bulwell,16/07/2015
Nottinghamshire County Council,Materials - External,Environment & Resources,Debit,3.77,tp bulwell,13/07/2015
Nottinghamshire County Council,Materials - External,Environment & Resources,Debit,178.20,tp bulwell,13/07/2015
Nottinghamshire County Council,Materials - External,Environment & Resources,Debit,22.92,tp worksop,10/07/2015
Nottinghamshire County Council,Materials - External,Environment & Resources,Debit,19.44,tp worksop,10/07/2015
Nottinghamshire County Council,Materials - External,Environment & Resources,Debit,57.24,howden joinery mansfie,09/07/2015
Nottinghamshire County Council,Materials - External,Environment & Resources,Debit,87.84,howden joinery mansfie,09/07/2015
Nottinghamshire County Council,Materials - External,Environment & Resources,Debit,67.85,howden joinery mansfie,09/07/2015
Nottinghamshire County Council,Materials - External,Environment & Resources,Debit,23.27,howden joinery mansfie,09/07/2015
Nottinghamshire County Council,Materials - External,Environment & Resources,Debit,11.22,howden joinery arnold,03/07/2015
Nottinghamshire County Council,Materials - External,Environment & Resources,Debit,6.24,howden joinery arnold,03/07/2015
Nottinghamshire County Council,Materials - External,Environment & Resources,Debit,113.40,jwl architectural iron,31/07/2015
Nottinghamshire County Council,Materials - External,Environment & Resources,Debit,141.60,protrade ltd,31/07/2015
Nottinghamshire County Council,Materials - External,Environment & Resources,Debit,14.97,wickes,31/07/2015
Nottinghamshire County Council,Materials - External,Environment & Resources,Debit,13.44,robert m sansom plant lt,30/07/2015
Nottinghamshire County Council,Materials - External,Environment & Resources,Debit,4.57,frank key (notts) ltd,24/07/2015
Nottinghamshire County Council,Materials - External,Environment & Resources,Debit,119.81,protrade ltd,24/07/2015
Nottinghamshire County Council,Materials - External,Environment & Resources,Debit,112.37,jwl architectural iron,21/07/2015
Nottinghamshire County Council,Materials - External,Environment & Resources,Debit,32.16,br3417 gibbsdandy,21/07/2015
Nottinghamshire County Council,Materials - External,Environment & Resources,Debit,43.52,jwl architectural iron,16/07/2015
Nottinghamshire County Council,Materials - External,Environment & Resources,Debit,44.54,buildbase worksop,11/07/2015
Nottinghamshire County Council,Materials - External,Environment & Resources,Debit,201.28,frank key (notts) ltd,14/07/2015
Nottinghamshire County Council,Materials - External,Environment & Resources,Debit,128.74,howarth tmbr merch,09/07/2015
Nottinghamshire County Council,Materials - External,Environment & Resources,Debit,42.00,tp worksop,08/07/2015
Nottinghamshire County Council,Materials - External,Environment & Resources,Debit,498.05,howarth tmbr merch,08/07/2015
Nottinghamshire County Council,Materials - External,Environment & Resources,Debit,72.80,howarth tmbr merch,08/07/2015
Nottinghamshire County Council,Materials - External,Environment & Resources,Debit,116.64,howarth tmbr merch,07/07/2015
Nottinghamshire County Council,Materials - External,Environment & Resources,Debit,471.02,howarth tmbr merch,07/07/2015
Nottinghamshire County Council,Materials - External,Environment & Resources,Debit,12.38,frank key (notts) ltd,04/07/2015
Nottinghamshire County Council,Stationery,"Adult Social Care, Health & Public Protection ",Debit,17.99,www.192.com,30/07/2015
Nottinghamshire County Council,Aftercare - Equipment,"Children, Families & Cultural Services",Debit,139.99,currys superstore,03/07/2015
Nottinghamshire County Council,Aftercare - Equipment,"Children, Families & Cultural Services",Debit,125.73,b  m retail,03/07/2015
Nottinghamshire County Council,Materials - External,Environment & Resources,Debit,118.52,arco ltd,10/07/2015
Nottinghamshire County Council,Materials - External,Place,Debit,184.38,city electrical fa,29/07/2015
Nottinghamshire County Council,Materials - External,Place,Debit,1.01,city electrical fa,29/07/2015
Nottinghamshire County Council,Materials - External,Place,Debit,9.01,city electrical fa,29/07/2015
Nottinghamshire County Council,Materials - External,Place,Debit,7.44,city electrical fa,29/07/2015
Nottinghamshire County Council,Materials - External,Place,Debit,4.19,city electrical fa,29/07/2015
Nottinghamshire County Council,Materials - External,Place,Debit,3.40,city electrical fa,29/07/2015
Nottinghamshire County Council,Materials - External,Place,Debit,34.21,city electrical fa,29/07/2015
Nottinghamshire County Council,Materials - External,Place,Debit,0.43,city electrical fa,29/07/2015
Nottinghamshire County Council,Materials - External,Place,Debit,5.42,city electrical fa,29/07/2015
Nottinghamshire County Council,Materials - External,Place,Debit,79.02,city electrical fa,29/07/2015
Nottinghamshire County Council,Materials - External,Place,Debit,2.78,city electrical fa,29/07/2015
Nottinghamshire County Council,Materials - External,Place,Debit,61.92,city electrical fa,29/07/2015
Nottinghamshire County Council,Materials - External,Place,Debit,45.00,city electrical fa,29/07/2015
Nottinghamshire County Council,Materials - External,Place,Debit,14.88,city electrical fa,29/07/2015
Nottinghamshire County Council,Materials - External,Place,Debit,40.00,timpson ltd,30/07/2015
Nottinghamshire County Council,Materials - External,Place,Debit,29.98,ryman,30/07/2015
Nottinghamshire County Council,Materials - External,Place,Debit,48.94,currys,29/07/2015
Nottinghamshire County Council,Other Fee's & Services,"Children, Families & Cultural Services",Debit,10.00,http://www.derbyshire.,29/07/2015
Nottinghamshire County Council,Other Fee's & Services,"Children, Families & Cultural Services",Debit,39.13,amazon uk retail,10/07/2015
Nottinghamshire County Council,Other Fee's & Services,"Children, Families & Cultural Services",Debit,23.40,gro hm passport office,09/07/2015
Nottinghamshire County Council,Other Fee's & Services,"Children, Families & Cultural Services",Debit,9.25,gro hm passport office,09/07/2015
Nottinghamshire County Council,Other Fee's & Services,"Children, Families & Cultural Services",Credit,-131.73,argos direct,05/07/2015
Nottinghamshire County Council,Legal Fees,Resources ,Debit,25.00,companies house,23/07/2015
Nottinghamshire County Council,Legal Fees,Resources ,Debit,600.00,rbi events,22/07/2015
Nottinghamshire County Council,Legal Fees,Resources ,Debit,"2,055.00",combined court,21/07/2015
Nottinghamshire County Council,Legal Fees,Resources ,Debit,455.00,county court,20/07/2015
Nottinghamshire County Council,Legal Fees,Resources ,Debit,215.00,county court,20/07/2015
Nottinghamshire County Council,Legal Fees,Resources ,Debit,215.00,county court,14/07/2015
Nottinghamshire County Council,Advertising & Marketing,"Policy, Planning & Corporate Services",Debit,5.30,sainsburys s/mkts,22/07/2015
Nottinghamshire County Council,Office / General Equipment,"Policy, Planning & Corporate Services",Debit,6.49,amazon svcs europesar,08/07/2015
Nottinghamshire County Council,Activities & Support,"Children, Families & Cultural Services",Debit,80.00,papas fish bar,31/07/2015
Nottinghamshire County Council,Activities & Support,"Children, Families & Cultural Services",Debit,8.15,heron foods ltd,30/07/2015
Nottinghamshire County Council,Activities & Support,"Children, Families & Cultural Services",Debit,5.95,bodycare h/beauty,17/07/2015
Nottinghamshire County Council,Activities & Support,"Children, Families & Cultural Services",Debit,22.75,tesco stores 5437,17/07/2015
Nottinghamshire County Council,Activities & Support,"Children, Families & Cultural Services",Debit,29.99,game retail ltd mansf,16/07/2015
Nottinghamshire County Council,Activities & Support,"Children, Families & Cultural Services",Debit,9.87,heron foods ltd,16/07/2015
Nottinghamshire County Council,Activities & Support,"Children, Families & Cultural Services",Debit,7.30,tesco stores 5437,10/07/2015
Nottinghamshire County Council,Activities & Support,"Children, Families & Cultural Services",Debit,25.00,sportsdirect 292,07/07/2015
Nottinghamshire County Council,Activities & Support,"Children, Families & Cultural Services",Debit,16.00,sportsdirect 292,07/07/2015
Nottinghamshire County Council,Activities & Support,"Children, Families & Cultural Services",Debit,9.82,tesco stores 5437,04/07/2015
Nottinghamshire County Council,Activities & Support,"Children, Families & Cultural Services",Debit,6.00,tesco stores 5437,03/07/2015
Nottinghamshire County Council,Section 17,"Children, Families & Cultural Services",Debit,20.00,notts county council,31/07/2015
Nottinghamshire County Council,Aftercare - Equipment,"Children, Families & Cultural Services",Debit,20.96,poundstretcher 715,30/07/2015
Nottinghamshire County Council,Aftercare - Equipment,"Children, Families & Cultural Services",Debit,31.97,jysk ltd,30/07/2015
Nottinghamshire County Council,Aftercare - Equipment,"Children, Families & Cultural Services",Debit,69.99,currys,29/07/2015
Nottinghamshire County Council,Office / General Equipment,"Children, Families & Cultural Services",Debit,69.99,currys-worksop 2369,28/07/2015
Nottinghamshire County Council,Aftercare - Equipment,"Children, Families & Cultural Services",Debit,37.95,asda 4387,27/07/2015
Nottinghamshire County Council,Aftercare - Equipment,"Children, Families & Cultural Services",Debit,145.50,tvlicensing.co.uk,22/07/2015
Nottinghamshire County Council,Aftercare - Equipment,"Children, Families & Cultural Services",Debit,114.45,asda home shopping,22/07/2015
Nottinghamshire County Council,Clients - H & S Equipt,"Children, Families & Cultural Services",Debit,10.63,aldi,22/07/2015
Nottinghamshire County Council,Clients - H & S Equipt,"Children, Families & Cultural Services",Debit,8.62,aldi,22/07/2015
Nottinghamshire County Council,Aftercare - Equipment,"Children, Families & Cultural Services",Debit,138.39,bm retail ltd,21/07/2015
Nottinghamshire County Council,Clients - H & S Equipt,"Children, Families & Cultural Services",Debit,11.44,costcutter,21/07/2015
Nottinghamshire County Council,Aftercare - Equipment,"Children, Families & Cultural Services",Debit,240.85,wilko retail limit,21/07/2015
Nottinghamshire County Council,Aftercare - Equipment,"Children, Families & Cultural Services",Debit,151.99,argos ltd,21/07/2015
Nottinghamshire County Council,Aftercare - Equipment,"Children, Families & Cultural Services",Debit,59.00,ao retail limited,17/07/2015
Nottinghamshire County Council,Clients - H & S Equipt,"Children, Families & Cultural Services",Debit,10.00,asda superstore,16/07/2015
Nottinghamshire County Council,Clients - H & S Equipt,"Children, Families & Cultural Services",Debit,20.00,asda superstore,16/07/2015
Nottinghamshire County Council,Clients - H & S Equipt,"Children, Families & Cultural Services",Debit,20.00,asda superstore,16/07/2015
Nottinghamshire County Council,Section 17,"Children, Families & Cultural Services",Debit,23.00,lincolnshire cc card p,14/07/2015
Nottinghamshire County Council,Aftercare - Equipment,"Children, Families & Cultural Services",Debit,139.50,amazon uk marketplace,10/07/2015
Nottinghamshire County Council,Aftercare - Equipment,"Children, Families & Cultural Services",Debit,145.50,tvlicensing.co.uk,08/07/2015
Nottinghamshire County Council,Aftercare - Equipment,"Children, Families & Cultural Services",Debit,51.84,newark storage company,07/07/2015
Nottinghamshire County Council,Aftercare - Equipment,"Children, Families & Cultural Services",Debit,4.00,wilko retail limit,07/07/2015
Nottinghamshire County Council,Clients - H & S Equipt,"Children, Families & Cultural Services",Debit,9.91,aldi,07/07/2015
Nottinghamshire County Council,Aftercare - Equipment,"Children, Families & Cultural Services",Debit,145.50,tvlicensing.co.uk,03/07/2015
Nottinghamshire County Council,Subscriptions,"Children, Families & Cultural Services",Debit,80.00,peak district npa,21/07/2015
Nottinghamshire County Council,Teaching Equipment,"Children, Families & Cultural Services",Debit,33.93,amazon uk retail,21/07/2015
Nottinghamshire County Council,Teaching Equipment,"Children, Families & Cultural Services",Debit,15.25,amazon uk retail,09/07/2015
Nottinghamshire County Council,Minor Works,"Children, Families & Cultural Services",Debit,20.00,amazon svcs europesar,08/07/2015
Nottinghamshire County Council,Minor Works,"Children, Families & Cultural Services",Debit,83.11,wm eyre and sons,08/07/2015
Nottinghamshire County Council,Teaching Equipment,"Children, Families & Cultural Services",Debit,25.92,wm eyre and sons,07/07/2015
Nottinghamshire County Council,Activities & Support,"Children, Families & Cultural Services",Debit,0.69,home bargains,30/07/2015
Nottinghamshire County Council,Activities & Support,"Children, Families & Cultural Services",Debit,16.00,the range,30/07/2015
Nottinghamshire County Council,Activities & Support,"Children, Families & Cultural Services",Debit,7.35,heron foods ltd,29/07/2015
Nottinghamshire County Council,Activities & Support,"Children, Families & Cultural Services",Debit,1.10,co-op group 070325,22/07/2015
Nottinghamshire County Council,Activities & Support,"Children, Families & Cultural Services",Debit,2.00,poundworld retail,21/07/2015
Nottinghamshire County Council,Activities & Support,"Children, Families & Cultural Services",Debit,1.49,bm retail ltd,21/07/2015
Nottinghamshire County Council,Activities & Support,"Children, Families & Cultural Services",Debit,12.03,asda store ston in as,21/07/2015
Nottinghamshire County Council,Activities & Support,"Children, Families & Cultural Services",Debit,3.50,intralabs.co.uk,20/07/2015
Nottinghamshire County Council,Activities & Support,"Children, Families & Cultural Services",Debit,2.85,central eng coop,17/07/2015
Nottinghamshire County Council,Activities & Support,"Children, Families & Cultural Services",Debit,2.00,co-op group 070325,17/07/2015
Nottinghamshire County Council,Activities & Support,"Children, Families & Cultural Services",Debit,6.04,aldi,16/07/2015
Nottinghamshire County Council,Activities & Support,"Children, Families & Cultural Services",Debit,3.19,aldi,15/07/2015
Nottinghamshire County Council,Activities & Support,"Children, Families & Cultural Services",Debit,2.59,co-op group 070325,15/07/2015
Nottinghamshire County Council,Activities & Support,"Children, Families & Cultural Services",Debit,1.79,co-op group 070325,14/07/2015
Nottinghamshire County Council,Activities & Support,"Children, Families & Cultural Services",Credit,-1.74,co-op group 070325,07/07/2015
Nottinghamshire County Council,Activities & Support,"Children, Families & Cultural Services",Debit,2.00,poundworld retail,08/07/2015
Nottinghamshire County Council,Activities & Support,"Children, Families & Cultural Services",Debit,1.74,co-op group 070325,07/07/2015
Nottinghamshire County Council,Activities & Support,"Children, Families & Cultural Services",Debit,1.74,co-op group 070325,07/07/2015
Nottinghamshire County Council,Activities & Support,"Children, Families & Cultural Services",Debit,5.95,bm retail ltd,07/07/2015
Nottinghamshire County Council,Activities & Support,"Children, Families & Cultural Services",Debit,8.00,poundworld retail,07/07/2015
Nottinghamshire County Council,Materials - External,Place ,Debit,30.60,keyline ashfield,29/07/2015
Nottinghamshire County Council,Materials - External,Place ,Debit,3.65,keyline ashfield,29/07/2015
Nottinghamshire County Council,Materials - External,Place ,Debit,31.18,tp kirkby in ashfi,21/07/2015
Nottinghamshire County Council,Materials - External,Place ,Debit,13.00,bapp industrial su,31/07/2015
Nottinghamshire County Council,Materials - External,Place ,Debit,20.00,richmond plant hire lt,31/07/2015
Nottinghamshire County Council,Materials - External,Place ,Debit,51.54,p.r.s. hire services l,29/07/2015
Nottinghamshire County Council,Materials - External,Place ,Debit,8.40,richmond plant hire lt,28/07/2015
Nottinghamshire County Council,Materials - External,Place ,Debit,18.00,boots 1131,22/07/2015
Nottinghamshire County Council,Materials - External,Place ,Debit,35.00,bapp industrial su,21/07/2015
Nottinghamshire County Council,Materials - External,Place ,Debit,30.00,richmond plant hire lt,21/07/2015
Nottinghamshire County Council,Stationery,Environment & Resources,Debit,13.77,amazon uk marketplace,31/07/2015
Nottinghamshire County Council,Stationery,Environment & Resources,Debit,195.00,www.frogbikes.com,21/07/2015
Nottinghamshire County Council,Stationery,Environment & Resources,Debit,20.44,displayproductsltd,10/07/2015
Nottinghamshire County Council,Furniture,"Children, Families & Cultural Services",Debit,333.00,ikea,22/07/2015
Nottinghamshire County Council,Personal Needs,"Children, Families & Cultural Services",Debit,349.07,argos retail group,09/07/2015
Nottinghamshire County Council,Materials - External,Place ,Debit,234.62,cromwell tools,23/07/2015
Nottinghamshire County Council,Materials - External,Place ,Debit,67.50,burdens,22/07/2015
Nottinghamshire County Council,Materials - External,Place ,Debit,37.80,keyline nottingham,14/07/2015
Nottinghamshire County Council,Materials - External,Place ,Debit,18.00,keyline nottingham,14/07/2015
Nottinghamshire County Council,Materials - External,Place ,Debit,52.80,fast graphics ltd,22/07/2015
Nottinghamshire County Council,Materials - External,Place ,Debit,9.12,frank key (notts) ltd,14/07/2015
Nottinghamshire County Council,Materials - External,Place ,Debit,176.42,frank key (notts) ltd,14/07/2015
Nottinghamshire County Council,Materials - External,Place ,Debit,29.29,keyline nottingham,02/07/2015
Nottinghamshire County Council,Aftercare - Equipment,"Children, Families & Cultural Services",Debit,10.00,b  q,31/07/2015
Nottinghamshire County Council,Aftercare - Equipment,"Children, Families & Cultural Services",Debit,10.00,b  q,31/07/2015
Nottinghamshire County Council,Clients - H & S Equipt,"Children, Families & Cultural Services",Debit,56.50,asda  stores 4201,03/08/2015
Nottinghamshire County Council,Clients - H & S Equipt,"Children, Families & Cultural Services",Debit,23.00,new look,03/08/2015
Nottinghamshire County Council,Clients - H & S Equipt,"Children, Families & Cultural Services",Debit,4.50,starbucks worksop,30/07/2015
Nottinghamshire County Council,Clients - H & S Equipt,"Children, Families & Cultural Services",Debit,15.00,tesco store 2964,31/07/2015
Nottinghamshire County Council,Aftercare - Equipment,"Children, Families & Cultural Services",Debit,26.99,argos ltd,31/07/2015
Nottinghamshire County Council,Aftercare - Equipment,"Children, Families & Cultural Services",Debit,27.45,bm retail ltd,31/07/2015
Nottinghamshire County Council,Clients - H & S Equipt,"Children, Families & Cultural Services",Debit,427.50,broadmarsh bus station,30/07/2015
Nottinghamshire County Council,Clients - H & S Equipt,"Children, Families & Cultural Services",Debit,250.00,sainsburys smkt,30/07/2015
Nottinghamshire County Council,Clients - H & S Equipt,"Children, Families & Cultural Services",Debit,10.00,tesco stores 5417,28/07/2015
Nottinghamshire County Council,Clients - H & S Equipt,"Children, Families & Cultural Services",Debit,2.77,ncp limited,21/07/2015
Nottinghamshire County Council,Aftercare - Equipment,"Children, Families & Cultural Services",Debit,6.98,home bargains,20/07/2015
Nottinghamshire County Council,Aftercare - Equipment,"Children, Families & Cultural Services",Debit,19.98,poundstretcher 136,20/07/2015
Nottinghamshire County Council,Aftercare - Equipment,"Children, Families & Cultural Services",Debit,14.95,the range nottinghamsh,20/07/2015
Nottinghamshire County Council,Clients - H & S Equipt,"Children, Families & Cultural Services",Debit,4.99,poundstretcher 136,20/07/2015
Nottinghamshire County Council,Clients - H & S Equipt,"Children, Families & Cultural Services",Debit,240.00,asda superstore,16/07/2015
Nottinghamshire County Council,Clients - H & S Equipt,"Children, Families & Cultural Services",Credit,-0.20,buyvouchers.net,15/07/2015
Nottinghamshire County Council,Aftercare - Equipment,"Children, Families & Cultural Services",Debit,145.50,tvlicensing.co.uk,14/07/2015
Nottinghamshire County Council,Clients - H & S Equipt,"Children, Families & Cultural Services",Credit,-0.20,buyvouchers.net,15/07/2015
Nottinghamshire County Council,Clients - H & S Equipt,"Children, Families & Cultural Services",Debit,0.20,buyvouchers.net,14/07/2015
Nottinghamshire County Council,Clients - H & S Equipt,"Children, Families & Cultural Services",Debit,0.20,buyvouchers.net,14/07/2015
Nottinghamshire County Council,Aftercare - Equipment,"Children, Families & Cultural Services",Debit,170.04,argos ltd,13/07/2015
Nottinghamshire County Council,Aftercare - Equipment,"Children, Families & Cultural Services",Debit,139.07,argos ltd,13/07/2015
Nottinghamshire County Council,Aftercare - Equipment,"Children, Families & Cultural Services",Debit,42.95,argos ltd,13/07/2015
Nottinghamshire County Council,Aftercare - Equipment,"Children, Families & Cultural Services",Debit,200.00,midland low price beds,13/07/2015
Nottinghamshire County Council,Clients - H & S Equipt,"Children, Families & Cultural Services",Debit,65.00,tesco stores 5417,09/07/2015
Nottinghamshire County Council,Clients - H & S Equipt,"Children, Families & Cultural Services",Debit,2.77,ncp limited,08/07/2015
Nottinghamshire County Council,Clients - H & S Equipt,"Children, Families & Cultural Services",Debit,3.70,broadmarsh car park up,08/07/2015
Nottinghamshire County Council,Clients - H & S Equipt,"Children, Families & Cultural Services",Debit,6.13,asda superstore 04030,03/07/2015
Nottinghamshire County Council,Cleaning & Domestic Equipment,"Children, Families & Cultural Services",Debit,64.99,currys online,28/07/2015
Nottinghamshire County Council,Personal Needs,"Children, Families & Cultural Services",Debit,588.00,space kraft ltd,22/07/2015
Nottinghamshire County Council,Personal Needs,"Children, Families & Cultural Services",Debit,39.95,activitytoshare,21/07/2015
Nottinghamshire County Council,Personal Needs,"Children, Families & Cultural Services",Debit,94.98,argos retail group,20/07/2015
Nottinghamshire County Council,Personal Needs,"Children, Families & Cultural Services",Debit,16.42,argos retail group,20/07/2015
Nottinghamshire County Council,Personal Needs,"Children, Families & Cultural Services",Debit,14.50,saul isaac photography,20/07/2015
Nottinghamshire County Council,General Employee Exps,"Children, Families & Cultural Services",Debit,69.00,lyndale hotel  restau,14/07/2015
Nottinghamshire County Council,Other Fee's & Services,Resources ,Debit,478.80,reed online limited (e,24/07/2015
Nottinghamshire County Council,Other Fee's & Services,Resources ,Debit,250.00,123 hire ltd,24/07/2015
Nottinghamshire County Council,Other Fee's & Services,Resources ,Debit,10.00,www.gov.uk,23/07/2015
Nottinghamshire County Council,Other Fee's & Services,Resources ,Debit,10.00,www.gov.uk,03/07/2015
Nottinghamshire County Council,Other Fee's & Services,Resources ,Debit,10.00,www.gov.uk,03/07/2015
Nottinghamshire County Council,Other Fee's & Services,Place ,Debit,249.60,uk systems inc ltd,31/07/2015
Nottinghamshire County Council,Other Fee's & Services,Place ,Debit,13.20,pirtek mansfield,22/07/2015
Nottinghamshire County Council,Other Fee's & Services,Place ,Debit,209.10,keyline ashfield,03/07/2015
Nottinghamshire County Council,Activities & Support,"Children, Families & Cultural Services",Debit,14.75,43035025 costa coffee,01/08/2015
Nottinghamshire County Council,Activities & Support,"Children, Families & Cultural Services",Debit,33.60,moto exeter bk,02/08/2015
Nottinghamshire County Council,Activities & Support,"Children, Families & Cultural Services",Debit,54.56,www.dominos.co.uk,15/07/2015
Nottinghamshire County Council,Activities & Support,"Children, Families & Cultural Services",Debit,24.98,argos ltd,11/07/2015
Nottinghamshire County Council,Activities & Support,"Children, Families & Cultural Services",Debit,18.29,www.dominos.co.uk,09/07/2015
Nottinghamshire County Council,Activities & Support,"Children, Families & Cultural Services",Debit,31.46,www.dominos.co.uk,08/07/2015
Nottinghamshire County Council,Office / General Equipment,"Children, Families & Cultural Services",Debit,68.94,argos retail group,01/08/2015
Nottinghamshire County Council,Teaching Equipment,"Children, Families & Cultural Services",Debit,18.00,amazon svcs europesar,31/07/2015
Nottinghamshire County Council,Teaching Equipment,"Children, Families & Cultural Services",Debit,4.56,amazon uk marketplace,31/07/2015
Nottinghamshire County Council,Teaching Equipment,"Children, Families & Cultural Services",Debit,31.98,amazon uk marketplace,31/07/2015
Nottinghamshire County Council,Teaching Equipment,"Children, Families & Cultural Services",Debit,9.87,amazon uk marketplace,01/08/2015
Nottinghamshire County Council,Office / General Equipment,"Children, Families & Cultural Services",Debit,76.50,tnt direct,31/07/2015
Nottinghamshire County Council,First Aid Equipment Purchases,"Children, Families & Cultural Services",Debit,315.00,burrows opthalmic opti,31/07/2015
Nottinghamshire County Council,Minor Works,"Children, Families & Cultural Services",Credit,-37.39,amazon uk retail,30/07/2015
Nottinghamshire County Council,Teaching Equipment,"Children, Families & Cultural Services",Debit,61.11,www.cgpbooks.co.uk,30/07/2015
Nottinghamshire County Council,Teaching Equipment,"Children, Families & Cultural Services",Debit,12.99,amazon uk retail,30/07/2015
Nottinghamshire County Council,Teaching Equipment,"Children, Families & Cultural Services",Debit,29.99,amazon uk retail,30/07/2015
Nottinghamshire County Council,Teaching Equipment,"Children, Families & Cultural Services",Debit,99.96,www.thinkforensic.co.u,30/07/2015
Nottinghamshire County Council,Teaching Equipment,"Children, Families & Cultural Services",Debit,49.09,scientific  chem,30/07/2015
Nottinghamshire County Council,Stock,"Children, Families & Cultural Services",Debit,7.99,lovefilm by post,28/07/2015
Nottinghamshire County Council,Stock,"Children, Families & Cultural Services",Debit,101.10,www.locksonline.co.uk,22/07/2015
Nottinghamshire County Council,Minor Works,"Children, Families & Cultural Services",Debit,37.39,amazon uk retail,22/07/2015
Nottinghamshire County Council,Office / General Equipment,"Children, Families & Cultural Services",Debit,35.64,amazon uk retail,17/07/2015
Nottinghamshire County Council,Minor Works,"Children, Families & Cultural Services",Debit,40.00,amazon uk marketplace,17/07/2015
Nottinghamshire County Council,Office / General Equipment,"Children, Families & Cultural Services",Debit,26.73,amazon uk retail,15/07/2015
Nottinghamshire County Council,Minor Works,"Children, Families & Cultural Services",Debit,79.99,msft    microsoftstore,15/07/2015
Nottinghamshire County Council,Office / General Equipment,"Children, Families & Cultural Services",Debit,26.73,amazon uk retail,15/07/2015
Nottinghamshire County Council,Office / General Equipment,"Children, Families & Cultural Services",Debit,44.96,amazon uk marketplace,11/07/2015
Nottinghamshire County Council,Minor Works,"Children, Families & Cultural Services",Debit,315.27,amazon svcs europesar,09/07/2015
Nottinghamshire County Council,Minor Works,"Children, Families & Cultural Services",Debit,52.05,screwfix direct,08/07/2015
Nottinghamshire County Council,Teaching Equipment,"Children, Families & Cultural Services",Credit,-239.97,dri nuance,07/07/2015
Nottinghamshire County Council,Office / General Equipment,"Children, Families & Cultural Services",Debit,4.48,amazon uk marketplace,08/07/2015
Nottinghamshire County Council,Office / General Equipment,"Children, Families & Cultural Services",Debit,37.96,amazon uk marketplace,07/07/2015
Nottinghamshire County Council,Stock,"Children, Families & Cultural Services",Debit,110.00,amazon uk marketplace,07/07/2015
Nottinghamshire County Council,Stock,"Children, Families & Cultural Services",Debit,28.99,amazon uk marketplace,07/07/2015
Nottinghamshire County Council,Minor Works,"Children, Families & Cultural Services",Debit,66.17,machine mart web,06/07/2015
Nottinghamshire County Council,Personal Needs,"Children, Families & Cultural Services",Debit,25.05,tesco stores 3297,06/07/2015
Nottinghamshire County Council,Minor Works,"Children, Families & Cultural Services",Debit,13.78,amazon uk marketplace,03/07/2015
Nottinghamshire County Council,First Aid Equipment Purchases,"Children, Families & Cultural Services",Debit,70.00,burrows opthalmic opti,03/07/2015
Nottinghamshire County Council,Office / General Equipment,"Children, Families & Cultural Services",Debit,12.85,amazon uk retail,03/07/2015
Nottinghamshire County Council,Section 17,"Children, Families & Cultural Services",Debit,39.15,labeeby,30/07/2015
Nottinghamshire County Council,Office / General Equipment,"Children, Families & Cultural Services",Debit,39.36,pizza hut 450,26/07/2015
Nottinghamshire County Council,Section 17,"Children, Families & Cultural Services",Debit,61.00,sally salon servic,23/07/2015
Nottinghamshire County Council,Section 17,"Children, Families & Cultural Services",Debit,528.00,currys online,24/07/2015
Nottinghamshire County Council,Office / General Equipment,"Children, Families & Cultural Services",Debit,127.00,[Redacted],24/07/2015
Nottinghamshire County Council,Office / General Equipment,"Children, Families & Cultural Services",Debit,70.00,asda stores 4474,10/07/2015
Nottinghamshire County Council,Aftercare - Equipment,"Children, Families & Cultural Services",Debit,35.00,the furniture project,08/07/2015
Nottinghamshire County Council,Office / General Equipment,"Children, Families & Cultural Services",Debit,25.80,savoy cinemas work,04/07/2015
Nottinghamshire County Council,Office / General Equipment,"Children, Families & Cultural Services",Debit,16.96,mcdonalds,04/07/2015
Nottinghamshire County Council,Aftercare - Equipment,"Children, Families & Cultural Services",Debit,24.46,home bargains (retford,03/07/2015
Nottinghamshire County Council,Activities & Support,"Children, Families & Cultural Services",Debit,8.24,tesco stores-3439,29/07/2015
Nottinghamshire County Council,Office / General Equipment,Environment & Resources,Debit,9.00,asda  stores 4201,09/07/2015
Nottinghamshire County Council,Office / General Equipment,Environment & Resources,Debit,7.50,asda  stores 4201,07/07/2015
Nottinghamshire County Council,Personal Needs,"Children, Families & Cultural Services",Debit,5.03,amazon uk marketplace,27/07/2015
Nottinghamshire County Council,Personal Needs,"Children, Families & Cultural Services",Debit,3.60,amazon uk marketplace,25/07/2015
Nottinghamshire County Council,Personal Needs,"Children, Families & Cultural Services",Debit,26.00,www.johnlewis.com,24/07/2015
Nottinghamshire County Council,Personal Needs,"Children, Families & Cultural Services",Debit,59.98,bgrp ltd,23/07/2015
Nottinghamshire County Council,Personal Needs,"Children, Families & Cultural Services",Debit,34.45,paypal  ,23/07/2015
Nottinghamshire County Council,Activities & Support,"Children, Families & Cultural Services",Debit,9.84,b  q,23/07/2015
Nottinghamshire County Council,Activities & Support,"Children, Families & Cultural Services",Debit,9.84,b  q,23/07/2015
Nottinghamshire County Council,Activities & Support,"Children, Families & Cultural Services",Debit,9.84,b  q,23/07/2015
Nottinghamshire County Council,Activities & Support,"Children, Families & Cultural Services",Debit,1.47,b  q,10/07/2015
Nottinghamshire County Council,Activities & Support,"Children, Families & Cultural Services",Debit,1.48,b  q,10/07/2015
Nottinghamshire County Council,Activities & Support,"Children, Families & Cultural Services",Debit,7.00,b  q,10/07/2015
Nottinghamshire County Council,Activities & Support,"Children, Families & Cultural Services",Debit,1.48,b  q,10/07/2015
Nottinghamshire County Council,Activities & Support,"Children, Families & Cultural Services",Debit,11.84,b  q,10/07/2015
Nottinghamshire County Council,Activities & Support,"Children, Families & Cultural Services",Debit,1.00,b  q,10/07/2015
Nottinghamshire County Council,Activities & Support,"Children, Families & Cultural Services",Debit,1.47,b  q,10/07/2015
Nottinghamshire County Council,Activities & Support,"Children, Families & Cultural Services",Debit,1.24,b  q,10/07/2015
Nottinghamshire County Council,Activities & Support,"Children, Families & Cultural Services",Debit,7.13,wm morrisons,24/07/2015
Nottinghamshire County Council,Activities & Support,"Children, Families & Cultural Services",Debit,12.38,wm morrisons,22/07/2015
Nottinghamshire County Council,Activities & Support,"Children, Families & Cultural Services",Debit,38.06,wm morrisons,17/07/2015
Nottinghamshire County Council,Activities & Support,"Children, Families & Cultural Services",Debit,22.27,wm morrisons,15/07/2015
Nottinghamshire County Council,Activities & Support,"Children, Families & Cultural Services",Debit,31.93,bm retail ltd,14/07/2015
Nottinghamshire County Council,Activities & Support,"Children, Families & Cultural Services",Debit,11.13,wm morrisons,10/07/2015
Nottinghamshire County Council,Activities & Support,"Children, Families & Cultural Services",Debit,12.50,wm morrisons,08/07/2015
Nottinghamshire County Council,Activities & Support,"Children, Families & Cultural Services",Debit,5.36,wm morrisons,07/07/2015
Nottinghamshire County Council,Office / General Equipment,"Children, Families & Cultural Services",Debit,157.00,www.nasen.org.uk,31/07/2015
Nottinghamshire County Council,Aids & Appliances,"Children, Families & Cultural Services",Debit,97.79,amazon svcs europesar,25/07/2015
Nottinghamshire County Council,Aids & Appliances,"Children, Families & Cultural Services",Debit,250.00,eb special educationa,21/07/2015
Nottinghamshire County Council,Aids & Appliances,"Children, Families & Cultural Services",Debit,69.00,www.medesign.co.uk,21/07/2015
Nottinghamshire County Council,Aids & Appliances,"Children, Families & Cultural Services",Debit,160.98,paypal  ,21/07/2015
Nottinghamshire County Council,Aids & Appliances,"Children, Families & Cultural Services",Debit,22.50,sportsdirect 437,14/07/2015
Nottinghamshire County Council,Aids & Appliances,"Children, Families & Cultural Services",Debit,20.00,sportsdirect 437,10/07/2015
Nottinghamshire County Council,Activities & Support,"Children, Families & Cultural Services",Debit,55.83,tesco stores 5379,23/07/2015
Nottinghamshire County Council,Teaching Equipment,"Children, Families & Cultural Services",Debit,30.07,tesco stores 5379,02/08/2015
Nottinghamshire County Council,Teaching Equipment,"Children, Families & Cultural Services",Debit,8.48,tesco stores 5437,15/07/2015
Nottinghamshire County Council,Teaching Equipment,"Children, Families & Cultural Services",Debit,23.40,tesco stores 5437,13/07/2015
Nottinghamshire County Council,Office / General Equipment,"Children, Families & Cultural Services",Debit,25.19,tesco stores 2404,22/07/2015
Nottinghamshire County Council,Materials - External,Environment & Resources,Debit,19.99,handi centre bingham,18/07/2015
Nottinghamshire County Council,Office / General Equipment,"Children, Families & Cultural Services",Debit,99.99,currys online,30/07/2015
Nottinghamshire County Council,Provisions,"Children, Families & Cultural Services",Debit,26.58,makro self service notti,24/07/2015
Nottinghamshire County Council,Provisions,"Children, Families & Cultural Services",Debit,52.55,tesco store 2964,17/07/2015
Nottinghamshire County Council,Provisions,"Children, Families & Cultural Services",Debit,21.14,makro self service notti,15/07/2015
Nottinghamshire County Council,Provisions,"Children, Families & Cultural Services",Debit,31.38,tesco store 2964,09/07/2015
Nottinghamshire County Council,Provisions,"Children, Families & Cultural Services",Debit,83.16,tesco stores 3297,06/07/2015
Nottinghamshire County Council,Provisions,"Children, Families & Cultural Services",Debit,19.03,tesco store 2964,03/07/2015
Nottinghamshire County Council,Stationery,"Children, Families & Cultural Services",Debit,37.60,amazon uk marketplace,28/07/2015
Nottinghamshire County Council,Family Financial Assistance,"Children, Families & Cultural Services",Debit,102.00,mansfield dc,21/07/2015
Nottinghamshire County Council,TV Licences,"Children, Families & Cultural Services",Debit,145.50,tvlicensing.co.uk,17/07/2015
Nottinghamshire County Council,Legal Fees,"Children, Families & Cultural Services",Debit,215.00,county court,13/07/2015
Nottinghamshire County Council,Other Fee's & Services,"Children, Families & Cultural Services",Debit,11.00,nottingham city co,03/07/2015
Nottinghamshire County Council,Office / General Equipment,"Adult Social Care, Health & Public Protection ",Debit,15.30,amazon uk marketplace,21/07/2015
Nottinghamshire County Council,Office / General Equipment,"Adult Social Care, Health & Public Protection ",Debit,115.95,js online grocery,17/07/2015
Nottinghamshire County Council,Office / General Equipment,"Adult Social Care, Health & Public Protection ",Debit,165.20,js online grocery,10/07/2015
Nottinghamshire County Council,Teaching Equipment,"Children, Families & Cultural Services",Debit,101.60,www.trophiesplusmedal,03/08/2015
Nottinghamshire County Council,Teaching Equipment,"Children, Families & Cultural Services",Debit,108.40,amazon uk retail,03/08/2015
Nottinghamshire County Council,Other Public Transport,"Children, Families & Cultural Services",Debit,109.00,virgintrainsec nng stn,16/07/2015
Nottinghamshire County Council,Activities & Support,"Children, Families & Cultural Services",Debit,17.23,tesco store 3439,20/07/2015
Nottinghamshire County Council,Activities & Support,"Children, Families & Cultural Services",Debit,32.73,tesco store 3439,13/07/2015
Nottinghamshire County Council,Activities & Support,"Children, Families & Cultural Services",Debit,12.24,max tesco 3286,13/07/2015
Nottinghamshire County Council,Activities & Support,"Children, Families & Cultural Services",Debit,7.20,max tesco 3286,13/07/2015
Nottinghamshire County Council,Activities & Support,"Children, Families & Cultural Services",Debit,104.15,booker limited mansfield,22/07/2015
Nottinghamshire County Council,Protection Of Property,"Adult Social Care, Health & Public Protection ",Debit,99.00,www.thesafeshop.co,27/07/2015
Nottinghamshire County Council,Office / General Equipment,"Children, Families & Cultural Services",Debit,11.00,doncaster mbc,22/07/2015
Nottinghamshire County Council,Other Public Transport,Environment & Resources,Debit,360.00,office for nat stats,21/07/2015
Nottinghamshire County Council,Materials - External,Environment & Resources,Debit,79.60,edmundson electrical,03/08/2015
Nottinghamshire County Council,Materials - External,Environment & Resources,Debit,99.14,edmundson electrical,30/07/2015
Nottinghamshire County Council,Materials - External,Environment & Resources,Debit,127.14,edmundson electrical,27/07/2015
Nottinghamshire County Council,Materials - External,Environment & Resources,Debit,15.19,bss group plc pts,24/07/2015
Nottinghamshire County Council,Materials - External,Environment & Resources,Debit,426.11,edmundson electrical,23/07/2015
Nottinghamshire County Council,Materials - External,Environment & Resources,Debit,10.78,city electrical fa,20/07/2015
Nottinghamshire County Council,Materials - External,Environment & Resources,Debit,143.21,edmundson electrical,13/07/2015
Nottinghamshire County Council,Materials - External,Environment & Resources,Debit,10.20,eyre  elliston ltd,06/07/2015
Nottinghamshire County Council,Personal Needs,"Children, Families & Cultural Services",Debit,3.00,primark,12/07/2015
Nottinghamshire County Council,Office / General Equipment,"Children, Families & Cultural Services",Debit,99.99,foot locker,12/07/2015
Nottinghamshire County Council,Office / General Equipment,"Children, Families & Cultural Services",Debit,2.25,greggs - s1870,12/07/2015
Nottinghamshire County Council,Office / General Equipment,Environment & Resources,Debit,1.74,b  q,18/07/2015
Nottinghamshire County Council,Office / General Equipment,Environment & Resources,Debit,1.74,b  q,18/07/2015
Nottinghamshire County Council,Office / General Equipment,Environment & Resources,Debit,1.74,b  q,18/07/2015
Nottinghamshire County Council,Office / General Equipment,Environment & Resources,Debit,1.74,b  q,18/07/2015
Nottinghamshire County Council,Office / General Equipment,Environment & Resources,Debit,1.74,b  q,18/07/2015
Nottinghamshire County Council,Office / General Equipment,Environment & Resources,Debit,1.74,b  q,18/07/2015
Nottinghamshire County Council,Office / General Equipment,Environment & Resources,Debit,8.00,b  q,18/07/2015
Nottinghamshire County Council,Office / General Equipment,Environment & Resources,Debit,66.99,ashfield district,28/07/2015
Nottinghamshire County Council,Office / General Equipment,Environment & Resources,Debit,17.85,gbw tool hire,25/07/2015
Nottinghamshire County Council,Office / General Equipment,Environment & Resources,Debit,9.95,gbw tool hire,25/07/2015
Nottinghamshire County Council,Office / General Equipment,Environment & Resources,Debit,106.92,the range,24/07/2015
Nottinghamshire County Council,Office / General Equipment,Environment & Resources,Credit,-9.95,gbw tool hire,25/07/2015
Nottinghamshire County Council,Office / General Equipment,Environment & Resources,Debit,73.50,gbw tool hire,21/07/2015
Nottinghamshire County Council,Office / General Equipment,Environment & Resources,Debit,59.71,wickes,21/07/2015
Nottinghamshire County Council,Office / General Equipment,Environment & Resources,Debit,318.00,ranskill fencing ltd,21/07/2015
Nottinghamshire County Council,Office / General Equipment,Environment & Resources,Debit,358.24,www.extensive.co.uk,17/07/2015
Nottinghamshire County Council,Office / General Equipment,Environment & Resources,Debit,217.00,gbw tool hire,08/07/2015
Nottinghamshire County Council,Office / General Equipment,Environment & Resources,Debit,40.00,vodafone limited,08/07/2015
Nottinghamshire County Council,Office / General Equipment,"Children, Families & Cultural Services",Debit,9.00,timpson ltd,10/07/2015
Nottinghamshire County Council,Materials - External,Environment & Resources,Debit,178.37,edmundson electrical,08/07/2015
Nottinghamshire County Council,Materials - External,Environment & Resources,Debit,5.84,edmundson elec-dummy,03/07/2015
Nottinghamshire County Council,Fuel - Diesel,Environment & Resources,Debit,53.55,brobot east bridgf,24/07/2015
Nottinghamshire County Council,Materials - External,Environment & Resources,Debit,4.06,erf electrical wh,20/07/2015
Nottinghamshire County Council,Materials - External,Environment & Resources,Debit,19.27,john a stephens,09/07/2015
Nottinghamshire County Council,Holidays,"Children, Families & Cultural Services",Debit,62.72,www.twycrosszoo.org,28/07/2015
Nottinghamshire County Council,Comm.Focused Other Exp,"Children, Families & Cultural Services",Debit,187.72,amazon uk marketplace,28/07/2015
Nottinghamshire County Council,Holidays,"Children, Families & Cultural Services",Debit,69.00,national space centre,28/07/2015
Nottinghamshire County Council,Personal Needs,"Children, Families & Cultural Services",Credit,-14.35,amazon uk marketplace,28/07/2015
Nottinghamshire County Council,Personal Needs,"Children, Families & Cultural Services",Debit,21.96,amazon uk marketplace,14/07/2015
Nottinghamshire County Council,Personal Needs,"Children, Families & Cultural Services",Debit,27.86,amazon uk marketplace,10/07/2015
Nottinghamshire County Council,Personal Needs,"Children, Families & Cultural Services",Credit,-10.00,amazon svcs europesar,03/07/2015
Nottinghamshire County Council,Office / General Equipment,"Children, Families & Cultural Services",Debit,3.00,wilko retail limit,29/07/2015
Nottinghamshire County Council,Office / General Equipment,"Children, Families & Cultural Services",Debit,19.68,lidl uk,27/07/2015
Nottinghamshire County Council,Office / General Equipment,"Children, Families & Cultural Services",Debit,22.62,asda superstore,27/07/2015
Nottinghamshire County Council,Office / General Equipment,"Children, Families & Cultural Services",Debit,14.60,w boyes  co ltd arnol,24/07/2015
Nottinghamshire County Council,Office / General Equipment,"Children, Families & Cultural Services",Debit,10.17,amazon uk marketplace,15/07/2015
Nottinghamshire County Council,Office / General Equipment,"Children, Families & Cultural Services",Debit,5.50,kennelgate,10/07/2015
Nottinghamshire County Council,Office / General Equipment,"Children, Families & Cultural Services",Debit,7.00,upt - emt nottingham rai,03/07/2015
Nottinghamshire County Council,Office / General Equipment,"Children, Families & Cultural Services",Debit,12.30,east midlands trai,03/07/2015
Nottinghamshire County Council,Activities & Support,"Children, Families & Cultural Services",Debit,6.55,tesco store 2960,30/07/2015
Nottinghamshire County Council,Activities & Support,"Children, Families & Cultural Services",Debit,4.06,mcdonalds,30/07/2015
Nottinghamshire County Council,Activities & Support,"Children, Families & Cultural Services",Debit,6.00,intu victoria centre,30/07/2015
Nottinghamshire County Council,Aftercare Lodging/Hostel,"Children, Families & Cultural Services",Debit,67.00,premier inn44521025,27/07/2015
Nottinghamshire County Council,Furniture,"Children, Families & Cultural Services",Debit,25.54,argos retail group,09/07/2015
Nottinghamshire County Council,Other Public Transport,"Children, Families & Cultural Services",Debit,25.10,ace of mansfield,29/07/2015
Nottinghamshire County Council,Personal Needs,"Children, Families & Cultural Services",Debit,34.50,specsavers ,21/07/2015
Nottinghamshire County Council,Personal Needs,"Children, Families & Cultural Services",Debit,13.33,sainsburys s/mkts,03/07/2015
Nottinghamshire County Council,Provisions,"Adult Social Care, Health & Public Protection ",Debit,33.00,paypal  ,13/07/2015
Nottinghamshire County Council,Other Fee's & Services,"Children, Families & Cultural Services",Debit,13.00,blake and beeley,09/07/2015
Nottinghamshire County Council,Activities & Support,"Children, Families & Cultural Services",Debit,"1,840.00",alton towers park,23/07/2015
Nottinghamshire County Council,Provisions,"Children, Families & Cultural Services",Debit,44.84,asda stores 4474,03/07/2015
Nottinghamshire County Council,Section 17,"Children, Families & Cultural Services",Debit,25.00,nottingham workwear,23/07/2015
Nottinghamshire County Council,Section 17,"Children, Families & Cultural Services",Debit,1.00,asda store ston in as,16/07/2015
Nottinghamshire County Council,Section 17,"Children, Families & Cultural Services",Debit,7.99,sainsburys smkt,13/07/2015
Nottinghamshire County Council,Hospitality,"Policy, Planning & Corporate Services",Debit,35.99,j w plant  co limited,21/07/2015
Nottinghamshire County Council,Other Fee's & Services,"Policy, Planning & Corporate Services",Debit,35.00,www.ico.gov.uk,16/07/2015
Nottinghamshire County Council,Other Fee's & Services,"Policy, Planning & Corporate Services",Debit,35.00,www.ico.gov.uk,14/07/2015
Nottinghamshire County Council,Other Fee's & Services,"Policy, Planning & Corporate Services",Debit,35.00,www.ico.gov.uk,14/07/2015
Nottinghamshire County Council,Other Fee's & Services,"Policy, Planning & Corporate Services",Debit,35.00,www.ico.gov.uk,14/07/2015
Nottinghamshire County Council,Other Fee's & Services,"Policy, Planning & Corporate Services",Debit,35.00,www.ico.gov.uk,14/07/2015
Nottinghamshire County Council,Other Fee's & Services,"Policy, Planning & Corporate Services",Debit,35.00,www.ico.gov.uk,14/07/2015
Nottinghamshire County Council,Other Fee's & Services,"Policy, Planning & Corporate Services",Debit,35.00,www.ico.gov.uk,14/07/2015
Nottinghamshire County Council,Other Fee's & Services,"Policy, Planning & Corporate Services",Debit,35.00,www.ico.gov.uk,14/07/2015
Nottinghamshire County Council,Other Fee's & Services,"Policy, Planning & Corporate Services",Debit,35.00,www.ico.gov.uk,14/07/2015
Nottinghamshire County Council,Other Fee's & Services,"Policy, Planning & Corporate Services",Debit,35.00,www.ico.gov.uk,14/07/2015
Nottinghamshire County Council,Other Fee's & Services,"Policy, Planning & Corporate Services",Debit,35.00,www.ico.gov.uk,14/07/2015
Nottinghamshire County Council,Other Fee's & Services,"Policy, Planning & Corporate Services",Debit,35.00,www.ico.gov.uk,14/07/2015
Nottinghamshire County Council,Other Fee's & Services,"Policy, Planning & Corporate Services",Debit,35.00,www.ico.gov.uk,14/07/2015
Nottinghamshire County Council,Other Fee's & Services,"Policy, Planning & Corporate Services",Debit,35.00,www.ico.gov.uk,14/07/2015
Nottinghamshire County Council,Other Fee's & Services,"Policy, Planning & Corporate Services",Debit,35.00,www.ico.gov.uk,14/07/2015
Nottinghamshire County Council,Office / General Equipment,"Policy, Planning & Corporate Services",Debit,103.35,amazon uk marketplace,13/07/2015
Nottinghamshire County Council,Office / General Equipment,"Policy, Planning & Corporate Services",Debit,5.30,amazon uk marketplace,13/07/2015
Nottinghamshire County Council,Office / General Equipment,"Policy, Planning & Corporate Services",Debit,35.99,bo-kay florist,13/07/2015
Nottinghamshire County Council,Materials - External,Environment & Resources,Debit,157.79,frank key (notts) ltd,21/07/2015
Nottinghamshire County Council,Materials - External,Environment & Resources,Debit,30.70,frank key (notts) ltd,20/07/2015
Nottinghamshire County Council,Materials - External,Environment & Resources,Debit,42.00,1st access,06/07/2015
Nottinghamshire County Council,Office / General Equipment,"Children, Families & Cultural Services",Debit,28.49,argos ltd,09/07/2015
Nottinghamshire County Council,Office / General Equipment,"Children, Families & Cultural Services",Debit,5.00,b  q,03/07/2015
Nottinghamshire County Council,Office / General Equipment,"Children, Families & Cultural Services",Debit,5.00,b  q,03/07/2015
Nottinghamshire County Council,Office / General Equipment,"Children, Families & Cultural Services",Debit,23.00,b  q,03/07/2015
Nottinghamshire County Council,Office / General Equipment,"Children, Families & Cultural Services",Debit,43.20,amazon uk marketplace,21/07/2015
Nottinghamshire County Council,Office / General Equipment,"Children, Families & Cultural Services",Debit,17.38,amazon uk marketplace,20/07/2015
Nottinghamshire County Council,Office / General Equipment,"Children, Families & Cultural Services",Debit,3.10,amazon uk marketplace,19/07/2015
Nottinghamshire County Council,Office / General Equipment,"Children, Families & Cultural Services",Debit,33.12,s  e timber supplies,13/07/2015
Nottinghamshire County Council,Office / General Equipment,"Children, Families & Cultural Services",Debit,115.06,key building suppl,13/07/2015
Nottinghamshire County Council,Office / General Equipment,"Children, Families & Cultural Services",Credit,-14.44,amazon uk marketplace,10/07/2015
Nottinghamshire County Council,Office / General Equipment,"Children, Families & Cultural Services",Debit,249.99,amazon uk marketplace,08/07/2015
Nottinghamshire County Council,Postages,"Adult Social Care, Health & Public Protection ",Debit,189.00,post office counter,08/07/2015
Nottinghamshire County Council,Office / General Equipment,"Adult Social Care, Health & Public Protection ",Debit,4.48,b  q,23/07/2015
Nottinghamshire County Council,Clothing/Shoes/Uniforms,"Children, Families & Cultural Services",Debit,50.00,j d sports 621,01/08/2015
Nottinghamshire County Council,Holidays,"Children, Families & Cultural Services",Debit,424.86,richmond holiday centre,28/07/2015
Nottinghamshire County Council,Provisions,"Children, Families & Cultural Services",Debit,26.38,cineworld classic,05/07/2015
Nottinghamshire County Council,Materials - External,Environment & Resources,Debit,40.80,keyline ashfield,07/07/2015
Nottinghamshire County Council,Activities & Support,"Children, Families & Cultural Services",Debit,9.00,central england co,30/07/2015
Nottinghamshire County Council,Activities & Support,"Children, Families & Cultural Services",Debit,17.54,wm morrison 023,28/07/2015
Nottinghamshire County Council,Activities & Support,"Children, Families & Cultural Services",Debit,16.30,tesco stores 5437,24/07/2015
Nottinghamshire County Council,Activities & Support,"Children, Families & Cultural Services",Debit,12.94,asda superstore 04261,22/07/2015
Nottinghamshire County Council,Activities & Support,"Children, Families & Cultural Services",Debit,9.30,asda superstore 04261,21/07/2015
Nottinghamshire County Council,Activities & Support,"Children, Families & Cultural Services",Debit,5.58,local 4 u,17/07/2015
Nottinghamshire County Council,Activities & Support,"Children, Families & Cultural Services",Debit,6.98,wh smith,16/07/2015
Nottinghamshire County Council,Activities & Support,"Children, Families & Cultural Services",Debit,8.00,asda superstore 04261,16/07/2015
Nottinghamshire County Council,Activities & Support,"Children, Families & Cultural Services",Debit,13.70,asda superstore 04261,15/07/2015
Nottinghamshire County Council,Activities & Support,"Children, Families & Cultural Services",Debit,15.45,wilko retail limit,14/07/2015
Nottinghamshire County Council,Activities & Support,"Children, Families & Cultural Services",Debit,14.92,asda store ston in as,14/07/2015
Nottinghamshire County Council,Activities & Support,"Children, Families & Cultural Services",Debit,11.00,farmfoods- sutton/,09/07/2015
Nottinghamshire County Council,Activities & Support,"Children, Families & Cultural Services",Debit,3.19,local 4 u,08/07/2015
Nottinghamshire County Council,Activities & Support,"Children, Families & Cultural Services",Debit,40.60,tesco stores 5437,07/07/2015
Nottinghamshire County Council,Unallocated Budget,"Children, Families & Cultural Services",Debit,21.97,amazon uk retail,28/07/2015
Nottinghamshire County Council,Unallocated Budget,"Children, Families & Cultural Services",Debit,105.86,wickes,23/07/2015
Nottinghamshire County Council,Unallocated Budget,"Children, Families & Cultural Services",Debit,352.80,www.annarbor.co.uk,20/07/2015
Nottinghamshire County Council,Unallocated Budget,"Children, Families & Cultural Services",Debit,246.00,www.annarbor.co.uk,20/07/2015
Nottinghamshire County Council,Unallocated Budget,"Children, Families & Cultural Services",Debit,34.23,amazon uk marketplace,10/07/2015
Nottinghamshire County Council,Unallocated Budget,"Children, Families & Cultural Services",Debit,25.28,paperstone,10/07/2015
Nottinghamshire County Council,Rights Of Way,Environment & Resources,Debit,3.19,tesco stores 2702,28/07/2015
Nottinghamshire County Council,Rights Of Way,Environment & Resources,Debit,50.00,cotswold outdoor,17/07/2015
Nottinghamshire County Council,Provisions,"Children, Families & Cultural Services",Debit,131.92,tesco stores 5437,27/07/2015
Nottinghamshire County Council,Clothing/Shoes/Uniforms,"Children, Families & Cultural Services",Debit,31.99,new look 2015,23/07/2015
Nottinghamshire County Council,Clothing/Shoes/Uniforms,"Children, Families & Cultural Services",Debit,18.98,select - mansfield 2,23/07/2015
Nottinghamshire County Council,Clothing/Shoes/Uniforms,"Children, Families & Cultural Services",Debit,6.00,top shop/topman,23/07/2015
Nottinghamshire County Council,Personal Needs,"Children, Families & Cultural Services",Debit,9.99,boots 6552,22/07/2015
Nottinghamshire County Council,Personal Needs,"Children, Families & Cultural Services",Debit,49.00,tesco stores 5437,22/07/2015
Nottinghamshire County Council,Provisions,"Children, Families & Cultural Services",Debit,10.20,sainsburys s/mkts,20/07/2015
Nottinghamshire County Council,Provisions,"Children, Families & Cultural Services",Debit,98.03,aldi,20/07/2015
Nottinghamshire County Council,Provisions,"Children, Families & Cultural Services",Debit,9.07,wm morrison 048,17/07/2015
Nottinghamshire County Council,Cleaning & Domestic Equipment,"Children, Families & Cultural Services",Debit,17.78,wm morrison 048,17/07/2015
Nottinghamshire County Council,Provisions,"Children, Families & Cultural Services",Debit,29.99,argos ltd,10/07/2015
Nottinghamshire County Council,Provisions,"Children, Families & Cultural Services",Debit,9.93,tesco stores 5379,10/07/2015
Nottinghamshire County Council,Activities & Support,"Children, Families & Cultural Services",Debit,28.75,morrison petrol,01/08/2015
Nottinghamshire County Council,Activities & Support,"Children, Families & Cultural Services",Debit,21.48,wm morrison 023,01/08/2015
Nottinghamshire County Council,Activities & Support,"Children, Families & Cultural Services",Debit,40.00,primark,01/08/2015
Nottinghamshire County Council,Activities & Support,"Children, Families & Cultural Services",Debit,108.00,www.manutd.co.uk,30/07/2015
Nottinghamshire County Council,Activities & Support,"Children, Families & Cultural Services",Debit,14.91,tesco stores 5437,27/07/2015
Nottinghamshire County Council,Activities & Support,"Children, Families & Cultural Services",Debit,28.71,tesco stores 5437,24/07/2015
Nottinghamshire County Council,Activities & Support,"Children, Families & Cultural Services",Debit,4.00,primark,21/07/2015
Nottinghamshire County Council,Activities & Support,"Children, Families & Cultural Services",Debit,11.00,tesco stores 5437,22/07/2015
Nottinghamshire County Council,Activities & Support,"Children, Families & Cultural Services",Debit,21.90,tesco stores 5437,20/07/2015
Nottinghamshire County Council,Activities & Support,"Children, Families & Cultural Services",Debit,23.94,tesco stores 5437,17/07/2015
Nottinghamshire County Council,Activities & Support,"Children, Families & Cultural Services",Debit,4.79,screwfix direct,17/07/2015
Nottinghamshire County Council,Activities & Support,"Children, Families & Cultural Services",Debit,12.64,tesco stores 5437,13/07/2015
Nottinghamshire County Council,Activities & Support,"Children, Families & Cultural Services",Debit,10.30,amazon uk marketplace,13/07/2015
Nottinghamshire County Council,Activities & Support,"Children, Families & Cultural Services",Debit,5.00,heron foods ltd,08/07/2015
Nottinghamshire County Council,Activities & Support,"Children, Families & Cultural Services",Debit,14.27,tesco stores 5437,06/07/2015
Nottinghamshire County Council,Callout Charges,Environment & Resources,Debit,13.20,sainsburys smkt,30/07/2015
Nottinghamshire County Council,Office / General Equipment,"Children, Families & Cultural Services",Debit,63.00,marvellous memories,27/07/2015
Nottinghamshire County Council,Office / General Equipment,"Children, Families & Cultural Services",Debit,100.79,www.mulitcolour.info,22/07/2015
Nottinghamshire County Council,Office / General Equipment,"Children, Families & Cultural Services",Debit,27.57,amazon uk marketplace,21/07/2015
Nottinghamshire County Council,Office / General Equipment,"Children, Families & Cultural Services",Debit,19.98,amazon uk marketplace,20/07/2015
Nottinghamshire County Council,Office / General Equipment,"Children, Families & Cultural Services",Debit,33.95,amazon uk marketplace,20/07/2015
Nottinghamshire County Council,Office / General Equipment,"Children, Families & Cultural Services",Debit,51.68,platts harris tuxford,16/07/2015
Nottinghamshire County Council,Office / General Equipment,"Children, Families & Cultural Services",Debit,31.96,ruff / sher countr,15/07/2015
Nottinghamshire County Council,Minor Works,"Children, Families & Cultural Services",Debit,31.00,fat boys,07/07/2015
Nottinghamshire County Council,Activities & Support,"Children, Families & Cultural Services",Debit,11.29,tesco stores 5379,30/07/2015
Nottinghamshire County Council,Activities & Support,"Children, Families & Cultural Services",Debit,12.93,asda store ston in as,28/07/2015
Nottinghamshire County Council,Activities & Support,"Children, Families & Cultural Services",Debit,8.34,tesco stores 5379,28/07/2015
Nottinghamshire County Council,Activities & Support,"Children, Families & Cultural Services",Debit,8.53,tesco stores 5379,26/07/2015
Nottinghamshire County Council,Activities & Support,"Children, Families & Cultural Services",Debit,26.13,tesco stores 5379,22/07/2015
Nottinghamshire County Council,Office / General Equipment,"Adult Social Care, Health & Public Protection ",Debit,4.00,b  q,03/08/2015
Nottinghamshire County Council,Office / General Equipment,"Adult Social Care, Health & Public Protection ",Debit,4.18,b  q,03/08/2015
Nottinghamshire County Council,Office / General Equipment,"Adult Social Care, Health & Public Protection ",Debit,6.94,b  q,03/08/2015
Nottinghamshire County Council,Office / General Equipment,"Adult Social Care, Health & Public Protection ",Debit,6.97,b  q,03/08/2015
Nottinghamshire County Council,Office / General Equipment,"Adult Social Care, Health & Public Protection ",Debit,4.18,b  q,03/08/2015
Nottinghamshire County Council,Office / General Equipment,"Adult Social Care, Health & Public Protection ",Debit,7.98,b  q,03/08/2015
Nottinghamshire County Council,Office / General Equipment,"Adult Social Care, Health & Public Protection ",Debit,3.00,b  q,03/08/2015
Nottinghamshire County Council,Office / General Equipment,"Adult Social Care, Health & Public Protection ",Debit,17.86,b  q,03/08/2015
Nottinghamshire County Council,Office / General Equipment,"Adult Social Care, Health & Public Protection ",Debit,7.00,b  q,03/08/2015
Nottinghamshire County Council,Office / General Equipment,"Adult Social Care, Health & Public Protection ",Debit,2.05,b  q,03/08/2015
Nottinghamshire County Council,Office / General Equipment,"Adult Social Care, Health & Public Protection ",Debit,4.18,b  q,03/08/2015
Nottinghamshire County Council,Office / General Equipment,"Adult Social Care, Health & Public Protection ",Debit,148.33,b  q,03/08/2015
Nottinghamshire County Council,Office / General Equipment,"Adult Social Care, Health & Public Protection ",Debit,3.00,b  q,03/08/2015
Nottinghamshire County Council,Office / General Equipment,"Adult Social Care, Health & Public Protection ",Debit,3.00,b  q,03/08/2015
Nottinghamshire County Council,Office / General Equipment,"Adult Social Care, Health & Public Protection ",Debit,34.88,amazon svcs europesar,31/07/2015
Nottinghamshire County Council,Office / General Equipment,"Adult Social Care, Health & Public Protection ",Debit,9.75,amazon uk marketplace,30/07/2015
Nottinghamshire County Council,Office / General Equipment,"Adult Social Care, Health & Public Protection ",Debit,17.61,amazon uk marketplace,30/07/2015
Nottinghamshire County Council,Office / General Equipment,"Adult Social Care, Health & Public Protection ",Debit,34.95,amazon uk marketplace,30/07/2015
Nottinghamshire County Council,Office / General Equipment,"Adult Social Care, Health & Public Protection ",Debit,18.40,amazon uk marketplace,29/07/2015
Nottinghamshire County Council,Office / General Equipment,"Adult Social Care, Health & Public Protection ",Debit,2.99,amazon uk marketplace,29/07/2015
Nottinghamshire County Council,Office / General Equipment,"Adult Social Care, Health & Public Protection ",Debit,241.99,amazon uk marketplace,28/07/2015
Nottinghamshire County Council,Office / General Equipment,"Adult Social Care, Health & Public Protection ",Debit,1.87,amazon uk marketplace,28/07/2015
Nottinghamshire County Council,Office / General Equipment,"Adult Social Care, Health & Public Protection ",Debit,3.99,amazon svcs europesar,28/07/2015
Nottinghamshire County Council,Office / General Equipment,"Adult Social Care, Health & Public Protection ",Debit,11.97,amazon uk marketplace,28/07/2015
Nottinghamshire County Council,Office / General Equipment,"Adult Social Care, Health & Public Protection ",Debit,32.53,mobilitysma,27/07/2015
Nottinghamshire County Council,Office / General Equipment,"Adult Social Care, Health & Public Protection ",Debit,2.51,amazon uk marketplace,07/07/2015
Nottinghamshire County Council,Office / General Equipment,"Adult Social Care, Health & Public Protection ",Debit,24.64,amazon svcs europesar,06/07/2015
Nottinghamshire County Council,Office / General Equipment,"Adult Social Care, Health & Public Protection ",Debit,69.90,amazon uk marketplace,06/07/2015
Nottinghamshire County Council,Office / General Equipment,"Adult Social Care, Health & Public Protection ",Debit,18.03,amazon uk retail,04/07/2015
Nottinghamshire County Council,Office / General Equipment,"Adult Social Care, Health & Public Protection ",Debit,5.36,amazon uk marketplace,03/07/2015
Nottinghamshire County Council,Office / General Equipment,"Adult Social Care, Health & Public Protection ",Debit,6.36,amazon uk retail,05/07/2015
Nottinghamshire County Council,Office / General Equipment,"Adult Social Care, Health & Public Protection ",Debit,9.87,amazon uk marketplace,04/07/2015
Nottinghamshire County Council,Office / General Equipment,"Adult Social Care, Health & Public Protection ",Debit,30.72,amazon uk marketplace,04/07/2015
Nottinghamshire County Council,Office / General Equipment,"Adult Social Care, Health & Public Protection ",Debit,4.50,amazon svcs europesar,04/07/2015
Nottinghamshire County Council,Office / General Equipment,"Adult Social Care, Health & Public Protection ",Debit,1.89,amazon uk marketplace,04/07/2015
Nottinghamshire County Council,Activities & Support,"Children, Families & Cultural Services",Debit,84.88,tesco stores 6226,31/07/2015
Nottinghamshire County Council,Activities & Support,"Children, Families & Cultural Services",Debit,43.68,argos ltd,30/07/2015
Nottinghamshire County Council,Activities & Support,"Children, Families & Cultural Services",Debit,81.11,tesco stores 2702,29/07/2015
Nottinghamshire County Council,Activities & Support,"Children, Families & Cultural Services",Debit,14.00,poundworld retail,22/07/2015
Nottinghamshire County Council,Activities & Support,"Children, Families & Cultural Services",Debit,20.38,w m morrison,17/07/2015
Nottinghamshire County Council,Activities & Support,"Children, Families & Cultural Services",Debit,5.25,tesco stores 5877,09/07/2015
Nottinghamshire County Council,Activities & Support,"Children, Families & Cultural Services",Debit,4.25,tesco stores 2702,03/07/2015
Nottinghamshire County Council,Materials - External,Place,Debit,63.72,s jeyes  son (midland,31/07/2015
Nottinghamshire County Council,Materials - External,Place,Debit,109.43,k h electrical distrib,08/07/2015
Nottinghamshire County Council,Materials - External,Place,Debit,58.93,alltools ltd,06/07/2015
Nottinghamshire County Council,Stationery,"Children, Families & Cultural Services",Debit,108.50,www.teachershop.scholast,27/07/2015
Nottinghamshire County Council,Office / General Equipment,"Children, Families & Cultural Services",Debit,81.48,amazon uk marketplace,27/07/2015
Nottinghamshire County Council,Furniture,"Children, Families & Cultural Services",Debit,764.91,halfords on line,25/07/2015
Nottinghamshire County Council,Furniture,"Children, Families & Cultural Services",Debit,57.96,halfords on line,21/07/2015
Nottinghamshire County Council,Other Fee's & Services,"Children, Families & Cultural Services",Debit,25.00,paypal  ,20/07/2015
Nottinghamshire County Council,Stationery,"Children, Families & Cultural Services",Debit,112.42,amazon svcs europesar,17/07/2015
Nottinghamshire County Council,Staff Training,"Children, Families & Cultural Services",Debit,799.20,www.pmgltd.co.uk,15/07/2015
Nottinghamshire County Council,Provisions,"Children, Families & Cultural Services",Debit,29.10,paddyfields,11/07/2015
Nottinghamshire County Council,Provisions,"Children, Families & Cultural Services",Debit,6.95,tesco stores 2995,11/07/2015
Nottinghamshire County Council,Provisions,"Children, Families & Cultural Services",Debit,11.00,tesco stores 2995,31/07/2015
Nottinghamshire County Council,Provisions,"Children, Families & Cultural Services",Debit,33.60,riber products ltd,31/07/2015
Nottinghamshire County Council,Provisions,"Children, Families & Cultural Services",Debit,33.00,fat boys,30/07/2015
Nottinghamshire County Council,Provisions,"Children, Families & Cultural Services",Debit,20.21,w boyes  co ltd,30/07/2015
Nottinghamshire County Council,Provisions,"Children, Families & Cultural Services",Debit,9.93,tesco stores 2995,28/07/2015
Nottinghamshire County Council,Provisions,"Children, Families & Cultural Services",Debit,12.00,fat boys,28/07/2015
Nottinghamshire County Council,Provisions,"Children, Families & Cultural Services",Debit,6.00,fat boys,28/07/2015
Nottinghamshire County Council,Provisions,"Children, Families & Cultural Services",Debit,3.40,tesco stores 2995,27/07/2015
Nottinghamshire County Council,Provisions,"Children, Families & Cultural Services",Debit,5.55,tesco stores 2995,27/07/2015
Nottinghamshire County Council,Provisions,"Children, Families & Cultural Services",Debit,14.98,w boyes  co ltd,21/07/2015
Nottinghamshire County Council,Provisions,"Children, Families & Cultural Services",Debit,12.98,the post office,21/07/2015
Nottinghamshire County Council,Provisions,"Children, Families & Cultural Services",Debit,5.10,tesco stores 2995,16/07/2015
Nottinghamshire County Council,Provisions,"Children, Families & Cultural Services",Debit,16.00,fat boys,15/07/2015
Nottinghamshire County Council,Provisions,"Children, Families & Cultural Services",Debit,2.49,tesco stores 2995,13/07/2015
Nottinghamshire County Council,Provisions,"Children, Families & Cultural Services",Debit,6.85,tesco stores 2995,09/07/2015
Nottinghamshire County Council,Activities & Support,"Children, Families & Cultural Services",Debit,33.15,tesco stores 2702,29/07/2015
Nottinghamshire County Council,Activities & Support,"Children, Families & Cultural Services",Debit,10.80,tesco stores 2702,07/07/2015
Nottinghamshire County Council,Activities & Support,"Children, Families & Cultural Services",Debit,8.80,tesco stores 5379,31/07/2015
Nottinghamshire County Council,Activities & Support,"Children, Families & Cultural Services",Debit,3.00,the range,30/07/2015
Nottinghamshire County Council,Activities & Support,"Children, Families & Cultural Services",Debit,10.59,amazon uk retail,18/07/2015
Nottinghamshire County Council,Activities & Support,"Children, Families & Cultural Services",Debit,7.50,tesco stores 5437,11/07/2015
Nottinghamshire County Council,Building Maintenance,"Adult Social Care, Health & Public Protection ",Debit,14.98,b  q,14/07/2015
Nottinghamshire County Council,Building Maintenance,"Adult Social Care, Health & Public Protection ",Debit,9.84,b  q,14/07/2015
Nottinghamshire County Council,Building Maintenance,"Adult Social Care, Health & Public Protection ",Debit,21.87,b  q,14/07/2015
Nottinghamshire County Council,Provisions,"Adult Social Care, Health & Public Protection ",Debit,116.42,wm morrison food.com,30/07/2015
Nottinghamshire County Council,Cleaning Materials,"Adult Social Care, Health & Public Protection ",Debit,14.00,asda storess4342,24/07/2015
Nottinghamshire County Council,Cleaning Materials,"Adult Social Care, Health & Public Protection ",Debit,5.00,asda storess4342,24/07/2015
Nottinghamshire County Council,Provisions,"Adult Social Care, Health & Public Protection ",Debit,142.31,wm morrison food.com,24/07/2015
Nottinghamshire County Council,Provisions,"Adult Social Care, Health & Public Protection ",Debit,40.28,w m morrisons,23/07/2015
Nottinghamshire County Council,Provisions,"Adult Social Care, Health & Public Protection ",Debit,46.61,w m morrisons,21/07/2015
Nottinghamshire County Council,Cleaning Materials,"Adult Social Care, Health & Public Protection ",Debit,69.00,asda home shopping,16/07/2015
Nottinghamshire County Council,Provisions,"Adult Social Care, Health & Public Protection ",Debit,188.46,wm morrison food.com,16/07/2015
Nottinghamshire County Council,Provisions,"Adult Social Care, Health & Public Protection ",Debit,10.90,w m morrisons,15/07/2015
Nottinghamshire County Council,Provisions,"Adult Social Care, Health & Public Protection ",Debit,15.00,w m morrisons,13/07/2015
Nottinghamshire County Council,Provisions,"Adult Social Care, Health & Public Protection ",Debit,20.54,w m morrisons,13/07/2015
Nottinghamshire County Council,Cleaning Materials,"Adult Social Care, Health & Public Protection ",Debit,19.06,asda storess4342,09/07/2015
Nottinghamshire County Council,Provisions,"Adult Social Care, Health & Public Protection ",Debit,52.04,wm morrisons,07/07/2015
Nottinghamshire County Council,Cleaning Materials,"Adult Social Care, Health & Public Protection ",Debit,31.40,asda storess4342,06/07/2015
Nottinghamshire County Council,Provisions,"Adult Social Care, Health & Public Protection ",Debit,45.74,wm morrison food.com,04/07/2015
Nottinghamshire County Council,Provisions,"Adult Social Care, Health & Public Protection ",Credit,-1.70,asda home shopping,03/08/2015
Nottinghamshire County Council,Provisions,"Adult Social Care, Health & Public Protection ",Debit,76.96,asda home shopping,03/08/2015
Nottinghamshire County Council,Provisions,"Adult Social Care, Health & Public Protection ",Debit,164.51,asda home shopping,30/07/2015
Nottinghamshire County Council,Provisions,"Adult Social Care, Health & Public Protection ",Debit,57.86,asda home shopping,20/07/2015
Nottinghamshire County Council,Provisions,"Adult Social Care, Health & Public Protection ",Debit,183.27,asda home shopping,16/07/2015
Nottinghamshire County Council,Provisions,"Adult Social Care, Health & Public Protection ",Debit,65.62,asda home shopping,06/07/2015
Nottinghamshire County Council,Activities & Support,"Children, Families & Cultural Services",Debit,6.68,asda superstore,01/08/2015
Nottinghamshire County Council,Activities & Support,"Children, Families & Cultural Services",Debit,16.45,the range,21/07/2015
Nottinghamshire County Council,Provisions,"Adult Social Care, Health & Public Protection ",Debit,1.76,iceland,03/08/2015
Nottinghamshire County Council,Provisions,"Adult Social Care, Health & Public Protection ",Debit,60.74,iceland,03/08/2015
Nottinghamshire County Council,Provisions,"Adult Social Care, Health & Public Protection ",Debit,10.00,asda  stores 4201,01/08/2015
Nottinghamshire County Council,Provisions,"Adult Social Care, Health & Public Protection ",Debit,44.18,moorcroft seafoods ltd,27/07/2015
Nottinghamshire County Council,Provisions,"Adult Social Care, Health & Public Protection ",Debit,11.05,iceland,23/07/2015
Nottinghamshire County Council,Provisions,"Adult Social Care, Health & Public Protection ",Debit,8.75,iceland,21/07/2015
Nottinghamshire County Council,Provisions,"Adult Social Care, Health & Public Protection ",Debit,8.80,asda  stores 4201,18/07/2015
Nottinghamshire County Council,Provisions,"Adult Social Care, Health & Public Protection ",Debit,63.36,moorcroft seafoods ltd,16/07/2015
Nottinghamshire County Council,Provisions,"Adult Social Care, Health & Public Protection ",Debit,63.50,iceland,16/07/2015
